Service Area,Service Division,Expense Type,Expense Code,Detailed Expense Type,Payment Date,Transaction Number,Amount Exc Vat,Supplier Name
Assistant Chief Executive,Partnerships & Community Engagement Div.,Transfer Payments,525030,Other,01-Jun-2015,2906818-VOUCHER14AB-4TOG013,"5,164.19",1ST FERRYHILL SCOUT GROUP.
Assistant Chief Executive,Partnerships & Community Engagement Div.,Transfer Payments,525030,Other,01-Jun-2015,2906826-VOUCHER14AB-GAMP007GAMP,750.00,ACLE SCOUT GROUP.
Assistant Chief Executive,Partnerships & Community Engagement Div.,Transfer Payments,525030,Other,01-Jun-2015,2906832-VOUCHER14AB-GAMP007GAMP,735.00,AGNEW COMMUNITY ASSOCIATION.
Assistant Chief Executive,Partnerships & Community Engagement Div.,Cap Exp on Grants & Other Financial Assistance (REFCUS),918004,Contributions to other bodies,01-Jun-2015,2906898-VOUCHER14NB-BASH023,"4,000.00",BUTTERWICK HOSPICE RETAIL LTD.
Assistant Chief Executive,Partnerships & Community Engagement Div.,Transfer Payments,525030,Other,01-Jun-2015,2906951-VOUCHER14WR-MDUR003,"2,000.00",COUNTY DURHAM SOCIALIST CLOTHING BANK.
Assistant Chief Executive,Partnerships & Community Engagement Div.,Transfer Payments,525030,Other,01-Jun-2015,2906968-VOUCHER14AB-SPEN009,"7,170.00",DERWENTSIDE TRUST FOR SPORT & THE ARTS.
Assistant Chief Executive,Partnerships & Community Engagement Div.,Transfer Payments,525030,Other,01-Jun-2015,2906978-VOUCHER14WR-MDUR002,"2,000.00",DURHAM VINEYARD.
Assistant Chief Executive,Partnerships & Community Engagement Div.,Supplies and Services,384085,Miscellaneous Expenses,01-Jun-2015,2906982-SURA02-15,500.00,EASINGTON EXERCISE AFTER STROKE GROUP.
Assistant Chief Executive,Partnerships & Community Engagement Div.,Cap Exp on Grants & Other Financial Assistance (REFCUS),918004,Contributions to other bodies,01-Jun-2015,2906995-VOUCHER14NB-TEES019,"2,000.00",EVENWOOD & BARONY PARISH COUNCIL.
Assistant Chief Executive,Partnerships & Community Engagement Div.,Transfer Payments,525030,Other,01-Jun-2015,2906999-VOUCHER14AB-4TOG006,"3,320.00",FEEL GOOD FACTORY CIC.
Assistant Chief Executive,Partnerships & Community Engagement Div.,Cap Exp on Grants & Other Financial Assistance (REFCUS),918004,Contributions to other bodies,01-Jun-2015,2907008-VOUCHER14NB-DCTY028,"2,091.00",FRIENDS OF OLD DURHAM GARDENS.
Assistant Chief Executive,Partnerships & Community Engagement Div.,Transfer Payments,525030,Other,01-Jun-2015,2907027-VOUCHER14AB-GAMP007GAMP,750.00,GREAT AYCLIFFE CANCER SUPPORT GROUP.
Assistant Chief Executive,Partnerships & Community Engagement Div.,Transfer Payments,525030,Other,01-Jun-2015,2907031-VOUCHER14AB-3TWN013,"6,280.00",GROUNDWORK NORTH EAST.
Assistant Chief Executive,Partnerships & Community Engagement Div.,Cap Exp on Grants & Other Financial Assistance (REFCUS),918004,Contributions to other bodies,01-Jun-2015,2907075-VOUCHER14NB-DVLY021,"3,000.00",JF KENNEDY CARE CENTRE.
Assistant Chief Executive,Partnerships & Community Engagement Div.,Cap Exp on Grants & Other Financial Assistance (REFCUS),918004,Contributions to other bodies,01-Jun-2015,2907132-VOUCHER14AB-DCTY015,"5,000.00",MID DURHAM PROJECTS CLUB.
Assistant Chief Executive,Partnerships & Community Engagement Div.,Transfer Payments,525030,Other,01-Jun-2015,2907133-VOUCHER14AB-TEES012,"5,365.00",MID TEESDALE PROJECT PARTNERSHIP.
Assistant Chief Executive,Partnerships & Community Engagement Div.,Cap Exp on Grants & Other Financial Assistance (REFCUS),918004,Contributions to other bodies,01-Jun-2015,2907194-VOUCHER14NB-CHES003,"10,000.00",PELTON COMMUNITY ASSOCIATION.
Assistant Chief Executive,Partnerships & Community Engagement Div.,Supplies and Services,384085,Miscellaneous Expenses,01-Jun-2015,2907261-BELE01-15MORS01-15,"1,200.00",SEAHAM HAVE YOUR SAY.
Assistant Chief Executive,Partnerships & Community Engagement Div.,Transfer Payments,525030,Other,01-Jun-2015,2907263-VOUCHER14AB-SPEN008,"5,095.00",SEDGEFIELD WATER POLO CLUB.
Assistant Chief Executive,Partnerships & Community Engagement Div.,Transfer Payments,525030,Other,01-Jun-2015,2907276-VOUCHER14AB-DVLY016,"12,000.00",SOCIAL HOUSING ENTERPRISE DURHAM.
Assistant Chief Executive,Partnerships & Community Engagement Div.,Transfer Payments,525030,Other,01-Jun-2015,2907309-VOUCHER14WR-TEES002,"7,462.00",TEESDALE YMCA.
Assistant Chief Executive,Partnerships & Community Engagement Div.,Cap Exp on Grants & Other Financial Assistance (REFCUS),918004,Contributions to other bodies,01-Jun-2015,2907318-VOUCHER14AB-DCTY014,"5,000.00",THE CHEESY WAFFLES PROJECT.
Assistant Chief Executive,Partnerships & Community Engagement Div.,Transfer Payments,525030,Other,01-Jun-2015,2907368-VOUCHER14PH-BASH00214WR,"10,250.00",WOODHOUSE CLOSE CHURCH COMMUNITY CENTRE.
Children and Adult Services,Education,Supplies and Services,384871,Miscellaneous Expenses,01-Jun-2015,2906827-0515/05,500.00,ADAM BUSHNELL STORY TALES.
Children and Adult Services,Public Health,Third Party Payments,460803,Contract Payments,01-Jun-2015,2906878-FA773/SUPER/0415,552.00,BOOTS THE CHEMISTS LTD.
Children and Adult Services,Public Health,Third Party Payments,460803,Contract Payments,01-Jun-2015,2906881-FRA09/SUPER,846.00,BOOTS THE CHEMISTS LTD.
Children and Adult Services,Childrens Services,Third Party Payments,425017,Rendered by Voluntary Organisations,01-Jun-2015,2906899-010/16,720.00,BUTTERWICK HOSPICE RETAIL LTD.
Children and Adult Services,Childrens Services,Third Party Payments,425017,Rendered by Voluntary Organisations,01-Jun-2015,2906899-011/16,960.00,BUTTERWICK HOSPICE RETAIL LTD.
Children and Adult Services,Childrens Services,Third Party Payments,425017,Rendered by Voluntary Organisations,01-Jun-2015,2906899-014/16,720.00,BUTTERWICK HOSPICE RETAIL LTD.
Children and Adult Services,Childrens Services,Third Party Payments,425017,Rendered by Voluntary Organisations,01-Jun-2015,2906899-015/16,720.00,BUTTERWICK HOSPICE RETAIL LTD.
Children and Adult Services,Head of Adults,Supplies and Services,338366,Services,01-Jun-2015,2906905-24481,"2,814.00",CARE ABILITY.
Children and Adult Services,Public Health,Third Party Payments,460802,Contract Payments,01-Jun-2015,2906918-A3055/MAR2015/IUCD,821.29,CHEVELEY PARK MEDICAL CENTRE.
Dedicated Schools Grant,Dedicated Schools Grant,Third Party Payments,425005,Rendered by Voluntary Organisations,01-Jun-2015,2906923-14759,"2,786.75",CHORISTER SCHOOL.
Dedicated Schools Grant,Dedicated Schools Grant,Third Party Payments,425005,Rendered by Voluntary Organisations,01-Jun-2015,2906923-14897,"3,770.75",CHORISTER SCHOOL.
Dedicated Schools Grant,Dedicated Schools Grant,Third Party Payments,425005,Rendered by Voluntary Organisations,01-Jun-2015,2906923-14965,"8,307.50",CHORISTER SCHOOL.
Dedicated Schools Grant,Dedicated Schools Grant,Third Party Payments,425005,Rendered by Voluntary Organisations,01-Jun-2015,2906923-14966,"5,611.22",CHORISTER SCHOOL.
Children and Adult Services,Public Health,Supplies and Services,344033,Telephones,01-Jun-2015,2906936-17076,814.29,CONNECTED WORLD COMMUNICATIONS LTD.
Dedicated Schools Grant,Dedicated Schools Grant,Supplies and Services,338035,Services,01-Jun-2015,2906985-202207,"1,156.50",EDEXCEL.
Children and Adult Services,Education,Supplies and Services,384199,Miscellaneous Expenses,01-Jun-2015,2906996-5100513,522.50,EXCEL ACADEMY PARTNERSHIP T/A FRAMWELLGATE SCH DURHAM.
Children and Adult Services,Childrens Services,Third Party Payments,486029,Service Level Agreements,01-Jun-2015,2906997-17518,"19,000.00",FAMILY ACTION.
Children and Adult Services,Childrens Services,Third Party Payments,486029,Service Level Agreements,01-Jun-2015,2906997-17519,"19,000.00",FAMILY ACTION.
Children and Adult Services,Public Health,Third Party Payments,460803,Contract Payments,01-Jun-2015,2907016-FRW33/APRIL/2015,730.00,GILL & SCHOFIELD PHARMACEUTICAL CHEMISTS LTD.
Children and Adult Services,Education,Transport,235005,Public Transport,01-Jun-2015,2907021-47287,"3,840.00",GO NORTH EAST LTD.
Children and Adult Services,Public Health,Supplies and Services,384199,Miscellaneous Expenses,01-Jun-2015,2907054-8886,"3,237.79",INGRAMS REMOVERS & STORERS.
Children and Adult Services,Commissioning inc Supporting People,Third Party Payments,470111,Purchase of Care,01-Jun-2015,2907105-RINVTP/00356403,"3,994.97",LEONARD CHESHIRE DISABILITY.
Children and Adult Services,Childrens Services,Supplies and Services,308011,Furniture,01-Jun-2015,2907109-2550,"2,200.00",LINK DESIGN.
Children and Adult Services,Public Health,Third Party Payments,460803,Contract Payments,01-Jun-2015,2907110-FXL31/APRIL2015,510.00,LLOYDS PHARMACY.
Children and Adult Services,Education,Supplies and Services,384199,Miscellaneous Expenses,01-Jun-2015,2907117-154,"2,993.96",MAB EVENT MANAGEMENT LTD.
Children and Adult Services,Commissioning inc Supporting People,Third Party Payments,442002,Supporting People,01-Jun-2015,2907129-1962198,"5,469.72",MENTAL HEALTH MATTERS.
Children and Adult Services,Education,Supplies and Services,338099,Services,01-Jun-2015,2907141-1950,"2,000.00",MORE PARTNERSHIP LTD.
Dedicated Schools Grant,Dedicated Schools Grant,Third Party Payments,440080,Other Third Party Payments,01-Jun-2015,2907155-SLINV/00001153,"66,955.50",NEW COLLEGE DURHAM.
Children and Adult Services,Head of Adults,Transport,230005,Contract Hire,01-Jun-2015,2907162-3734,"1,070.00",NIGHTINGALE COACHES.
Children and Adult Services,Head of Adults,Transport,230005,Contract Hire,01-Jun-2015,2907162-3735,560.00,NIGHTINGALE COACHES.
Children and Adult Services,Head of Adults,Transport,230005,Contract Hire,01-Jun-2015,2907162-3736,960.00,NIGHTINGALE COACHES.
Children and Adult Services,Head of Adults,Transport,230005,Contract Hire,01-Jun-2015,2907162-3737,840.00,NIGHTINGALE COACHES.
Children and Adult Services,Head of Adults,Transport,230005,Contract Hire,01-Jun-2015,2907162-3738,720.00,NIGHTINGALE COACHES.
Children and Adult Services,Head of Adults,Transport,230005,Contract Hire,01-Jun-2015,2907162-3740,780.00,NIGHTINGALE COACHES.
Children and Adult Services,Education,Transport,230007,Contract Hire,01-Jun-2015,2907162-3743,"5,530.00",NIGHTINGALE COACHES.
Dedicated Schools Grant,Dedicated Schools Grant,Third Party Payments,425005,Rendered by Voluntary Organisations,01-Jun-2015,2907164-0000021206,"13,991.40",NORTH EAST AUTISM SOCIETY.
Dedicated Schools Grant,Dedicated Schools Grant,Third Party Payments,425005,Rendered by Voluntary Organisations,01-Jun-2015,2907164-0000021209,"11,752.79",NORTH EAST AUTISM SOCIETY.
Dedicated Schools Grant,Dedicated Schools Grant,Third Party Payments,425005,Rendered by Voluntary Organisations,01-Jun-2015,2907164-0000021215,"15,670.90",NORTH EAST AUTISM SOCIETY.
Dedicated Schools Grant,Dedicated Schools Grant,Third Party Payments,425005,Rendered by Voluntary Organisations,01-Jun-2015,2907164-0000021216,"23,928.89",NORTH EAST AUTISM SOCIETY.
Children and Adult Services,Childrens Services,Third Party Payments,425019,Rendered by Voluntary Organisations,01-Jun-2015,2907164-0000021223,"14,810.09",NORTH EAST AUTISM SOCIETY.
Children and Adult Services,Childrens Services,Supplies and Services,324117,Provisions,01-Jun-2015,2907168-127676,558.08,NORTH EAST VENDING LTD.
Children and Adult Services,Head of Adults,Third Party Payments,478151,Purchase of Care,01-Jun-2015,2907178-21858,"4,048.16",OAKLEA TRUST.
Children and Adult Services,Head of Adults,Third Party Payments,478151,Purchase of Care,01-Jun-2015,2907178-22157,"1,843.80",OAKLEA TRUST.
Children and Adult Services,Head of Adults,Third Party Payments,478151,Purchase of Care,01-Jun-2015,2907178-22159,"2,530.10",OAKLEA TRUST.
Children and Adult Services,Head of Adults,Third Party Payments,478151,Purchase of Care,01-Jun-2015,2907178-22160,"1,890.90",OAKLEA TRUST.
Dedicated Schools Grant,Dedicated Schools Grant,Supplies and Services,312075,Newspapers Books and Periodicals,01-Jun-2015,2907192-8330670XHDI,617.50,PEARSON EDUCATION LTD.
Children and Adult Services,Childrens Services,Third Party Payments,425019,Rendered by Voluntary Organisations,01-Jun-2015,2907193-260114,"14,048.40",PEARTREE PROJECTS LTD.
Children and Adult Services,Childrens Services,Supplies and Services,338078,Services,01-Jun-2015,2907219-4901,"15,153.96",QW SECURITY LTD.
Children and Adult Services,Childrens Services,Third Party Payments,486021,Service Level Agreements,01-Jun-2015,2907228-3313,523.67,REACH OUT CARE SUPPORT SERVICES LTD.
Children and Adult Services,Education,Construction Work,908105,Construction work,01-Jun-2015,2907250-1882,"1,565.44",SAFE STRIP UK LTD.
Children and Adult Services,Childrens Services,Supplies and Services,364305,Grants to Voluntary Organisations,01-Jun-2015,2907254-CAS-05-2015-090,789.71,REDACTED - PAYMENT TO INDIVIDUAL
Children and Adult Services,Childrens Services,Supplies and Services,384199,Miscellaneous Expenses,01-Jun-2015,2907264-6,"2,700.00",SEVEN STORIES.
Children and Adult Services,Commissioning inc Supporting People,Third Party Payments,442002,Supporting People,01-Jun-2015,2907284-1962161,"32,269.96",STONHAM HOUSING ASSOCIATION LTD.
Children and Adult Services,Commissioning inc Supporting People,Third Party Payments,442002,Supporting People,01-Jun-2015,2907284-1962162,"145,778.32",STONHAM HOUSING ASSOCIATION LTD.
Children and Adult Services,Commissioning inc Supporting People,Third Party Payments,441001,Supporting People,01-Jun-2015,2907284-1962170,"67,257.36",STONHAM HOUSING ASSOCIATION LTD.
Children and Adult Services,Commissioning inc Supporting People,Third Party Payments,443001,Supporting People,01-Jun-2015,2907284-1962172,"23,955.16",STONHAM HOUSING ASSOCIATION LTD.
Children and Adult Services,Commissioning inc Supporting People,Third Party Payments,443001,Supporting People,01-Jun-2015,2907284-1962182,"11,715.88",STONHAM HOUSING ASSOCIATION LTD.
Children and Adult Services,Commissioning inc Supporting People,Third Party Payments,442002,Supporting People,01-Jun-2015,2907284-1962208,"29,343.52",STONHAM HOUSING ASSOCIATION LTD.
Children and Adult Services,Commissioning inc Supporting People,Third Party Payments,443001,Supporting People,01-Jun-2015,2907284-1962242,"1,093.44",STONHAM HOUSING ASSOCIATION LTD.
Children and Adult Services,Childrens Services,Third Party Payments,425040,Rendered by Voluntary Organisations,01-Jun-2015,2907303-24964,"3,232.86",TEAM FOSTERING.
Children and Adult Services,Childrens Services,Transport,235073,Public Transport,01-Jun-2015,2907307-872,"1,349.48",TEESDALE COMMUNITY RESOURCES (TCR) LTD.
Children and Adult Services,Education,Employees,040001,Recruitment Instruction and Training,01-Jun-2015,2907314-TARINV/15375500,710.10,TES GLOBAL LTD.
Children and Adult Services,Public Health,Third Party Payments,460803,Contract Payments,01-Jun-2015,2907315-FA121/APRIL/15,913.00,TESCO PHARMACY.
Children and Adult Services,Public Health,Third Party Payments,460803,Contract Payments,01-Jun-2015,2907316-FMH62/APRIL/2015,513.00,TESCO PHARMACY.
Children and Adult Services,Commissioning inc Supporting People,Third Party Payments,441001,Supporting People,01-Jun-2015,2907323-1962203,"7,791.04",THIRTEEN CARE & SUPPORT.
Children and Adult Services,Commissioning inc Supporting People,Third Party Payments,441001,Supporting People,01-Jun-2015,2907323-1962206,"10,205.64",THIRTEEN CARE & SUPPORT.
Children and Adult Services,Commissioning inc Supporting People,Third Party Payments,442002,Supporting People,01-Jun-2015,2907323-1962207,"1,800.52",THIRTEEN CARE & SUPPORT.
Children and Adult Services,Commissioning inc Supporting People,Third Party Payments,441001,Supporting People,01-Jun-2015,2907323-1962241,"26,571.84",THIRTEEN CARE & SUPPORT.
Children and Adult Services,Commissioning inc Supporting People,Third Party Payments,442002,Supporting People,01-Jun-2015,2907323-1962265,"9,851.44",THIRTEEN CARE & SUPPORT.
Children and Adult Services,Planning & Service Strategy,Supplies and Services,338091,Services,01-Jun-2015,2907343-91326684,610.00,UNIVERSITY OF NORTHUMBRIA.
Children and Adult Services,Planning & Service Strategy,Supplies and Services,338091,Services,01-Jun-2015,2907343-91335082,610.00,UNIVERSITY OF NORTHUMBRIA.
Children and Adult Services,Planning & Service Strategy,Supplies and Services,338091,Services,01-Jun-2015,2907343-91335084,610.00,UNIVERSITY OF NORTHUMBRIA.
Neighbourhood Services,Technical Services,Supplies and Services,304221,Equipment and Materials,01-Jun-2015,2906831-21400592,956.32,AGGREGATE INDUSTRIES UK LTD.
Neighbourhood Services,Technical Services,Supplies and Services,304221,Equipment and Materials,01-Jun-2015,2906831-21400689,742.81,AGGREGATE INDUSTRIES UK LTD.
Neighbourhood Services,Technical Services,Supplies and Services,304221,Equipment and Materials,01-Jun-2015,2906831-21400690,"1,256.51",AGGREGATE INDUSTRIES UK LTD.
Neighbourhood Services,Technical Services,Supplies and Services,304221,Equipment and Materials,01-Jun-2015,2906831-21400691,"1,132.23",AGGREGATE INDUSTRIES UK LTD.
Neighbourhood Services,Technical Services,Supplies and Services,304221,Equipment and Materials,01-Jun-2015,2906831-21407463,880.94,AGGREGATE INDUSTRIES UK LTD.
Neighbourhood Services,Technical Services,Supplies and Services,304221,Equipment and Materials,01-Jun-2015,2906831-21407567,732.27,AGGREGATE INDUSTRIES UK LTD.
Neighbourhood Services,Technical Services,Supplies and Services,304221,Equipment and Materials,01-Jun-2015,2906831-21407570,"1,262.78",AGGREGATE INDUSTRIES UK LTD.
Neighbourhood Services,Technical Services,Supplies and Services,304221,Equipment and Materials,01-Jun-2015,2906831-21407571,"1,159.08",AGGREGATE INDUSTRIES UK LTD.
Neighbourhood Services,Technical Services,Supplies and Services,304221,Equipment and Materials,01-Jun-2015,2906831-21407573,776.68,AGGREGATE INDUSTRIES UK LTD.
Neighbourhood Services,Culture & Sport,Supplies and Services,384237,Miscellaneous Expenses,01-Jun-2015,2906839-215/04/305,"1,850.00",ANTHONY WILLIAMS CONSULTANCY.
Neighbourhood Services,Technical Services,Stock,926900,Stock in hand-Inventory system,01-Jun-2015,2906854-6088,520.00,AUCKLAND ENVIRONMENTAL SERVICES LTD (AES).
Neighbourhood Services,Direct Services,Supplies and Services,304221,Equipment and Materials,01-Jun-2015,2906857-INV095498,943.50,AZTEC CHEMICALS LTD.
Neighbourhood Services,Culture & Sport,Supplies and Services,304252,Equipment and Materials,01-Jun-2015,2906858-74128,550.00,B & R GLAZING CO LTD.
Neighbourhood Services,Direct Services,Supplies and Services,304259,Equipment and Materials,01-Jun-2015,2906861-95838652,505.67,BALL COLEGRAVE LTD.
Neighbourhood Services,Technical Services,Stock,926900,Stock in hand-Inventory system,01-Jun-2015,2906875-8357983,919.46,BOLD NU TEC INSULATION PRODUCTS & SERVICES LTD.
Neighbourhood Services,Culture & Sport,Supplies and Services,324117,Provisions,01-Jun-2015,2906906-841461306,508.96,CARLSBERG UK LTD.
Neighbourhood Services,Direct Services,Stock,926004,Stock,01-Jun-2015,2906907-200657,501.46,CARRS BILLINGTON AGRICULTURE.
Neighbourhood Services,Direct Services,Stock,926004,Stock,01-Jun-2015,2906907-201034,"1,468.27",CARRS BILLINGTON AGRICULTURE.
Neighbourhood Services,Direct Services,Transport,210057,Repair and Maintenance of Vehicles,01-Jun-2015,2906907-459349,"1,719.14",CARRS BILLINGTON AGRICULTURE.
Neighbourhood Services,Technical Services,Stock,926900,Stock in hand-Inventory system,01-Jun-2015,2906912-9950/01645083,"2,528.06",CERAMIC TILE DISTRIBUTORS (CTD).
Neighbourhood Services,Direct Services,Transport,215005,Running Costs of Vehicles,01-Jun-2015,2906913-4446086,"1,007.20",CERTAS ENERGY UK LTD.
Neighbourhood Services,Technical Services,Stock,926900,Stock in hand-Inventory system,01-Jun-2015,2906915-69427,526.50,CHANTER BIOMED UK LTD.
Neighbourhood Services,Technical Services,Stock,926900,Stock in hand-Inventory system,01-Jun-2015,2906921-00442972,675.50,CHILTERN INVADEX LTD.
Neighbourhood Services,Technical Services,Premises,150015,Apportioned Exps of Operational Blds,01-Jun-2015,2906930-17577,821.40,CLEE HILL PLANT LTD.
Neighbourhood Services,Technical Services,Stock,926900,Stock in hand-Inventory system,01-Jun-2015,2906932-165540,612.00,COLAS LTD.
Neighbourhood Services,Direct Services,Supplies and Services,304221,Equipment and Materials,01-Jun-2015,2906955-INV0099534,"12,450.00",CROMWELL POLYTHENE LTD.
Neighbourhood Services,Direct Services,Supplies and Services,304221,Equipment and Materials,01-Jun-2015,2906962-107920,"1,168.38",DAVID DIXON GARDEN MACHINERY CENTRE.
Neighbourhood Services,Direct Services,Transport,210057,Repair and Maintenance of Vehicles,01-Jun-2015,2906966-DE10870113,"1,015.80",DENNIS EAGLE LTD.
Neighbourhood Services,Direct Services,Supplies and Services,304221,Equipment and Materials,01-Jun-2015,2906987-059-162574,"1,393.34",EDMUNDSON ELECTRICAL LTD.
Neighbourhood Services,Direct Services,Transport,210057,Repair and Maintenance of Vehicles,01-Jun-2015,2907003-IN119255,568.00,FM STEELSTOCK LTD.
Neighbourhood Services,Direct Services,Stock,926004,Stock,01-Jun-2015,2907014-IN157554,582.00,GB LUBRICANTS LTD.
Neighbourhood Services,Direct Services,Supplies and Services,304259,Equipment and Materials,01-Jun-2015,2907023-INV053131,"1,219.20",GOTT TECHNICAL SERVICES LTD.
Neighbourhood Services,Technical Services,Supplies and Services,304221,Equipment and Materials,01-Jun-2015,2907024-29213,"1,500.00",GRAB & DELIVER LTD.
Neighbourhood Services,Technical Services,Supplies and Services,304221,Equipment and Materials,01-Jun-2015,2907024-29215,"1,530.00",GRAB & DELIVER LTD.
Neighbourhood Services,Direct Services,Supplies and Services,304221,Equipment and Materials,01-Jun-2015,2907025-DHM/320450,"61,717.11",GRAFTON MERCHANTING GB T/A ELECTRICBASE LTD.
Neighbourhood Services,Technical Services,Stock,926900,Stock in hand-Inventory system,01-Jun-2015,2907028-06/555422,747.88,GREENHAM TRADING LTD.
Neighbourhood Services,Technical Services,Third Party Payments,430100,Rendered by Private Contractors,01-Jun-2015,2907034-40799,"2,636.00",HALL CONSTRUCTION SERVICES LTD.
Neighbourhood Services,Direct Services,Stock,926004,Stock,01-Jun-2015,2907038-519186,"12,099.25",HARVEST ENERGY LTD.
Neighbourhood Services,Direct Services,Stock,926004,Stock,01-Jun-2015,2907038-532295,"13,422.45",HARVEST ENERGY LTD.
Neighbourhood Services,Direct Services,Stock,926004,Stock,01-Jun-2015,2907038-532298,"3,812.09",HARVEST ENERGY LTD.
Neighbourhood Services,Direct Services,Stock,926004,Stock,01-Jun-2015,2907038-532299,"1,438.50",HARVEST ENERGY LTD.
Neighbourhood Services,Direct Services,Stock,926004,Stock,01-Jun-2015,2907038-532300,"15,998.60",HARVEST ENERGY LTD.
Neighbourhood Services,Direct Services,Stock,926004,Stock,01-Jun-2015,2907038-533744,"13,355.13",HARVEST ENERGY LTD.
Neighbourhood Services,Direct Services,Stock,926004,Stock,01-Jun-2015,2907038-533746,"16,294.38",HARVEST ENERGY LTD.
Neighbourhood Services,Direct Services,Stock,926004,Stock,01-Jun-2015,2907038-535122,"33,711.34",HARVEST ENERGY LTD.
Neighbourhood Services,Direct Services,Stock,926004,Stock,01-Jun-2015,2907038-535887,"15,748.11",HARVEST ENERGY LTD.
Neighbourhood Services,Direct Services,Stock,926004,Stock,01-Jun-2015,2907038-535889,"10,621.59",HARVEST ENERGY LTD.
Neighbourhood Services,Direct Services,Stock,926004,Stock,01-Jun-2015,2907038-535892,"1,491.86",HARVEST ENERGY LTD.
Neighbourhood Services,Direct Services,Stock,926004,Stock,01-Jun-2015,2907038-535893,"17,035.20",HARVEST ENERGY LTD.
Neighbourhood Services,Culture & Sport,Supplies and Services,384199,Miscellaneous Expenses,01-Jun-2015,2907042-8836,608.24,HI LIGHTS THEATRE SERVICES.
Neighbourhood Services,Direct Services,Third Party Payments,430100,Rendered by Private Contractors,01-Jun-2015,2907045-1213118,894.00,HILLS NUMBERPLATES LTD.
Neighbourhood Services,Technical Services,Employees,040149,Recruitment Instruction and Training,01-Jun-2015,2907048-1744,900.00,HSF TRAINING LTD.
Neighbourhood Services,Projects and Business services,Third Party Payments,430114,Rendered by Private Contractors,01-Jun-2015,2907063-92546,"2,686.20",J & B RECYCLING LTD.
Neighbourhood Services,Direct Services,Supplies and Services,304221,Equipment and Materials,01-Jun-2015,2907065-GI1421491,"1,653.10",JAMES BURRELL LTD.
Neighbourhood Services,Technical Services,Stock,926900,Stock in hand-Inventory system,01-Jun-2015,2907079-NI027820,"19,666.56",JOHN MACLEAN & SONS ELECTRICAL (DINGWALL) LTD.
Neighbourhood Services,Technical Services,Stock,926900,Stock in hand-Inventory system,01-Jun-2015,2907085-00000497,"1,300.00",JP MATERIALS & PLANT HIRE LTD.
Neighbourhood Services,Technical Services,Supplies and Services,304221,Equipment and Materials,01-Jun-2015,2907087-BII161736,"3,616.32",JT DOVE LTD.
Neighbourhood Services,Technical Services,Supplies and Services,304221,Equipment and Materials,01-Jun-2015,2907087-CNI21946/D,"4,593.50",JT DOVE LTD.
Neighbourhood Services,Technical Services,Stock,926900,Stock in hand-Inventory system,01-Jun-2015,2907087-STI419202,"1,601.20",JT DOVE LTD.
Neighbourhood Services,Technical Services,Stock,926900,Stock in hand-Inventory system,01-Jun-2015,2907087-STI419203,545.12,JT DOVE LTD.
Neighbourhood Services,Technical Services,Supplies and Services,304221,Equipment and Materials,01-Jun-2015,2907098-9032543625,686.80,LAFARGE TARMAC TRADING LTD.
Neighbourhood Services,Technical Services,Supplies and Services,304221,Equipment and Materials,01-Jun-2015,2907098-9032553714,674.80,LAFARGE TARMAC TRADING LTD.
Neighbourhood Services,Technical Services,Supplies and Services,304221,Equipment and Materials,01-Jun-2015,2907098-9032556646,515.10,LAFARGE TARMAC TRADING LTD.
Neighbourhood Services,Technical Services,Supplies and Services,304221,Equipment and Materials,01-Jun-2015,2907098-9032587442,"1,320.65",LAFARGE TARMAC TRADING LTD.
Neighbourhood Services,Technical Services,Supplies and Services,304221,Equipment and Materials,01-Jun-2015,2907098-9032632653,"2,681.03",LAFARGE TARMAC TRADING LTD.
Neighbourhood Services,Technical Services,Supplies and Services,304221,Equipment and Materials,01-Jun-2015,2907098-9032677571,578.00,LAFARGE TARMAC TRADING LTD.
Neighbourhood Services,Direct Services,Supplies and Services,304259,Equipment and Materials,01-Jun-2015,2907108-24389,575.00,LINDEN HOSE & ADAPTORS LTD.
Neighbourhood Services,Technical Services,Supplies and Services,304221,Equipment and Materials,01-Jun-2015,2907122-ZBB0803593,"7,635.76",MARSHALLS MONO LTD.
Neighbourhood Services,Technical Services,Supplies and Services,304221,Equipment and Materials,01-Jun-2015,2907122-ZBB0813823,"1,524.15",MARSHALLS MONO LTD.
Neighbourhood Services,Technical Services,Supplies and Services,304358,Equipment and Materials,01-Jun-2015,2907123-1802,760.00,MARTIN JEWITT PLANT HIRE.
Neighbourhood Services,Technical Services,Supplies and Services,304358,Equipment and Materials,01-Jun-2015,2907123-1804,"1,246.50",MARTIN JEWITT PLANT HIRE.
Neighbourhood Services,Technical Services,Stock,926900,Stock in hand-Inventory system,01-Jun-2015,2907131-001/134073,"1,066.06",MH SOUTHERN & CO LTD.
Neighbourhood Services,Technical Services,Stock,926900,Stock in hand-Inventory system,01-Jun-2015,2907131-001/135370,608.00,MH SOUTHERN & CO LTD.
Neighbourhood Services,Direct Services,Supplies and Services,304221,Equipment and Materials,01-Jun-2015,2907136-0000057788,"1,096.93",MIKROFILL SYSTEMS LTD.
Neighbourhood Services,Direct Services,Transport,210057,Repair and Maintenance of Vehicles,01-Jun-2015,2907151-INVDUR00312102,730.00,NE TRUCK SPARES LTD.
Neighbourhood Services,Technical Services,Construction Work,908109,Capital - Resurfacing,01-Jun-2015,2907153-1172055,"8,080.21",NETWORK RAIL.
Neighbourhood Services,Direct Services,Supplies and Services,304221,Equipment and Materials,01-Jun-2015,2907157-133290130,879.44,NEWEY & EYRE LTD.
Neighbourhood Services,Direct Services,Supplies and Services,304221,Equipment and Materials,01-Jun-2015,2907158-133302113,500.38,NEWEY & EYRE LTD.
Neighbourhood Services,Direct Services,Transport,230005,Contract Hire,01-Jun-2015,2907172-SL03164467INV,543.40,NORTHGATE VEHICLE HIRE LTD.
Neighbourhood Services,Direct Services,Transport,230005,Contract Hire,01-Jun-2015,2907172-SL03164495INV,596.88,NORTHGATE VEHICLE HIRE LTD.
Neighbourhood Services,Direct Services,Third Party Payments,430100,Rendered by Private Contractors,01-Jun-2015,2907174-15050184,"1,376.00",NOVUS PROPERTY SOLUTIONS LTD.
Neighbourhood Services,Direct Services,Stock,926004,Stock,01-Jun-2015,2907186-SIP049204,564.00,OWEN SPRINGS LTD.
Neighbourhood Services,Technical Services,Stock,926900,Stock in hand-Inventory system,01-Jun-2015,2907189-XL142549,770.72,PARK ELECTRICAL DISTRIBUTORS LTD.
Neighbourhood Services,Culture & Sport,Supplies and Services,338047,Services,01-Jun-2015,2907190-2055/15,"6,981.57",PASSWORD PRODUCTIONS LTD.
Neighbourhood Services,Culture & Sport,Supplies and Services,384700,Miscellaneous Expenses,01-Jun-2015,2907200-13238/16,"6,250.00",PIONEERING CARE PARTNERSHIP.
Neighbourhood Services,Direct Services,Supplies and Services,304221,Equipment and Materials,01-Jun-2015,2907205-4120180776,667.38,PLUMBING TRADE SUPPLIES LTD.
Neighbourhood Services,Culture & Sport,Supplies and Services,324117,Provisions,01-Jun-2015,2907225-000002489,"1,080.00",RAMSIDE ESTATES LTD T/A RAMSIDE HALL HOTEL.
Neighbourhood Services,Direct Services,Transport,210057,Repair and Maintenance of Vehicles,01-Jun-2015,2907231-726902,542.92,RICKERBY LTD.
Neighbourhood Services,Direct Services,Vehicles Equipment Furniture and Fittings,912529,Purchase-equipment,01-Jun-2015,2907244-RMI2429,804.20,RUGGED MOBILE SYSTEMS LTD.
Neighbourhood Services,Culture & Sport,Supplies and Services,384199,Miscellaneous Expenses,01-Jun-2015,2907253-1515,660.00,SALLYANNE FLEMONS.
Neighbourhood Services,Technical Services,Stock,926900,Stock in hand-Inventory system,01-Jun-2015,2907268-221002,"1,116.80",SIGNPOST SOLUTIONS LTD.
Neighbourhood Services,Technical Services,Supplies and Services,304221,Equipment and Materials,01-Jun-2015,2907283-071941,"1,454.88",STONEGRAVE AGGREGATES LTD.
Neighbourhood Services,Technical Services,Supplies and Services,304221,Equipment and Materials,01-Jun-2015,2907297-280519,"9,575.18",TASK GREEN LTD.
Neighbourhood Services,Technical Services,Stock,926900,Stock in hand-Inventory system,01-Jun-2015,2907324-N/IN146023,"1,035.52",THOMAS OWEN & SONS (NEWCASTLE) LTD.
Neighbourhood Services,Direct Services,Supplies and Services,304221,Equipment and Materials,01-Jun-2015,2907330-29855,820.00,TOTAL PUMP SOLUTIONS LTD.
Neighbourhood Services,Technical Services,Supplies and Services,304357,Equipment and Materials,01-Jun-2015,2907356-39169,570.00,W MARLEY AGRICULTURAL CONTRACTORS LTD.
Neighbourhood Services,Direct Services,Premises,150015,Apportioned Exps of Operational Blds,01-Jun-2015,2907364-408619,613.20,WERNICK HIRE LTD.
Neighbourhood Services,Direct Services,Third Party Payments,430100,Rendered by Private Contractors,01-Jun-2015,2907366-38094,"1,629.50",WILLOWCRETE MFG CO LTD.
Neighbourhood Services,Technical Services,Stock,926900,Stock in hand-Inventory system,01-Jun-2015,2907367-22462847,"1,684.69",WOLSELEY UK LTD.
Neighbourhood Services,Technical Services,Stock,926900,Stock in hand-Inventory system,01-Jun-2015,2907367-22495497,891.88,WOLSELEY UK LTD.
RED HRA,Housing Revenue Account,Third Party Payments,430100,Rendered by Private Contractors,01-Jun-2015,2907361-B50403-8B,"197,642.72",WATES CONSTRUCTION LTD.
Regeneration & Economic Development,Economic Development and Housing,Cap Exp on Grants & Other Financial Assistance (REFCUS),918401,Capital grants,01-Jun-2015,2906822-RED-06-2015-005,"1,950.00",A PARKER PLUMBING.
Regeneration & Economic Development,Economic Development and Housing,Fees,901002,Professional fees,01-Jun-2015,2906853-15004674,"2,346.75",ATKINS LTD.
Regeneration & Economic Development,Transport and Contracted Services,Employees,040149,Recruitment Instruction and Training,01-Jun-2015,2906911-0204,"2,940.00",CCTV TRAINING ACADEMY.
Regeneration & Economic Development,Spatial Policy Planning Assets & Environment,Supplies and Services,384999,Miscellaneous Expenses,01-Jun-2015,2906928-3753,"4,611.20",CLASSIC MASONRY LTD.
Regeneration & Economic Development,Economic Development and Housing,Cap Exp on Grants & Other Financial Assistance (REFCUS),918401,Capital grants,01-Jun-2015,2906971-RED-06-2015-004,"1,685.25",DIGON PROPERTY SERVICES LTD.
Regeneration & Economic Development,Transport and Contracted Services,Fees,901002,Professional fees,01-Jun-2015,2906979-1580839,"3,000.00",DWF LLP.
Regeneration & Economic Development,Transport and Contracted Services,Supplies and Services,304245,Equipment and Materials,01-Jun-2015,2907088-13878,877.00,JUST CHECKING LTD.
Regeneration & Economic Development,Spatial Policy Planning Assets & Environment,Supplies and Services,338027,Services,01-Jun-2015,2907094-337829A,"1,800.00",KINGS CHAMBERS.
Regeneration & Economic Development,Spatial Policy Planning Assets & Environment,Supplies and Services,384199,Miscellaneous Expenses,01-Jun-2015,2907116-17,"6,340.00",MA JOHNSTON.
Regeneration & Economic Development,Economic Development and Housing,Cap Exp on Grants & Other Financial Assistance (REFCUS),918401,Capital grants,01-Jun-2015,2907145-RED-06-2015-002,"3,450.00",REDACTED - PAYMENT TO INDIVIDUAL
Regeneration & Economic Development,Spatial Policy Planning Assets & Environment,Supplies and Services,336005,Advertising,01-Jun-2015,2907160-11021304,"1,014.17",NEWSQUEST (YORKSHIRE & NORTH EAST) LTD.
Regeneration & Economic Development,Economic Development and Housing,Premises,135005,Water Services,01-Jun-2015,2907173-303696120013063,"1,124.54",NORTHUMBRIAN WATER LTD.
Regeneration & Economic Development,Economic Development and Housing,Premises,135005,Water Services,01-Jun-2015,2907173-315957610019006,"1,117.47",NORTHUMBRIAN WATER LTD.
Regeneration & Economic Development,Economic Development and Housing,Supplies and Services,344033,Telephones,01-Jun-2015,2907198-003225109,"1,107.43",PHONE CO-OP.
Regeneration & Economic Development,Economic Development and Housing,Third Party Payments,440999,Other Third Party Payments,01-Jun-2015,2907260,"10,409.02",SCOTTISH GAS T/A WARM UP NORTH.
Resources,I.C.T. Services,Supplies and Services,344039,Telephones,01-Jun-2015,2906901-UK10/052015/5764,999.00,CABLE & WIRELESS UK.
Resources,I.C.T. Services,Supplies and Services,342033,Computers and Communications,01-Jun-2015,2906964-7402205675,"11,461.45",DELL COMPUTER CORPORATION LTD.
Resources,I.C.T. Services,Supplies and Services,342051,Computers and Communications,01-Jun-2015,2907026-114971,"5,010.00",GRAITEC LTD.
Resources,Legal & Democratic Services,Supplies and Services,338025,Services,01-Jun-2015,2907078-6663,590.00,JOHN BLENKIRON & SONS LTD.
Resources,I.C.T. Services,Supplies and Services,340001,Postages,01-Jun-2015,2907152-91912872,651.00,NEOPOST LTD.
Resources,I.C.T. Services,Debtors,930167,Debtor-Telephone Holding Account,01-Jun-2015,2907154-201951,"17,957.07",NETWORKS 2 BUSINESS LTD.
Resources,Legal & Democratic Services,Supplies and Services,352001,Conference Expenses,01-Jun-2015,2907179-CF11892,"1,585.00",OCEAN MEDIA GROUP LTD.
Resources,I.C.T. Services,Supplies and Services,332029,Printing Stationery and Gen Off Exps,01-Jun-2015,2907208-615837,"1,191.00",POTTS PRINTERS LTD.
Resources,I.C.T. Services,Supplies and Services,332029,Printing Stationery and Gen Off Exps,01-Jun-2015,2907208-615849,552.00,POTTS PRINTERS LTD.
Resources,I.C.T. Services,Supplies and Services,332029,Printing Stationery and Gen Off Exps,01-Jun-2015,2907208-616340,"1,690.00",POTTS PRINTERS LTD.
Resources,I.C.T. Services,Supplies and Services,340001,Postages,01-Jun-2015,2907240-9049622042,"22,256.40",ROYAL MAIL GROUP PLC.
Assistant Chief Executive,Partnerships & Community Engagement Div.,Supplies and Services,384086,Miscellaneous Expenses,02-Jun-2015,2908021-VOUCHER15NB-DCTY002,"5,000.00",BEARPARK COMMUNITY ASSOCIATION.
Assistant Chief Executive,Partnerships & Community Engagement Div.,Supplies and Services,384086,Miscellaneous Expenses,02-Jun-2015,2908022-VOUCHER14NB-DCTY031,"2,000.00",BEARPARK RESIDENTS GROUP.
Assistant Chief Executive,Partnerships & Community Engagement Div.,Supplies and Services,384085,Miscellaneous Expenses,02-Jun-2015,2908064-MARL04-15DAVK03-15,"1,700.00",CHESTER LE STREET AND DISTRICT ALLOTMENTS SOCIETY FLOWER SHOW.
Assistant Chief Executive,Partnerships & Community Engagement Div.,Supplies and Services,384086,Miscellaneous Expenses,02-Jun-2015,2908083-VOUCHER14NB-4TOG021,"2,000.00",CORNFORTH PARTNERSHIP.
Assistant Chief Executive,Partnerships & Community Engagement Div.,Supplies and Services,384086,Miscellaneous Expenses,02-Jun-2015,2908086-VOUCHER14NB-BASH019,"2,421.00",COUNDON & LEEHOLME COMMUNITY ASSOCIATION.
Assistant Chief Executive,Partnerships & Community Engagement Div.,Supplies and Services,384086,Miscellaneous Expenses,02-Jun-2015,2908115-VOUCHER14NB-STAN020,"5,000.00",DURHAM CHRISTIAN PARTNERSHIP.
Assistant Chief Executive,Partnerships & Community Engagement Div.,Supplies and Services,384086,Miscellaneous Expenses,02-Jun-2015,2908273-VOUCHER15NB-EDUR001,"3,000.00",PETERLEE DEAF CLUB.
Assistant Chief Executive,Partnerships & Community Engagement Div.,Supplies and Services,384086,Miscellaneous Expenses,02-Jun-2015,2908323-VOUCHER14NB-DCTY032,"2,500.00",SHERBURN HILL HUB CIO.
Children and Adult Services,Childrens Services,Third Party Payments,440027,Other Third Party Payments,02-Jun-2015,2907580-1028952,807.12,REDACTED - PAYMENT TO INDIVIDUAL
Children and Adult Services,Childrens Services,Third Party Payments,440001,Other Third Party Payments,02-Jun-2015,2907941-1029419,594.00,REDACTED - PAYMENT TO INDIVIDUAL
Children and Adult Services,Education,Transport,230008,Contract Hire,02-Jun-2015,2907991-51503,"1,095.00",24/7 TAXI SERVICES LTD.
Children and Adult Services,Education,Transport,230008,Contract Hire,02-Jun-2015,2907991-51504,675.00,24/7 TAXI SERVICES LTD.
Children and Adult Services,Education,Transport,230006,Contract Hire,02-Jun-2015,2907991-51505,"1,072.00",24/7 TAXI SERVICES LTD.
Children and Adult Services,Education,Transport,230006,Contract Hire,02-Jun-2015,2907991-51506,708.00,24/7 TAXI SERVICES LTD.
Children and Adult Services,Education,Transport,230008,Contract Hire,02-Jun-2015,2907991-51507,836.00,24/7 TAXI SERVICES LTD.
Children and Adult Services,Education,Transport,230008,Contract Hire,02-Jun-2015,2907991-51508,"1,850.00",24/7 TAXI SERVICES LTD.
Children and Adult Services,Education,Transport,230008,Contract Hire,02-Jun-2015,2907996-5/2/15,826.00,ABA TAXIS.
Children and Adult Services,Education,Transport,230006,Contract Hire,02-Jun-2015,2907997-F592MAY,720.00,AC TAXIS.
Children and Adult Services,Education,Third Party Payments,430100,Rendered by Private Contractors,02-Jun-2015,2908005-1,"1,344.00",ANDREW LARMOUTH.
Children and Adult Services,Education,Transport,230008,Contract Hire,02-Jun-2015,2908013-DCC6MAY15,"2,448.00",ATLAS TAXIS BISHOP AUCKLAND.
Children and Adult Services,Education,Transport,230008,Contract Hire,02-Jun-2015,2908023-10MAY15,"1,200.00",BEELINE PRIVATE HIRE.
Children and Adult Services,Education,Transport,230008,Contract Hire,02-Jun-2015,2908023-9MAY15,825.00,BEELINE PRIVATE HIRE.
Children and Adult Services,Education,Transport,230008,Contract Hire,02-Jun-2015,2908024-44,"1,395.00",BEELINE TAXIS.
Children and Adult Services,Education,Transport,230008,Contract Hire,02-Jun-2015,2908040-BZ00154,736.00,BREZ`S TAXIS.
Children and Adult Services,Education,Transport,230008,Contract Hire,02-Jun-2015,2908040-BZ00155,"1,170.00",BREZ`S TAXIS.
Children and Adult Services,Childrens Services,Supplies and Services,372009,Subscriptions,02-Jun-2015,2908041-LIC128350,"3,046.40",BRITISH ASSOCIATION FOR ADOPTION & FOSTERING BAAF.
Dedicated Schools Grant,Dedicated Schools Grant,Transport,230010,Contract Hire,02-Jun-2015,2908048-P04809-MAY,800.00,C & R TAXIS.
Children and Adult Services,Education,Transport,230008,Contract Hire,02-Jun-2015,2908049-BIL0057,"1,200.00",CA MUSGROVE.
Children and Adult Services,Childrens Services,Employees,080025,Agency Staff,02-Jun-2015,2908061-2307798,838.00,CELSIAN.
Children and Adult Services,Education,Transport,230008,Contract Hire,02-Jun-2015,2908098-MEAD009,675.00,D IRVING T/A BJ TAXIS.
Children and Adult Services,Childrens Services,Employees,080025,Agency Staff,02-Jun-2015,2908120-0000035635,"2,925.00",EAST DURHAM COLLEGE.
Children and Adult Services,Head of Adults,Third Party Payments,471101,Purchase of Care,02-Jun-2015,2908162-CAS-06-2015-003,"15,378.24",HIGHFIELD HOUSE.
Children and Adult Services,Education,Supplies and Services,384199,Miscellaneous Expenses,02-Jun-2015,2908179-758,735.65,JIGSAW THERAPY SERVICES.
Children and Adult Services,Education,Transport,230008,Contract Hire,02-Jun-2015,2908186-MAY-15,"2,240.00",KD TAXIS.
Children and Adult Services,Education,Transport,230008,Contract Hire,02-Jun-2015,2908204-2150,"1,140.00",LOCAL TRANSPORT LTD.
Children and Adult Services,Education,Transport,230008,Contract Hire,02-Jun-2015,2908204-2151,600.00,LOCAL TRANSPORT LTD.
Children and Adult Services,Childrens Services,Transport,230005,Contract Hire,02-Jun-2015,2908204-2161,"1,390.00",LOCAL TRANSPORT LTD.
Children and Adult Services,Childrens Services,Transport,230005,Contract Hire,02-Jun-2015,2908204-2172,742.00,LOCAL TRANSPORT LTD.
Children and Adult Services,Education,Construction Work,908105,Construction work,02-Jun-2015,2908209-18955,660.00,LUCION ENVIRONMENTAL LLP LTD.
Children and Adult Services,Childrens Services,Supplies and Services,364301,Grants to Voluntary Organisations,02-Jun-2015,2908222-CAS-06-2015-004,"1,151.34",REDACTED - PAYMENT TO INDIVIDUAL
Children and Adult Services,Education,Transport,230008,Contract Hire,02-Jun-2015,2908241-8B/MAY,795.00,MR RAYMOND RENWICK.
Children and Adult Services,Education,Transport,230008,Contract Hire,02-Jun-2015,2908241-9A,"1,120.00",MR RAYMOND RENWICK.
Dedicated Schools Grant,Dedicated Schools Grant,Transport,230010,Contract Hire,02-Jun-2015,2908243-50,870.00,MRS ANNE BOWMAN T/A ANNES CARS.
Children and Adult Services,Education,Transport,230007,Contract Hire,02-Jun-2015,2908271-27A,560.00,PETER HOLMES T/A PETERS TAXIS.
Children and Adult Services,Childrens Services,Transport,230005,Contract Hire,02-Jun-2015,2908302-341,"1,425.00",ROAD RUNNERS (NE) LTD.
Children and Adult Services,Childrens Services,Transport,230005,Contract Hire,02-Jun-2015,2908302-342-31/5/15,"1,418.00",ROAD RUNNERS (NE) LTD.
Children and Adult Services,Childrens Services,Transport,230005,Contract Hire,02-Jun-2015,2908302-359,"1,425.00",ROAD RUNNERS (NE) LTD.
Children and Adult Services,Education,Transport,230007,Contract Hire,02-Jun-2015,2908303-140316,"4,633.50",ROBERTS TOURS.
Children and Adult Services,Education,Transport,230008,Contract Hire,02-Jun-2015,2908305-1620,"1,725.00",RONS TAXIS.
Children and Adult Services,Education,Transport,230008,Contract Hire,02-Jun-2015,2908305-1621,"1,526.25",RONS TAXIS.
Children and Adult Services,Education,Transport,230007,Contract Hire,02-Jun-2015,2908305-1622,556.00,RONS TAXIS.
Children and Adult Services,Childrens Services,Supplies and Services,364353,Grants to Voluntary Organisations,02-Jun-2015,2908311-CAS-05-2015-124,"1,924.45",SC MELBOURNE STREET MANAGEMENT LTD.
Children and Adult Services,Education,Transport,230008,Contract Hire,02-Jun-2015,2908324-017A,"1,050.00",SHOEY`S TAXIS.
Children and Adult Services,Education,Transport,230008,Contract Hire,02-Jun-2015,2908325-71750,"1,650.00",SHOTTON PRIVATE HIRE.
Children and Adult Services,Education,Transport,230008,Contract Hire,02-Jun-2015,2908325-71752,"2,160.00",SHOTTON PRIVATE HIRE.
Children and Adult Services,Education,Transport,230008,Contract Hire,02-Jun-2015,2908329-55A,"1,087.50",SIMONS TAXIS.
Children and Adult Services,Head of Adults,Transport,230005,Contract Hire,02-Jun-2015,2908329-56A,524.00,SIMONS TAXIS.
Children and Adult Services,Education,Transport,230008,Contract Hire,02-Jun-2015,2908333-151A,975.00,SJ MACKENZIE T/A SCOTTS TAXIS.
Children and Adult Services,Education,Transport,230008,Contract Hire,02-Jun-2015,2908335-134,690.00,SODA TAXIS.
Children and Adult Services,Education,Transport,230008,Contract Hire,02-Jun-2015,2908335-313,910.00,SODA TAXIS.
Children and Adult Services,Education,Transport,230008,Contract Hire,02-Jun-2015,2908335-420,840.00,SODA TAXIS.
Children and Adult Services,Education,Transport,230008,Contract Hire,02-Jun-2015,2908337-2196,840.00,SPENNYMOOR TAXIS.
Children and Adult Services,Education,Transport,230008,Contract Hire,02-Jun-2015,2908337-2419,900.00,SPENNYMOOR TAXIS.
Children and Adult Services,Education,Transport,230008,Contract Hire,02-Jun-2015,2908337-AAK1972,"1,467.50",SPENNYMOOR TAXIS.
Children and Adult Services,Education,Transport,230008,Contract Hire,02-Jun-2015,2908337-JJJC4419,"1,340.00",SPENNYMOOR TAXIS.
Children and Adult Services,Education,Transport,230007,Contract Hire,02-Jun-2015,2908342-9,720.00,STEVEN DODDS T/A SD TAXIS.
Children and Adult Services,Education,Transport,230007,Contract Hire,02-Jun-2015,2908359-5008/SA09,"1,320.00",TED WILFORD COACHES.
Children and Adult Services,Education,Transport,230007,Contract Hire,02-Jun-2015,2908359-6032/1108,"1,350.00",TED WILFORD COACHES.
Children and Adult Services,Head of Adults,Third Party Payments,479101,Purchase of Care,02-Jun-2015,2908360-4810005037,"3,333.33",TEES ESK & WEAR VALLEYS NHS FOUNDATION TRUST.
Children and Adult Services,Education,Supplies and Services,384199,Miscellaneous Expenses,02-Jun-2015,2908380-SIGN/00000091,502.00,UNITE LTD.
Children and Adult Services,Planning & Service Strategy,Supplies and Services,338091,Services,02-Jun-2015,2908385-91326974,"2,285.00",UNIVERSITY OF NORTHUMBRIA.
Children and Adult Services,Planning & Service Strategy,Supplies and Services,338091,Services,02-Jun-2015,2908385-91326984,"2,285.00",UNIVERSITY OF NORTHUMBRIA.
Children and Adult Services,Planning & Service Strategy,Supplies and Services,338091,Services,02-Jun-2015,2908385-91326989,"2,285.00",UNIVERSITY OF NORTHUMBRIA.
Children and Adult Services,Childrens Services,Employees,080025,Agency Staff,02-Jun-2015,2908390-158187,760.00,VISION FOR EDUCATION LTD.
Children and Adult Services,Childrens Services,Employees,080025,Agency Staff,02-Jun-2015,2908390-158188,760.00,VISION FOR EDUCATION LTD.
Children and Adult Services,Childrens Services,Supplies and Services,304649,Equipment and Materials,02-Jun-2015,2908399-497264599,655.06,YORKSHIRE PURCHASING ORGANISATION.
Neighbourhood Services,Technical Services,Supplies and Services,304221,Equipment and Materials,02-Jun-2015,2908001-21365583,616.63,AGGREGATE INDUSTRIES UK LTD.
Neighbourhood Services,Technical Services,Supplies and Services,304221,Equipment and Materials,02-Jun-2015,2908001-21414067,920.94,AGGREGATE INDUSTRIES UK LTD.
Neighbourhood Services,Technical Services,Supplies and Services,304221,Equipment and Materials,02-Jun-2015,2908001-21414068,837.96,AGGREGATE INDUSTRIES UK LTD.
Neighbourhood Services,Technical Services,Supplies and Services,304221,Equipment and Materials,02-Jun-2015,2908001-21414070,735.43,AGGREGATE INDUSTRIES UK LTD.
Neighbourhood Services,Culture & Sport,Supplies and Services,338047,Services,02-Jun-2015,2908015-SIN011392,"1,500.00",AVALON PROMOTIONS LTD.
Neighbourhood Services,Direct Services,Supplies and Services,304259,Equipment and Materials,02-Jun-2015,2908062-139511,"1,856.00",CHAS LONG & SON (AGGREGATES) LTD.
Neighbourhood Services,Direct Services,Third Party Payments,430100,Rendered by Private Contractors,02-Jun-2015,2908068-4152,"3,727.20",CITY FABRICATIONS.
Neighbourhood Services,Technical Services,Employees,040149,Recruitment Instruction and Training,02-Jun-2015,2908070-2015/278,920.00,CIVIL ENGINEERING TRAINING GROUP (NORTH EAST).
Neighbourhood Services,Culture & Sport,Supplies and Services,338099,Services,02-Jun-2015,2908090-INV-00035,"1,628.22",CRAIG WALTON.
Neighbourhood Services,Direct Services,Third Party Payments,430100,Rendered by Private Contractors,02-Jun-2015,2908177-2893,"1,052.90",JAMES INGLEFORD SCAFFOLDING LTD.
Neighbourhood Services,Technical Services,Supplies and Services,304221,Equipment and Materials,02-Jun-2015,2908185-CNI21773/D,"2,682.30",JT DOVE LTD.
Neighbourhood Services,Technical Services,Third Party Payments,430100,Rendered by Private Contractors,02-Jun-2015,2908214-5079,"1,296.00",MAKEPEACE MOTORS.
Neighbourhood Services,Technical Services,Supplies and Services,304221,Equipment and Materials,02-Jun-2015,2908220-ZDB0022104,"4,419.68",MARSHALLS MONO LTD.
Neighbourhood Services,Direct Services,Supplies and Services,384194,Miscellaneous Expenses,02-Jun-2015,2908253-24271,"2,125.00",NIRAMAX GROUP LTD.
Neighbourhood Services,Technical Services,Stock,926900,Stock in hand-Inventory system,02-Jun-2015,2908265-XL141878,"2,501.00",PARK ELECTRICAL DISTRIBUTORS LTD.
Neighbourhood Services,Direct Services,Third Party Payments,460305,Contract Payments,02-Jun-2015,2908332-29697281,"8,980.00",SITA UK LTD.
Neighbourhood Services,Technical Services,Supplies and Services,304221,Equipment and Materials,02-Jun-2015,2908344-071978,"2,721.84",STONEGRAVE AGGREGATES LTD.
Neighbourhood Services,Direct Services,Supplies and Services,304221,Equipment and Materials,02-Jun-2015,2908352-1583487,823.59,T CROSSLING & CO LTD.
Neighbourhood Services,Culture & Sport,Supplies and Services,304221,Equipment and Materials,02-Jun-2015,2908368-2-260415,"1,316.66",THRILLS & SKILLS FOR LIFE.
Neighbourhood Services,Culture & Sport,Supplies and Services,338047,Services,02-Jun-2015,2908383-22314028564-1,"1,378.09",UNIVERSAL PICTURES INTERNATIONAL UK & EIRE LTD.
Neighbourhood Services,Culture & Sport,Supplies and Services,338047,Services,02-Jun-2015,2908383-22314028565-1,808.96,UNIVERSAL PICTURES INTERNATIONAL UK & EIRE LTD.
RED HRA,Housing Revenue Account,Supplies and Services,338066,Services,02-Jun-2015,2908249-DCC,"95,835.19",NEPRO LTD.
Regeneration & Economic Development,Economic Development and Housing,Cap Exp on Grants & Other Financial Assistance (REFCUS),918401,Capital grants,02-Jun-2015,2907999-RED-06-2015-007,"8,838.00",ACORN PROPERTY RENTALS UK.
Regeneration & Economic Development,Transport and Contracted Services,Construction Work,908105,Construction work,02-Jun-2015,2908046-NO22284,"2,263.43",BUS SHELTERS LTD.
Regeneration & Economic Development,Transport and Contracted Services,Construction Work,908105,Construction work,02-Jun-2015,2908046-NO22285,"2,263.43",BUS SHELTERS LTD.
Regeneration & Economic Development,Economic Development and Housing,Cap Exp on Grants & Other Financial Assistance (REFCUS),918401,Capital grants,02-Jun-2015,2908105-RED-06-2015-006,"3,307.50",DIGON PROPERTY SERVICES LTD.
Regeneration & Economic Development,Economic Development and Housing,Cap Exp on Grants & Other Financial Assistance (REFCUS),918401,Capital grants,02-Jun-2015,2908119-RED-06-2015-016,"6,466.93",EASIBATHE LTD.
Regeneration & Economic Development,Economic Development and Housing,Cap Exp on Grants & Other Financial Assistance (REFCUS),918401,Capital grants,02-Jun-2015,2908144-RED-06-2015-015,"5,070.00",REDACTED - PAYMENT TO INDIVIDUAL
Regeneration & Economic Development,Economic Development and Housing,Supplies and Services,384199,Miscellaneous Expenses,02-Jun-2015,2908149-1259,"3,750.00",GEOCAST TV LTD.
Regeneration & Economic Development,Economic Development and Housing,Supplies and Services,384700,Miscellaneous Expenses,02-Jun-2015,2908237-RED-06-2015-011,"1,000.00",MR JOSEPH MCPARTLAND.
Regeneration & Economic Development,Economic Development and Housing,Supplies and Services,384999,Miscellaneous Expenses,02-Jun-2015,2908343-8CWALK01,500.00,REDACTED - PAYMENT TO INDIVIDUAL
Regeneration & Economic Development,Economic Development and Housing,Supplies and Services,384437,Miscellaneous Expenses,02-Jun-2015,2908395-OrderNo1434711,"9,478.41",WESTERN UNION BUSINESS SOLUTIONS.
Resources,I.C.T. Services,Income,720721,Fees and Charges,02-Jun-2015,2908076-3980011396,"25,863.10",CO DURHAM & DARLINGTON NHS FOUNDATION TRUST.
Assistant Chief Executive,Partnerships & Community Engagement Div.,Cap Exp on Grants & Other Financial Assistance (REFCUS),918004,Contributions to other bodies,03-Jun-2015,2908537-VOUCHER14AB-DCTY020,"3,302.00",DURHAM & DARLINGTON FIRE & RESCUE.
Assistant Chief Executive,Partnerships & Community Engagement Div.,Transfer Payments,525030,Other,03-Jun-2015,2908542-VOUCHER14AB-CHES006SGF006,"1,138.00",DURHAM POLICE & CRIME COMMISSIONER.
Assistant Chief Executive,Partnerships & Community Engagement Div.,Transfer Payments,525030,Other,03-Jun-2015,2908542-VOUCHER14AB-MDUR005,"15,000.00",DURHAM POLICE & CRIME COMMISSIONER.
Assistant Chief Executive,Policy & Communications Division,Supplies and Services,384956,Miscellaneous Expenses,03-Jun-2015,2908755-Q360103,"11,991.00",NLA MEDIA ACCESS LTD.
Children and Adult Services,Public Health,Third Party Payments,460803,Contract Payments,03-Jun-2015,2908682,596.00,LLOYDS PHARMACY.
Children and Adult Services,Education,Transport,230008,Contract Hire,03-Jun-2015,240035-20,"2,184.00",MR M MCNAMARA.
Children and Adult Services,Planning & Service Strategy,Intangible Assets,917003,Software capitalised implementation fees,03-Jun-2015,240070-11091,"14,000.00",OXFORD COMPUTER CONSULTANTS.
Children and Adult Services,Planning & Service Strategy,Intangible Assets,917003,Software capitalised implementation fees,03-Jun-2015,240070-11092,"5,500.00",OXFORD COMPUTER CONSULTANTS.
Children and Adult Services,Childrens Services,Premises,108099,Service Repairs and Maintenance,03-Jun-2015,240088-AR034616,755.15,VOKES AIR LTD.
Children and Adult Services,Central Charges (CYPS),Creditors,952258,Creditor-West Durham Cluster,03-Jun-2015,240091-031415,869.12,REDACTED - PAYMENT TO INDIVIDUAL
Children and Adult Services,Education,Transport,230008,Contract Hire,03-Jun-2015,2908415-4/2/15,826.00,ABA TAXIS.
Children and Adult Services,Childrens Services,Supplies and Services,342513,Computers and Communications,03-Jun-2015,2908423-40992,"1,409.00",ALARM RADIO MONITORING LTD.
Children and Adult Services,Education,Transport,230007,Contract Hire,03-Jun-2015,2908437-03288,596.20,ATLAS TAXIS CONSETT.
Children and Adult Services,Education,Transport,230006,Contract Hire,03-Jun-2015,2908437-03290,965.60,ATLAS TAXIS CONSETT.
Children and Adult Services,Education,Transport,230007,Contract Hire,03-Jun-2015,2908437-03291,660.00,ATLAS TAXIS CONSETT.
Children and Adult Services,Education,Transport,230006,Contract Hire,03-Jun-2015,2908437-03292,"1,098.00",ATLAS TAXIS CONSETT.
Children and Adult Services,Public Health,Third Party Payments,460803,Contract Payments,03-Jun-2015,2908461-FYR53/4/15,625.00,BOOTS THE CHEMISTS LTD.
Children and Adult Services,Public Health,Third Party Payments,460803,Contract Payments,03-Jun-2015,2908463-7473CA041501,748.00,BOOTS THE CHEMISTS LTD.
Children and Adult Services,Public Health,Third Party Payments,460803,Contract Payments,03-Jun-2015,2908464-FCH78,555.00,BOOTS THE CHEMISTS LTD.
Children and Adult Services,Education,Transport,230008,Contract Hire,03-Jun-2015,2908505-582,896.00,CONNORS MINI BUSES.
Children and Adult Services,Education,Transport,230008,Contract Hire,03-Jun-2015,2908505-583,924.00,CONNORS MINI BUSES.
Children and Adult Services,Childrens Services,Supplies and Services,304335,Equipment and Materials,03-Jun-2015,2908510-80204,525.88,CORPORATE COMPUTER SUPPLIES LTD.
Children and Adult Services,Head of Adults,Third Party Payments,478151,Purchase of Care,03-Jun-2015,2908517-0000178945,"5,016.16",CREATIVE SUPPORT LTD.
Children and Adult Services,Education,Transport,230008,Contract Hire,03-Jun-2015,2908521-G/HEAD005,"1,027.50",D IRVING T/A BJ TAXIS.
Children and Adult Services,Education,Transport,230008,Contract Hire,03-Jun-2015,2908525-MAY0115,"1,500.00",DALELINK PRIVATE HIRE.
Children and Adult Services,Education,Supplies and Services,372009,Subscriptions,03-Jun-2015,2908575-H8363,"2,130.08",FRETWELL DOWNING HOSPITALITY.
Children and Adult Services,Childrens Services,Transfer Payments,515207,Social Services Clients,03-Jun-2015,2908614-EQUINESKILLS-JW,"1,170.00",HOME ON THE RANGE LTD.
Children and Adult Services,Education,Transport,230008,Contract Hire,03-Jun-2015,2908619-0155,"1,632.40",I CLYDESDALE T/A BURNOPFIELD TAXIS.
Children and Adult Services,Education,Transport,230008,Contract Hire,03-Jun-2015,2908619-158,980.00,I CLYDESDALE T/A BURNOPFIELD TAXIS.
Children and Adult Services,Education,Transport,230008,Contract Hire,03-Jun-2015,2908653-0067,"1,040.00",KEN CHAMBERS T/A SHILDON TRANSPORT LTD.
Children and Adult Services,Education,Transport,230008,Contract Hire,03-Jun-2015,2908653-0068,675.00,KEN CHAMBERS T/A SHILDON TRANSPORT LTD.
Children and Adult Services,Education,Transport,230008,Contract Hire,03-Jun-2015,2908653-0069,"1,632.00",KEN CHAMBERS T/A SHILDON TRANSPORT LTD.
Dedicated Schools Grant,Dedicated Schools Grant,Transport,230010,Contract Hire,03-Jun-2015,2908655-00619,"1,275.00",KENNAS CABS.
Dedicated Schools Grant,Dedicated Schools Grant,Transport,230010,Contract Hire,03-Jun-2015,2908663-4D,840.00,L & R PRIVATE HIRE.
Dedicated Schools Grant,Dedicated Schools Grant,Transport,230010,Contract Hire,03-Jun-2015,2908663-4DD,"1,120.00",L & R PRIVATE HIRE.
Children and Adult Services,Education,Transport,230008,Contract Hire,03-Jun-2015,2908671-113,"1,155.00",LEE`S TAXIS.
Children and Adult Services,Education,Transport,230008,Contract Hire,03-Jun-2015,2908671-114,"1,176.00",LEE`S TAXIS.
Children and Adult Services,Education,Transport,230008,Contract Hire,03-Jun-2015,2908671-115,798.00,LEE`S TAXIS.
Children and Adult Services,Education,Supplies and Services,338094,Services,03-Jun-2015,2908672-6000161,787.50,LEISUREWORKS.
Children and Adult Services,Education,Transport,230008,Contract Hire,03-Jun-2015,2908692-21,"1,125.00",M BEHAN T/A M & M`S TAXIS.
Children and Adult Services,Education,Transport,230006,Contract Hire,03-Jun-2015,2908702-MCD7780,636.00,MCDONALD TRAVEL.
Children and Adult Services,Childrens Services,Supplies and Services,364301,Grants to Voluntary Organisations,03-Jun-2015,2908716-CAS-05-2015-092,626.00,REDACTED - PAYMENT TO INDIVIDUAL
Children and Adult Services,Education,Transport,230008,Contract Hire,03-Jun-2015,2908727-88G3561,"1,005.00",MR GS ANDERSON.
Children and Adult Services,Education,Transport,230008,Contract Hire,03-Jun-2015,2908728-DSR/05/15,840.00,MR J AGAR T/A PARK TAXIS.
Dedicated Schools Grant,Dedicated Schools Grant,Third Party Payments,440080,Other Third Party Payments,03-Jun-2015,2908749-M0017776,"21,750.10",NEWCASTLE COLLEGE.
Children and Adult Services,Education,Transport,230008,Contract Hire,03-Jun-2015,2908750-1800007390547,"12,760.77",NEWCASTLE UPON TYNE CITY COUNCIL.
Children and Adult Services,Education,Transport,230008,Contract Hire,03-Jun-2015,2908776-DCC29,"1,280.00",PAUL`S TAXIS..
Children and Adult Services,Education,Transport,230008,Contract Hire,03-Jun-2015,2908776-DCC30,"1,200.00",PAUL`S TAXIS..
Children and Adult Services,Education,Transport,230008,Contract Hire,03-Jun-2015,2908776-DCC31,990.00,PAUL`S TAXIS..
Children and Adult Services,Education,Transport,230008,Contract Hire,03-Jun-2015,2908780-MAY2015,750.00,PEPPA`S CABS.
Children and Adult Services,Education,Transport,230008,Contract Hire,03-Jun-2015,2908781-494,960.00,PETERLEE EXECUTIVE CARS.
Children and Adult Services,Education,Transport,230008,Contract Hire,03-Jun-2015,2908781-496,"1,080.00",PETERLEE EXECUTIVE CARS.
Children and Adult Services,Education,Transport,230008,Contract Hire,03-Jun-2015,2908797-150509,840.00,PRATTS TAXIS.
Children and Adult Services,Education,Transport,230008,Contract Hire,03-Jun-2015,2908797-150511,"1,200.00",PRATTS TAXIS.
Dedicated Schools Grant,Dedicated Schools Grant,Transport,230010,Contract Hire,03-Jun-2015,2908797-150512,961.60,PRATTS TAXIS.
Children and Adult Services,Planning & Service Strategy,Supplies and Services,340001,Postages,03-Jun-2015,2908819-9049764214,881.41,ROYAL MAIL GROUP PLC.
Children and Adult Services,Education,Transport,230007,Contract Hire,03-Jun-2015,2908824-4079/12,910.00,S & S TRAVEL LTD.
Children and Adult Services,Head of Adults,Third Party Payments,479101,Purchase of Care,03-Jun-2015,2908828-6030000234,972.36,SANCTUARY HOUSING.
Children and Adult Services,Head of Adults,Third Party Payments,479101,Purchase of Care,03-Jun-2015,2908828-6030000240,"1,931.40",SANCTUARY HOUSING.
Children and Adult Services,Head of Adults,Third Party Payments,479101,Purchase of Care,03-Jun-2015,2908828-6030000774,"2,071.26",SANCTUARY HOUSING.
Children and Adult Services,Head of Adults,Third Party Payments,479101,Purchase of Care,03-Jun-2015,2908828-6030002732,"2,071.26",SANCTUARY HOUSING.
Children and Adult Services,Head of Adults,Supplies and Services,338365,Services,03-Jun-2015,2908836-570423,550.90,SIDHILL LTD.
Children and Adult Services,Childrens Services,Third Party Payments,425041,Rendered by Voluntary Organisations,03-Jun-2015,2908852-995810,"2,250.00",ST FRANCIS CHILDRENS SOCIETY.
Children and Adult Services,Education,Transport,230007,Contract Hire,03-Jun-2015,2908857-14013,"1,335.00",STANLEY TRAVEL (NORTH EAST) LTD.
Children and Adult Services,Education,Transport,230007,Contract Hire,03-Jun-2015,2908857-14014,"1,650.00",STANLEY TRAVEL (NORTH EAST) LTD.
Children and Adult Services,Education,Transport,230008,Contract Hire,03-Jun-2015,2908857-14015,"1,484.00",STANLEY TRAVEL (NORTH EAST) LTD.
Children and Adult Services,Education,Transport,230008,Contract Hire,03-Jun-2015,2908857-14021,778.50,STANLEY TRAVEL (NORTH EAST) LTD.
Children and Adult Services,Education,Transport,230007,Contract Hire,03-Jun-2015,2908857-14024,"1,530.00",STANLEY TRAVEL (NORTH EAST) LTD.
Children and Adult Services,Education,Transport,230008,Contract Hire,03-Jun-2015,2908857-14025,525.00,STANLEY TRAVEL (NORTH EAST) LTD.
Children and Adult Services,Education,Transport,230007,Contract Hire,03-Jun-2015,2908857-14027,780.00,STANLEY TRAVEL (NORTH EAST) LTD.
Children and Adult Services,Childrens Services,Supplies and Services,364352,Grants to Voluntary Organisations,03-Jun-2015,2908860-D1IN/00018408,"1,431.58",STONHAM HOUSING ASSOCIATION LTD.
Children and Adult Services,Childrens Services,Supplies and Services,364352,Grants to Voluntary Organisations,03-Jun-2015,2908860-D1IN/00018503,"2,024.72",STONHAM HOUSING ASSOCIATION LTD.
Children and Adult Services,Childrens Services,Supplies and Services,364352,Grants to Voluntary Organisations,03-Jun-2015,2908860-D1IN/00018504,"2,024.72",STONHAM HOUSING ASSOCIATION LTD.
Children and Adult Services,Childrens Services,Supplies and Services,364352,Grants to Voluntary Organisations,03-Jun-2015,2908860-D1IN/00018505,"1,675.62",STONHAM HOUSING ASSOCIATION LTD.
Children and Adult Services,Childrens Services,Supplies and Services,364352,Grants to Voluntary Organisations,03-Jun-2015,2908860-D1IN/00018506,"1,675.62",STONHAM HOUSING ASSOCIATION LTD.
Children and Adult Services,Childrens Services,Supplies and Services,364352,Grants to Voluntary Organisations,03-Jun-2015,2908860-D1IN/00018507,"1,675.62",STONHAM HOUSING ASSOCIATION LTD.
Children and Adult Services,Education,Supplies and Services,338027,Services,03-Jun-2015,2908861-26,"1,257.40",SUE SMITH..
Children and Adult Services,Childrens Services,Third Party Payments,425040,Rendered by Voluntary Organisations,03-Jun-2015,2908865-163939,910.00,SWIIS FOSTER CARE LTD.
Children and Adult Services,Childrens Services,Third Party Payments,425040,Rendered by Voluntary Organisations,03-Jun-2015,2908865-163941,"1,074.99",SWIIS FOSTER CARE LTD.
Children and Adult Services,Childrens Services,Third Party Payments,425040,Rendered by Voluntary Organisations,03-Jun-2015,2908865-163942,891.87,SWIIS FOSTER CARE LTD.
Children and Adult Services,Childrens Services,Third Party Payments,425040,Rendered by Voluntary Organisations,03-Jun-2015,2908865-163943,900.97,SWIIS FOSTER CARE LTD.
Children and Adult Services,Childrens Services,Third Party Payments,425040,Rendered by Voluntary Organisations,03-Jun-2015,2908865-163944,"1,068.97",SWIIS FOSTER CARE LTD.
Neighbourhood Services,Culture & Sport,Supplies and Services,338099,Services,03-Jun-2015,239991-JAN15/MAR15,656.08,ATHOL HOLMES.
Neighbourhood Services,EnvironmentHealth & Consumer Protection,Income,720335,Fees and Charges,03-Jun-2015,240021-NEI-INC-05-2015-027,"1,905.00",JD WETHERSPOON PLC.
Neighbourhood Services,Technical Services,Stock,926900,Stock in hand-Inventory system,03-Jun-2015,2908403-179969,659.40,(PASS) PORTABLE APPLIANCE SAFETY SERVICES LTD.
Neighbourhood Services,Technical Services,Supplies and Services,304221,Equipment and Materials,03-Jun-2015,2908421-21373610,973.10,AGGREGATE INDUSTRIES UK LTD.
Neighbourhood Services,Technical Services,Supplies and Services,304221,Equipment and Materials,03-Jun-2015,2908421-21414066,"1,632.28",AGGREGATE INDUSTRIES UK LTD.
Neighbourhood Services,Technical Services,Supplies and Services,304221,Equipment and Materials,03-Jun-2015,2908421-21414069,"1,849.04",AGGREGATE INDUSTRIES UK LTD.
Neighbourhood Services,Technical Services,Supplies and Services,304221,Equipment and Materials,03-Jun-2015,2908421-21417120,"1,099.81",AGGREGATE INDUSTRIES UK LTD.
Neighbourhood Services,Technical Services,Supplies and Services,304221,Equipment and Materials,03-Jun-2015,2908421-21417234,"1,168.63",AGGREGATE INDUSTRIES UK LTD.
Neighbourhood Services,Technical Services,Supplies and Services,304221,Equipment and Materials,03-Jun-2015,2908421-21417235,"1,255.25",AGGREGATE INDUSTRIES UK LTD.
Neighbourhood Services,Technical Services,Supplies and Services,304221,Equipment and Materials,03-Jun-2015,2908421-21417236,632.82,AGGREGATE INDUSTRIES UK LTD.
Neighbourhood Services,Technical Services,Supplies and Services,304221,Equipment and Materials,03-Jun-2015,2908421-21417237,722.78,AGGREGATE INDUSTRIES UK LTD.
Neighbourhood Services,Technical Services,Supplies and Services,304221,Equipment and Materials,03-Jun-2015,2908421-21417238,733.32,AGGREGATE INDUSTRIES UK LTD.
Neighbourhood Services,Technical Services,Supplies and Services,304221,Equipment and Materials,03-Jun-2015,2908421-21417239,"1,018.85",AGGREGATE INDUSTRIES UK LTD.
Neighbourhood Services,Direct Services,Supplies and Services,304259,Equipment and Materials,03-Jun-2015,2908439-393,"4,001.84",AVANTI LANDSCAPE SUPPLIES LTD T/A BRITISH FLORA.
Neighbourhood Services,Direct Services,Third Party Payments,430100,Rendered by Private Contractors,03-Jun-2015,2908440-29175,"1,149.00",AYCLIFFE FABRICATIONS LTD.
Neighbourhood Services,Direct Services,Supplies and Services,304221,Equipment and Materials,03-Jun-2015,2908477-851501286,519.80,CARLISLE CONSTRUCTION MATERIALS LTD.
Neighbourhood Services,Direct Services,Transport,210057,Repair and Maintenance of Vehicles,03-Jun-2015,2908478-201209,"1,095.82",CARRS BILLINGTON AGRICULTURE.
Neighbourhood Services,Direct Services,Transport,210057,Repair and Maintenance of Vehicles,03-Jun-2015,2908478-201212,892.24,CARRS BILLINGTON AGRICULTURE.
Neighbourhood Services,Direct Services,Transport,210057,Repair and Maintenance of Vehicles,03-Jun-2015,2908478-201215,616.46,CARRS BILLINGTON AGRICULTURE.
Neighbourhood Services,Direct Services,Transport,210057,Repair and Maintenance of Vehicles,03-Jun-2015,2908478-201220,"1,262.23",CARRS BILLINGTON AGRICULTURE.
Neighbourhood Services,Direct Services,Stock,926004,Stock,03-Jun-2015,2908478-201222,764.25,CARRS BILLINGTON AGRICULTURE.
Neighbourhood Services,Direct Services,Stock,926004,Stock,03-Jun-2015,2908478-201224,"1,195.18",CARRS BILLINGTON AGRICULTURE.
Neighbourhood Services,Direct Services,Third Party Payments,430100,Rendered by Private Contractors,03-Jun-2015,2908492-4170,"2,396.00",CITY FABRICATIONS.
Neighbourhood Services,Culture & Sport,Supplies and Services,384199,Miscellaneous Expenses,03-Jun-2015,2908533-BA-1,"5,000.00",DO YOU LOVE FOOD LTD.
Neighbourhood Services,Culture & Sport,Supplies and Services,338099,Services,03-Jun-2015,2908543-97,643.25,DURHAM SCENIC WORKSHOPS LTD.
Neighbourhood Services,Direct Services,Stock,926004,Stock,03-Jun-2015,2908577-216315250,800.73,FUCHS LUBRICANTS (UK) PLC.
Neighbourhood Services,Direct Services,Supplies and Services,304259,Equipment and Materials,03-Jun-2015,2908590-INV052985,780.92,GOTT TECHNICAL SERVICES LTD.
Neighbourhood Services,Technical Services,Stock,926900,Stock in hand-Inventory system,03-Jun-2015,2908593-06/555916,"1,107.73",GREENHAM TRADING LTD.
Neighbourhood Services,Direct Services,Stock,926004,Stock,03-Jun-2015,2908594-121925,"1,182.92",GREENLAY (GRASS MACHINERY) LTD.
Neighbourhood Services,Technical Services,Third Party Payments,430100,Rendered by Private Contractors,03-Jun-2015,2908598-SC5283,"131,296.50",HALL CONSTRUCTION SERVICES LTD.
Neighbourhood Services,Direct Services,Stock,926004,Stock,03-Jun-2015,2908606-535895,"17,401.23",HARVEST ENERGY LTD.
Neighbourhood Services,Direct Services,Third Party Payments,430100,Rendered by Private Contractors,03-Jun-2015,2908613-59003,"1,198.50",HOGARTH COACHWORKS LTD.
Neighbourhood Services,Technical Services,Stock,926900,Stock in hand-Inventory system,03-Jun-2015,2908625-487952,"2,424.80",INSTARMAC GROUP PLC.
Neighbourhood Services,Technical Services,Construction Work,908105,Construction work,03-Jun-2015,2908633-11219,"1,925.36",JACK COUPE & SONS LTD T/A COUPE LINE.
Neighbourhood Services,Technical Services,Construction Work,908105,Construction work,03-Jun-2015,2908633-11220,544.60,JACK COUPE & SONS LTD T/A COUPE LINE.
Neighbourhood Services,Technical Services,Construction Work,908105,Construction work,03-Jun-2015,2908633-11223,"1,197.47",JACK COUPE & SONS LTD T/A COUPE LINE.
Neighbourhood Services,Direct Services,Third Party Payments,430100,Rendered by Private Contractors,03-Jun-2015,2908634-2938,716.21,JAMES INGLEFORD SCAFFOLDING LTD.
Neighbourhood Services,Technical Services,Stock,926900,Stock in hand-Inventory system,03-Jun-2015,2908640-7185,820.00,JG UNIFORMS.
Neighbourhood Services,EnvironmentHealth & Consumer Protection,Supplies and Services,328041,Clothing Uniforms and Laundry,03-Jun-2015,2908640-7186,650.00,JG UNIFORMS.
Neighbourhood Services,Culture & Sport,Supplies and Services,338099,Services,03-Jun-2015,2908643-GALA2015MAY,"1,588.36",JOHN MURDOCH.
Neighbourhood Services,Direct Services,Premises,150015,Apportioned Exps of Operational Blds,03-Jun-2015,2908644-1481825,800.00,JOHN NIXON LTD.
Neighbourhood Services,Direct Services,Premises,150015,Apportioned Exps of Operational Blds,03-Jun-2015,2908644-1481826,800.00,JOHN NIXON LTD.
Neighbourhood Services,Direct Services,Premises,150015,Apportioned Exps of Operational Blds,03-Jun-2015,2908644-1481827,845.00,JOHN NIXON LTD.
Neighbourhood Services,Direct Services,Premises,150015,Apportioned Exps of Operational Blds,03-Jun-2015,2908644-1481828,800.00,JOHN NIXON LTD.
Neighbourhood Services,Direct Services,Premises,150015,Apportioned Exps of Operational Blds,03-Jun-2015,2908644-1481829,800.00,JOHN NIXON LTD.
Neighbourhood Services,Direct Services,Premises,150015,Apportioned Exps of Operational Blds,03-Jun-2015,2908644-1481830,800.00,JOHN NIXON LTD.
Neighbourhood Services,Direct Services,Premises,150015,Apportioned Exps of Operational Blds,03-Jun-2015,2908644-1481831,800.00,JOHN NIXON LTD.
Neighbourhood Services,Direct Services,Premises,150015,Apportioned Exps of Operational Blds,03-Jun-2015,2908644-1481832,800.00,JOHN NIXON LTD.
Neighbourhood Services,Direct Services,Premises,150015,Apportioned Exps of Operational Blds,03-Jun-2015,2908644-1481833,800.00,JOHN NIXON LTD.
Neighbourhood Services,Direct Services,Premises,150015,Apportioned Exps of Operational Blds,03-Jun-2015,2908644-1481834,800.00,JOHN NIXON LTD.
Neighbourhood Services,Direct Services,Premises,150015,Apportioned Exps of Operational Blds,03-Jun-2015,2908644-1481835,820.00,JOHN NIXON LTD.
Neighbourhood Services,Direct Services,Premises,150015,Apportioned Exps of Operational Blds,03-Jun-2015,2908644-1481836,800.00,JOHN NIXON LTD.
Neighbourhood Services,Direct Services,Premises,150015,Apportioned Exps of Operational Blds,03-Jun-2015,2908644-1481837,800.00,JOHN NIXON LTD.
Neighbourhood Services,Direct Services,Premises,150015,Apportioned Exps of Operational Blds,03-Jun-2015,2908644-1481838,800.00,JOHN NIXON LTD.
Neighbourhood Services,Direct Services,Premises,150015,Apportioned Exps of Operational Blds,03-Jun-2015,2908644-1481839,800.00,JOHN NIXON LTD.
Neighbourhood Services,Direct Services,Premises,150015,Apportioned Exps of Operational Blds,03-Jun-2015,2908644-1481840,840.00,JOHN NIXON LTD.
Neighbourhood Services,Direct Services,Premises,150015,Apportioned Exps of Operational Blds,03-Jun-2015,2908644-1481841,840.00,JOHN NIXON LTD.
Neighbourhood Services,Technical Services,Third Party Payments,430100,Rendered by Private Contractors,03-Jun-2015,2908647-0168,"15,444.00",JOSHUA THOMAS CONSTRUCTION LTD.
Neighbourhood Services,Direct Services,Supplies and Services,304221,Equipment and Materials,03-Jun-2015,2908650-NOI73916,"2,503.18",JT DOVE LTD.
Neighbourhood Services,Technical Services,Stock,926900,Stock in hand-Inventory system,03-Jun-2015,2908650-PHBII24051,"2,142.00",JT DOVE LTD.
Neighbourhood Services,Culture & Sport,Supplies and Services,384302,Miscellaneous Expenses,03-Jun-2015,2908651-001,"2,500.00",KAREN HOLMES T/A REFRILL.
Neighbourhood Services,Technical Services,Supplies and Services,328041,Clothing Uniforms and Laundry,03-Jun-2015,2908652-123973,"2,674.95",KELTIC LTD.
Neighbourhood Services,Technical Services,Supplies and Services,304221,Equipment and Materials,03-Jun-2015,2908665-9032656307,637.20,LAFARGE TARMAC TRADING LTD.
Neighbourhood Services,Culture & Sport,Supplies and Services,338047,Services,03-Jun-2015,2908673-RMT/2558,"3,986.54",LEOLA MUSIC LTD.
Neighbourhood Services,Culture & Sport,Supplies and Services,384199,Miscellaneous Expenses,03-Jun-2015,2908706-32,"1,177.44",MICHAEL LONG.
Neighbourhood Services,Culture & Sport,Supplies and Services,384199,Miscellaneous Expenses,03-Jun-2015,2908706-33,"1,716.55",MICHAEL LONG.
Neighbourhood Services,Direct Services,Stock,926004,Stock,03-Jun-2015,2908746-INVDUR00312105,705.48,NE TRUCK SPARES LTD.
Neighbourhood Services,Direct Services,Third Party Payments,430100,Rendered by Private Contractors,03-Jun-2015,2908773-534,"2,202.65",PARAMOUNT CEILINGS & PARTITIONS.
Neighbourhood Services,Technical Services,Stock,926900,Stock in hand-Inventory system,03-Jun-2015,2908774-BR522066,535.00,PARK ELECTRICAL DISTRIBUTORS LTD.
Neighbourhood Services,Direct Services,Third Party Payments,430100,Rendered by Private Contractors,03-Jun-2015,2908775-0795,720.00,PAUL TIERNEY.
Neighbourhood Services,Culture & Sport,Supplies and Services,304221,Equipment and Materials,03-Jun-2015,2908796-SIN428128,652.65,POWERHOUSE FITNESS.
Neighbourhood Services,Technical Services,Construction Work,908105,Construction work,03-Jun-2015,2908798-133970,850.00,PREMIER TRAFFIC MANAGEMENT LTD.
Neighbourhood Services,Technical Services,Third Party Payments,430100,Rendered by Private Contractors,03-Jun-2015,2908806-77281,550.00,PROTECTOR SECURITY GROUP LTD.
Neighbourhood Services,Technical Services,Supplies and Services,304221,Equipment and Materials,03-Jun-2015,2908806-77283,550.00,PROTECTOR SECURITY GROUP LTD.
Neighbourhood Services,Direct Services,Supplies and Services,304259,Equipment and Materials,03-Jun-2015,2908811-724701,"4,270.00",RICKERBY LTD.
Neighbourhood Services,Direct Services,Stock,926004,Stock,03-Jun-2015,2908811-728785,845.78,RICKERBY LTD.
Neighbourhood Services,Projects and Business services,Supplies and Services,340001,Postages,03-Jun-2015,2908819-9049762786,"2,932.10",ROYAL MAIL GROUP PLC.
Neighbourhood Services,Culture & Sport,Supplies and Services,336005,Advertising,03-Jun-2015,2908822-183834,"2,694.12",RUNNING IMP INTERNATIONAL.
Neighbourhood Services,Direct Services,Third Party Payments,430100,Rendered by Private Contractors,03-Jun-2015,2908826-1927,"6,625.89",SAFE STRIP UK LTD.
Neighbourhood Services,Technical Services,Supplies and Services,342033,Computers and Communications,03-Jun-2015,2908848-OP/M000112,"1,306.80",SPECIALIST COMPUTER CENTRES PLC.
Neighbourhood Services,Technical Services,Supplies and Services,304221,Equipment and Materials,03-Jun-2015,2908859-072020,760.16,STONEGRAVE AGGREGATES LTD.
Neighbourhood Services,Direct Services,Supplies and Services,304221,Equipment and Materials,03-Jun-2015,2908867-0000078524,"1,422.18",TA PLASTIC SUPPLIES LTD.
Neighbourhood Services,Direct Services,Supplies and Services,304221,Equipment and Materials,03-Jun-2015,2908891-103028,850.00,TOMMY WARDLE.
Neighbourhood Services,Direct Services,Supplies and Services,304221,Equipment and Materials,03-Jun-2015,2908893-29883,690.00,TOTAL PUMP SOLUTIONS LTD.
Neighbourhood Services,Technical Services,Employees,040149,Recruitment Instruction and Training,03-Jun-2015,2908901-I10122,865.00,TYNESIDE TRAINING SERVICES LTD.
Neighbourhood Services,Culture & Sport,Supplies and Services,338047,Services,03-Jun-2015,2908912-0001,"3,482.75",VOCA PEOPLE LTD.
RED HRA,Housing Revenue Account,Supplies and Services,352001,Conference Expenses,03-Jun-2015,2908586-GDC/15/175,"8,493.86",GERALD DAVIES CONSULTING LTD.
Regeneration & Economic Development,Spatial Policy Planning Assets & Environment,Income,720195,Fees and Charges,03-Jun-2015,240051-RED-06-2015-018,683.73,REDACTED - PAYMENT TO INDIVIDUAL
Regeneration & Economic Development,Transport and Contracted Services,Other Expenses,914001,Other capital expenses,03-Jun-2015,2908448-34074,"5,635.00",BAYDALE CONTROL SYSTEMS LTD.
Regeneration & Economic Development,Transport and Contracted Services,Vehicles Equipment Furniture and Fittings,912529,Purchase-equipment,03-Jun-2015,2908563-INV28758,"2,520.00",FERROGRAPH LTD.
Regeneration & Economic Development,Spatial Policy Planning Assets & Environment,Supplies and Services,384700,Miscellaneous Expenses,03-Jun-2015,2908642-BURSARYJUN15,620.75,REDACTED - PAYMENT TO INDIVIDUAL
Regeneration & Economic Development,Spatial Policy Planning Assets & Environment,Supplies and Services,338099,Services,03-Jun-2015,2908646,"3,325.00",JONAH MAURICE.
Regeneration & Economic Development,Transport and Contracted Services,Creditors,952024,Creditor-sub contractors retention,03-Jun-2015,2908657-15089,614.45,KIELY BROS LTD.
Regeneration & Economic Development,Spatial Policy Planning Assets & Environment,Supplies and Services,384700,Miscellaneous Expenses,03-Jun-2015,2908689-BURSARYJUN15,536.60,LYDIA HILLS.
Regeneration & Economic Development,Economic Development and Housing,Supplies and Services,384700,Miscellaneous Expenses,03-Jun-2015,2908742-RED-06-2015-019,500.00,MURTON WELFARE ASSOCIATION.
Regeneration & Economic Development,Economic Development and Housing,Supplies and Services,384437,Miscellaneous Expenses,03-Jun-2015,2908771-F20638048/1,749.00,P & O FERRIES HOLDINGS LTD.
Regeneration & Economic Development,Economic Development and Housing,Premises,106099,Centrally Controlled Rep and Maint,03-Jun-2015,2908827-4259,532.20,SAFEGUARD SECURITY (NE) LTD.
Regeneration & Economic Development,Economic Development and Housing,Supplies and Services,384540,Miscellaneous Expenses,03-Jun-2015,2908834-SCPR/11/05/2015BD,833.33,SHEILA CHAPMAN PR.
Regeneration & Economic Development,Economic Development and Housing,Supplies and Services,338066,Services,03-Jun-2015,2908842-SSL00013,"10,000.00",SMART SPECIALISATION LTD.
Regeneration & Economic Development,Economic Development and Housing,Supplies and Services,308011,Furniture,03-Jun-2015,2908919-4989,"1,155.12",WEARDALE FLOORING.
Resources,Human Resources,Supplies and Services,308011,Furniture,03-Jun-2015,2908424-152011,540.00,ALBANY CONTRACT FURNITURE.
Resources,Human Resources,Supplies and Services,342051,Computers and Communications,03-Jun-2015,2908493-C/PE129889,"63,603.50",CIVICA UK LTD.
Resources,Legal & Democratic Services,Supplies and Services,338057,Services,03-Jun-2015,2908535-APRIL-15U,"2,032.80",DR SREE MUSSUNOOR.
Resources,Legal & Democratic Services,Supplies and Services,352001,Conference Expenses,03-Jun-2015,2908683-40141831,"2,475.00",LOCAL GOVERNMENT ASSOCIATION.
Resources,Financial Services,Supplies and Services,384199,Miscellaneous Expenses,03-Jun-2015,2908763-91341427,"21,368.53",NORTHGATE PUBLIC SERVICES (UK) LTD.
Resources,I.C.T. Services,Supplies and Services,342051,Computers and Communications,03-Jun-2015,2908768-91949702,"14,408.00",ORDNANCE SURVEY.
Resources,I.C.T. Services,Supplies and Services,340001,Postages,03-Jun-2015,2908819-9049747894,"16,466.69",ROYAL MAIL GROUP PLC.
Resources,I.C.T. Services,Stock,926900,Stock in hand-Inventory system,03-Jun-2015,2908931-Y074711,981.64,XMA LTD.
Assistant Chief Executive,Partnerships & Community Engagement Div.,Transfer Payments,525030,Other,04-Jun-2015,2909015-VOUCHER14AB-SPEN010,"12,596.00",CAVOS.
Assistant Chief Executive,Partnerships & Community Engagement Div.,Supplies and Services,384199,Miscellaneous Expenses,04-Jun-2015,2909053-VOUCHERCSENORTH15,"1,320.00",DURHAM POLICE & CRIME COMMISSIONER.
Assistant Chief Executive,Partnerships & Community Engagement Div.,Supplies and Services,384086,Miscellaneous Expenses,04-Jun-2015,2909205-VOUCHER14NB-CHES031,"2,500.00",PELTON FELL COMMUNITY PARTNERSHIP.
Assistant Chief Executive,Partnerships & Community Engagement Div.,Transfer Payments,525030,Other,04-Jun-2015,2909268-14AB-SPEN002SPENPB14-19,"5,000.00",SPENNYMOOR AGED PERSONS GALA & TREAT FUND.
Assistant Chief Executive,Partnerships & Community Engagement Div.,Transfer Payments,525030,Other,04-Jun-2015,2909271-VOUCHER14PH-BASH001,"5,000.00",ST JOHN`S CHURCH (SHILDON).
Children and Adult Services,Education,Transport,230007,Contract Hire,04-Jun-2015,2908955-137,600.00,ACE TAXIS (WINSTON).
Children and Adult Services,Education,Transport,230007,Contract Hire,04-Jun-2015,2908955-138,600.00,ACE TAXIS (WINSTON).
Children and Adult Services,Education,Transport,230007,Contract Hire,04-Jun-2015,2908955-139,"1,400.00",ACE TAXIS (WINSTON).
Children and Adult Services,Education,Transport,230007,Contract Hire,04-Jun-2015,2908955-142,910.00,ACE TAXIS (WINSTON).
Children and Adult Services,Education,Transport,230008,Contract Hire,04-Jun-2015,2908980-478,"1,050.00",AT TAXIS LTD.
Children and Adult Services,Education,Transport,230008,Contract Hire,04-Jun-2015,2908980-480,885.00,AT TAXIS LTD.
Children and Adult Services,Education,Construction Work,908105,Construction work,04-Jun-2015,2908987-27981,"1,650.00",BARR & WRAY LTD.
Children and Adult Services,Public Health,Third Party Payments,460803,Contract Payments,04-Jun-2015,2908991-FGN07/04/15,928.00,BESTWAY NATIONAL CHEMIST LTD T/A WELL.
Dedicated Schools Grant,Dedicated Schools Grant,Supplies and Services,338091,Services,04-Jun-2015,2909012-51833,"1,560.00",CATCH 22.
Children and Adult Services,Public Health,Third Party Payments,460802,Contract Payments,04-Jun-2015,2909021-7910016056,"8,245.00",CITY HOSPITALS SUNDERLAND NHS FOUNDATION TRUST.
Children and Adult Services,Public Health,Third Party Payments,460802,Contract Payments,04-Jun-2015,2909021-7910016060,"2,416.00",CITY HOSPITALS SUNDERLAND NHS FOUNDATION TRUST.
Children and Adult Services,Head of Adults,Supplies and Services,338370,Services,04-Jun-2015,2909027-3980010233,"39,737.50",CO DURHAM & DARLINGTON NHS FOUNDATION TRUST.
Children and Adult Services,Head of Adults,Supplies and Services,338370,Services,04-Jun-2015,2909027-3980011206,"47,685.00",CO DURHAM & DARLINGTON NHS FOUNDATION TRUST.
Children and Adult Services,Education,Transport,230008,Contract Hire,04-Jun-2015,2909028-241,885.00,COLIN HOLMES.
Dedicated Schools Grant,Dedicated Schools Grant,Third Party Payments,440080,Other Third Party Payments,04-Jun-2015,2909047-C02068,"10,938.22",DERWENTSIDE COLLEGE.
Children and Adult Services,Education,Transport,230005,Contract Hire,04-Jun-2015,2909084-1784,882.00,GEM TRAVEL.
Children and Adult Services,Head of Adults,Third Party Payments,478111,Purchase of Care,04-Jun-2015,2909132-9093,"5,117.84",KINDSTREAM CARE LTD.
Children and Adult Services,Public Health,Third Party Payments,460803,Contract Payments,04-Jun-2015,2909143-6663CA041501,617.00,LLOYDS PHARMACY.
Children and Adult Services,Public Health,Third Party Payments,460803,Contract Payments,04-Jun-2015,2909144-6129CA04/50,635.00,LLOYDS PHARMACY.
Children and Adult Services,Childrens Services,Supplies and Services,308013,Furniture,04-Jun-2015,2909146-3512362,733.37,LONDON GENERAL SALES LTD.
Children and Adult Services,Education,Transport,230007,Contract Hire,04-Jun-2015,2909153-22,900.00,M BEHAN T/A M & M`S TAXIS.
Children and Adult Services,Education,Transport,230008,Contract Hire,04-Jun-2015,2909154-AKTAS9,"1,350.00",MA BODDY.
Children and Adult Services,Education,Transport,230008,Contract Hire,04-Jun-2015,2909154-MAY15,"1,328.25",MA BODDY.
Children and Adult Services,Education,Transport,230008,Contract Hire,04-Jun-2015,2909160-MCD7782,"1,634.00",MCDONALD TRAVEL.
Children and Adult Services,Education,Transport,230007,Contract Hire,04-Jun-2015,2909168-2059,"1,120.00",MR P & MR N EILLES T/A TRAPPAS TRAVEL.
Children and Adult Services,Education,Transport,230007,Contract Hire,04-Jun-2015,2909168-2062,"1,050.00",MR P & MR N EILLES T/A TRAPPAS TRAVEL.
Children and Adult Services,Education,Transport,230007,Contract Hire,04-Jun-2015,2909169-TN020,630.00,MR THOMAS G GRIFFITHS T/A TNL TAXIS.
Children and Adult Services,Education,Construction Work,908105,Construction work,04-Jun-2015,2909190-NEI-EXP-05-2015-065,"18,790.00",NORTHERN POWERGRID (NORTHEAST) LTD.
Children and Adult Services,Education,Construction Work,908201,Capital - Public Utilities - Electricity Services,04-Jun-2015,2909194-NNO7PHFV,912.73,NPOWER.
Children and Adult Services,Education,Transport,230008,Contract Hire,04-Jun-2015,2909215-1084,"1,125.00",PODA LTD.
Children and Adult Services,Education,Transport,230008,Contract Hire,04-Jun-2015,2909215-1085,"1,267.50",PODA LTD.
Children and Adult Services,Education,Transport,230008,Contract Hire,04-Jun-2015,2909217-150508,"1,537.50",PRATTS TAXIS.
Children and Adult Services,Education,Transport,230007,Contract Hire,04-Jun-2015,2909226-406,"5,850.00",PYGALL COACH HIRE.
Children and Adult Services,Education,Transport,230007,Contract Hire,04-Jun-2015,2909226-407,"2,100.00",PYGALL COACH HIRE.
Children and Adult Services,Education,Transport,230007,Contract Hire,04-Jun-2015,2909226-408,"1,750.00",PYGALL COACH HIRE.
Children and Adult Services,Education,Transport,230007,Contract Hire,04-Jun-2015,2909226-409,"1,652.00",PYGALL COACH HIRE.
Children and Adult Services,Education,Transport,230007,Contract Hire,04-Jun-2015,2909235-2186,900.00,RICHIES TAXIS.
Children and Adult Services,Education,Transport,230008,Contract Hire,04-Jun-2015,2909239-SA051,735.00,S & A TAXIS.
Children and Adult Services,Education,Transport,230007,Contract Hire,04-Jun-2015,2909240-3080/12,"1,200.00",S & S TRAVEL LTD.
Children and Adult Services,Education,Transport,230008,Contract Hire,04-Jun-2015,2909240-SO11/31,"1,350.00",S & S TRAVEL LTD.
Children and Adult Services,Education,Transport,230008,Contract Hire,04-Jun-2015,2909240-W075/31,"1,260.00",S & S TRAVEL LTD.
Children and Adult Services,Education,Transport,230008,Contract Hire,04-Jun-2015,2909240-WO43/09,"1,875.00",S & S TRAVEL LTD.
Children and Adult Services,Education,Transport,230008,Contract Hire,04-Jun-2015,2909240-WO52/20,"1,725.00",S & S TRAVEL LTD.
Children and Adult Services,Childrens Services,Premises,145009,Cleaning and Domestic Supplies,04-Jun-2015,2909273-1164,"1,696.00",STAINKLEEN.
Children and Adult Services,Education,Transport,230008,Contract Hire,04-Jun-2015,2909276-14017,829.50,STANLEY TRAVEL (NORTH EAST) LTD.
Children and Adult Services,Education,Transport,230008,Contract Hire,04-Jun-2015,2909276-14018,"1,035.00",STANLEY TRAVEL (NORTH EAST) LTD.
Children and Adult Services,Education,Transport,230008,Contract Hire,04-Jun-2015,2909276-14019,585.00,STANLEY TRAVEL (NORTH EAST) LTD.
Children and Adult Services,Education,Transport,230008,Contract Hire,04-Jun-2015,2909276-14020,705.00,STANLEY TRAVEL (NORTH EAST) LTD.
Children and Adult Services,Education,Transport,230009,Contract Hire,04-Jun-2015,2909276-14022,"1,275.00",STANLEY TRAVEL (NORTH EAST) LTD.
Children and Adult Services,Education,Transport,230007,Contract Hire,04-Jun-2015,2909277-004,"1,050.00",STAR CABS - WEST AUCKLAND.
Children and Adult Services,Education,Transport,230008,Contract Hire,04-Jun-2015,2909278-DCC009/A032,"1,566.00",STEPHEN COXON.
Children and Adult Services,Education,Transport,230008,Contract Hire,04-Jun-2015,2909278-DCC009/A035,"1,380.00",STEPHEN COXON.
Children and Adult Services,Education,Transport,230008,Contract Hire,04-Jun-2015,2909279-00035,720.00,STEVES TAXIS.
Children and Adult Services,Education,Transport,230008,Contract Hire,04-Jun-2015,2909288-B729,895.00,TALBOTS TRAVEL LTD.
Children and Adult Services,Education,Transport,230006,Contract Hire,04-Jun-2015,2909290-05/2015/031,540.00,TARNS TAXIS LTD.
Children and Adult Services,Education,Transport,230008,Contract Hire,04-Jun-2015,2909290-05/2015/033,"1,020.00",TARNS TAXIS LTD.
Children and Adult Services,Education,Transport,230008,Contract Hire,04-Jun-2015,2909290-05/2015/034,"1,095.00",TARNS TAXIS LTD.
Children and Adult Services,Head of Adults,Employees,080025,Agency Staff,04-Jun-2015,2909295-4810004839,813.75,TEES ESK & WEAR VALLEYS NHS FOUNDATION TRUST.
Children and Adult Services,Head of Adults,Employees,080025,Agency Staff,04-Jun-2015,2909295-4810004840,"1,627.42",TEES ESK & WEAR VALLEYS NHS FOUNDATION TRUST.
Children and Adult Services,Head of Adults,Employees,080025,Agency Staff,04-Jun-2015,2909295-4810004841,"1,627.42",TEES ESK & WEAR VALLEYS NHS FOUNDATION TRUST.
Children and Adult Services,Head of Adults,Employees,080025,Agency Staff,04-Jun-2015,2909295-4810005038,813.75,TEES ESK & WEAR VALLEYS NHS FOUNDATION TRUST.
Children and Adult Services,Head of Adults,Employees,080025,Agency Staff,04-Jun-2015,2909295-4810005039,"1,627.42",TEES ESK & WEAR VALLEYS NHS FOUNDATION TRUST.
Children and Adult Services,Head of Adults,Employees,080025,Agency Staff,04-Jun-2015,2909295-4810005040,"1,627.42",TEES ESK & WEAR VALLEYS NHS FOUNDATION TRUST.
Children and Adult Services,Childrens Services,Third Party Payments,425040,Rendered by Voluntary Organisations,04-Jun-2015,2909302-000150,"8,376.00",THE FOSTERING COMPANY NE LTD.
Dedicated Schools Grant,Dedicated Schools Grant,Transport,230010,Contract Hire,04-Jun-2015,2909314-TS14S-31,"1,080.00",TOP STAR TRAVEL.
Children and Adult Services,Education,Transport,230008,Contract Hire,04-Jun-2015,2909314-TS20-31,"1,500.00",TOP STAR TRAVEL.
Children and Adult Services,Education,Transport,230006,Contract Hire,04-Jun-2015,2909314-TSF601-09,574.00,TOP STAR TRAVEL.
Children and Adult Services,Education,Transport,230008,Contract Hire,04-Jun-2015,2909316-005,630.00,TRIDENT TAXIS.
Children and Adult Services,Education,Transport,230008,Contract Hire,04-Jun-2015,2909317-31,"1,365.00",TT TAXIS.
Children and Adult Services,Education,Transport,230008,Contract Hire,04-Jun-2015,2909334-986,"1,500.00",WAYNE`S TAXIS.
Children and Adult Services,Education,Transport,230008,Contract Hire,04-Jun-2015,2909334-987,"1,320.00",WAYNE`S TAXIS.
Children and Adult Services,Education,Transport,230008,Contract Hire,04-Jun-2015,2909338-E008/MAY,800.00,WESTLEA TAXIS.
Neighbourhood Services,Technical Services,Supplies and Services,338027,Services,04-Jun-2015,2908960-28216409,"4,092.00",AECOM LTD.
Neighbourhood Services,Technical Services,Supplies and Services,304221,Equipment and Materials,04-Jun-2015,2908962-21422867,635.91,AGGREGATE INDUSTRIES UK LTD.
Neighbourhood Services,Technical Services,Supplies and Services,304221,Equipment and Materials,04-Jun-2015,2908962-21422979,"1,268.40",AGGREGATE INDUSTRIES UK LTD.
Neighbourhood Services,Technical Services,Supplies and Services,304221,Equipment and Materials,04-Jun-2015,2908962-21422980,"1,015.74",AGGREGATE INDUSTRIES UK LTD.
Neighbourhood Services,Technical Services,Supplies and Services,304221,Equipment and Materials,04-Jun-2015,2908962-21422981,833.45,AGGREGATE INDUSTRIES UK LTD.
Neighbourhood Services,Technical Services,Supplies and Services,304221,Equipment and Materials,04-Jun-2015,2908962-21422982,628.98,AGGREGATE INDUSTRIES UK LTD.
Neighbourhood Services,Culture & Sport,Supplies and Services,312013,Newspapers Books and Periodicals,04-Jun-2015,2908978-4662554,500.48,ASKEWS & HOLTS LIBRARY SERVICES LTD.
Neighbourhood Services,Projects and Business services,Fees,901002,Professional fees,04-Jun-2015,2908981-14057338,"9,424.00",ATKINS GLOBAL.
Neighbourhood Services,Direct Services,Third Party Payments,430100,Rendered by Private Contractors,04-Jun-2015,2908987-28011,760.00,BARR & WRAY LTD.
Neighbourhood Services,Direct Services,Third Party Payments,430100,Rendered by Private Contractors,04-Jun-2015,2908989-01245,"1,180.00",BBM LTD.
Neighbourhood Services,Direct Services,Supplies and Services,304221,Equipment and Materials,04-Jun-2015,2909002-INV168768,916.00,BROXAP LTD.
Neighbourhood Services,Direct Services,Supplies and Services,304221,Equipment and Materials,04-Jun-2015,2909002-INV168779,643.00,BROXAP LTD.
Neighbourhood Services,Culture & Sport,Income,720810,Fees and Charges,04-Jun-2015,2909029-PS23959,"27,822.99",COMPETITION LINE UK LTD.
Neighbourhood Services,Culture & Sport,Income,720810,Fees and Charges,04-Jun-2015,2909029-PS23960,"5,012.94",COMPETITION LINE UK LTD.
Neighbourhood Services,Culture & Sport,Income,720810,Fees and Charges,04-Jun-2015,2909029-PS23961,"18,710.59",COMPETITION LINE UK LTD.
Neighbourhood Services,Culture & Sport,Third Party Payments,430100,Rendered by Private Contractors,04-Jun-2015,2909029-PS23966,"8,193.80",COMPETITION LINE UK LTD.
Neighbourhood Services,Direct Services,Employees,080025,Agency Staff,04-Jun-2015,2909045-326231,"132,322.52",DE POEL MANAGED SERVICES LTD.
Neighbourhood Services,Technical Services,Third Party Payments,430100,Rendered by Private Contractors,04-Jun-2015,2909051-5100,"140,487.38",DUNELM GEOTECHNICAL & ENVIRONMENTAL LTD.
Neighbourhood Services,Direct Services,Supplies and Services,304221,Equipment and Materials,04-Jun-2015,2909066-22547,796.50,FABRICATED PRODUCTS LTD.
Neighbourhood Services,Technical Services,Supplies and Services,304357,Equipment and Materials,04-Jun-2015,2909079-DCC170515,"11,993.31",GAP GROUP LTD.
Neighbourhood Services,Technical Services,Supplies and Services,304260,Equipment and Materials,04-Jun-2015,2909096-533742,596.84,HARVEST ENERGY LTD.
Neighbourhood Services,Direct Services,Third Party Payments,430100,Rendered by Private Contractors,04-Jun-2015,2909113-2895,"1,563.39",JAMES INGLEFORD SCAFFOLDING LTD.
Neighbourhood Services,Technical Services,Stock,926900,Stock in hand-Inventory system,04-Jun-2015,2909117-7195,543.20,JG UNIFORMS.
Neighbourhood Services,Technical Services,Stock,926900,Stock in hand-Inventory system,04-Jun-2015,2909121-NI027872,"77,641.94",JOHN MACLEAN & SONS ELECTRICAL (DINGWALL) LTD.
Neighbourhood Services,Direct Services,Supplies and Services,304221,Equipment and Materials,04-Jun-2015,2909128-ASI699243,"1,455.72",JT DOVE LTD.
Neighbourhood Services,Technical Services,Supplies and Services,304221,Equipment and Materials,04-Jun-2015,2909128-CN122103/D,"1,074.58",JT DOVE LTD.
Neighbourhood Services,Culture & Sport,Supplies and Services,338047,Services,04-Jun-2015,2909181-HITS & HAIRDOS II,881.88,NEW COLLEGE DURHAM.
Neighbourhood Services,Technical Services,Premises,120009,Energy Costs,04-Jun-2015,2909194-NNO7PHHK,"1,340.11",NPOWER.
Neighbourhood Services,Technical Services,Premises,120009,Energy Costs,04-Jun-2015,2909194-NNO7PL9M,"39,379.76",NPOWER.
Neighbourhood Services,Technical Services,Third Party Payments,430100,Rendered by Private Contractors,04-Jun-2015,2909218-133988.,"23,065.44",PREMIER TRAFFIC MANAGEMENT LTD.
Neighbourhood Services,Technical Services,Stock,926900,Stock in hand-Inventory system,04-Jun-2015,2909265-186666,"5,021.28",SNAPFAST.
Neighbourhood Services,Technical Services,Supplies and Services,342033,Computers and Communications,04-Jun-2015,2909266-OP/M000773,907.83,SPECIALIST COMPUTER CENTRES PLC.
Neighbourhood Services,Culture & Sport,Supplies and Services,304221,Equipment and Materials,04-Jun-2015,2909310-20,740.00,THRILLS & SKILLS FOR LIFE.
Neighbourhood Services,Technical Services,Stock,926900,Stock in hand-Inventory system,04-Jun-2015,2909325-INV031171,"90,500.00",URBIS SCHREDER LTD.
Neighbourhood Services,Direct Services,Transport,230005,Contract Hire,04-Jun-2015,2909331-66574,805.60,WARREN ACCESS LTD.
RED HRA,Housing Revenue Account,Supplies and Services,344033,Telephones,04-Jun-2015,2909008-13640755,600.36,CABLE & WIRELESS UK.
RED HRA,HRA Capital,Construction Work,908105,Construction work,04-Jun-2015,2909085-SIGN/00052382,"286,484.00",GENTOO CONSTRUCTION LTD.
RED HRA,HRA Capital,Construction Work,908105,Construction work,04-Jun-2015,2909333-89863,"31,665.05",WATES CONSTRUCTION LTD.
Regeneration & Economic Development,Economic Development and Housing,Supplies and Services,324117,Provisions,04-Jun-2015,2908947-61358892,527.53,3663.
Regeneration & Economic Development,Economic Development and Housing,Cap Exp on Grants & Other Financial Assistance (REFCUS),918401,Capital grants,04-Jun-2015,2908950-RED-06-2015-030,"5,974.00",A OGILVIE BUILDING CONTRACTORS LTD.
Regeneration & Economic Development,Transport and Contracted Services,Fees,901002,Professional fees,04-Jun-2015,2908960-28219871,"17,580.75",AECOM LTD.
Regeneration & Economic Development,Transport and Contracted Services,Third Party Payments,430106,Rendered by Private Contractors,04-Jun-2015,2908975-108923,"32,044.50",ARRIVA NORTH EAST LTD.
Regeneration & Economic Development,Economic Development and Housing,Cap Exp on Grants & Other Financial Assistance (REFCUS),918401,Capital grants,04-Jun-2015,2909038-RED-06-2015-031,"4,925.00",CRAIG PATTERSON T/A LET ME GET YOU WET.
Regeneration & Economic Development,Economic Development and Housing,Cap Exp on Grants & Other Financial Assistance (REFCUS),918401,Capital grants,04-Jun-2015,2909041-RED-06-2015-029,"4,398.00",CUMMINGS CONTRACTORS.
Regeneration & Economic Development,Transport and Contracted Services,Supplies and Services,384199,Miscellaneous Expenses,04-Jun-2015,2909043-2724812,"1,418.64",DARLINGTON BOROUGH COUNCIL.
Regeneration & Economic Development,Economic Development and Housing,Supplies and Services,384700,Miscellaneous Expenses,04-Jun-2015,2909048-RED-06-2015-039,"1,000.00",DESIGN REVEL.
Regeneration & Economic Development,Economic Development and Housing,Supplies and Services,384899,Miscellaneous Expenses,04-Jun-2015,2909056-RED-06-2015-036,"2,190.00",DURHAM WILDLIFE TRUST LTD.
Regeneration & Economic Development,Transport and Contracted Services,Third Party Payments,430106,Rendered by Private Contractors,04-Jun-2015,2909069,"5,341.80",FERRYHILL VILLAGE TRAVEL.
Regeneration & Economic Development,Transport and Contracted Services,Third Party Payments,430106,Rendered by Private Contractors,04-Jun-2015,2909082-00002,"5,759.60",GATESHEAD CENTRAL TAXIS LTD.
Regeneration & Economic Development,Transport and Contracted Services,Third Party Payments,430106,Rendered by Private Contractors,04-Jun-2015,2909102-012577,"4,490.86",HODGSONS COACH OPERATORS LTD.
Regeneration & Economic Development,Spatial Policy Planning Assets & Environment,Supplies and Services,304259,Equipment and Materials,04-Jun-2015,2909103-RED-06-2015-021,"1,000.00",HORDEN REGENERATION PARTNERSHIP.
Regeneration & Economic Development,Transport and Contracted Services,Third Party Payments,430106,Rendered by Private Contractors,04-Jun-2015,2909120-DCC5/15,"1,902.82",JOHN JAMES BRUNSKILL.
Regeneration & Economic Development,Transport and Contracted Services,Acquisition Of Land And Buildings,905009,Acquisition of land and buildings,04-Jun-2015,2909122-RED-06-2015-022,"67,547.30",JOHNSON BROTHERS.
Regeneration & Economic Development,Transport and Contracted Services,Third Party Payments,430106,Rendered by Private Contractors,04-Jun-2015,2909124-LINK2INV66,"3,239.43",JOVIAL PRIVATE HIRE.
Regeneration & Economic Development,Economic Development and Housing,Cap Exp on Grants & Other Financial Assistance (REFCUS),918401,Capital grants,04-Jun-2015,2909178-RED-06-2015-025,"3,912.00",NEIL BELL PLUMBERS HEATING & GAS INS.
Regeneration & Economic Development,Economic Development and Housing,Cap Exp on Grants & Other Financial Assistance (REFCUS),918401,Capital grants,04-Jun-2015,2909178-RED-06-2015-032,"3,842.00",NEIL BELL PLUMBERS HEATING & GAS INS.
Regeneration & Economic Development,Economic Development and Housing,Premises,120009,Energy Costs,04-Jun-2015,2909194-NNO7PHFM,"3,523.84",NPOWER.
Regeneration & Economic Development,Economic Development and Housing,Premises,120009,Energy Costs,04-Jun-2015,2909194-NNO7PHFR,"1,234.09",NPOWER.
Regeneration & Economic Development,Economic Development and Housing,Premises,120009,Energy Costs,04-Jun-2015,2909194-NNO7PHFS,"1,691.43",NPOWER.
Regeneration & Economic Development,Economic Development and Housing,Premises,120009,Energy Costs,04-Jun-2015,2909194-NNO7PK2B,899.83,NPOWER.
Regeneration & Economic Development,Economic Development and Housing,Cap Exp on Grants & Other Financial Assistance (REFCUS),918401,Capital grants,04-Jun-2015,2909206-RED-06-2015-027,"3,635.00",PETER JORDAN.
Regeneration & Economic Development,Transport and Contracted Services,Third Party Payments,430106,Rendered by Private Contractors,04-Jun-2015,2909227-220/15,"9,771.06",R COOPER T/A DC TAXIS.
Regeneration & Economic Development,Economic Development and Housing,Cap Exp on Grants & Other Financial Assistance (REFCUS),918401,Capital grants,04-Jun-2015,2909232-RED-06-2015-026,750.00,REDGATE ARCHITECTURAL DESIGN.
Regeneration & Economic Development,Transport and Contracted Services,Third Party Payments,430106,Rendered by Private Contractors,04-Jun-2015,2909243-102,"3,343.19",SB TRAVEL.
Regeneration & Economic Development,Transport and Contracted Services,Third Party Payments,430106,Rendered by Private Contractors,04-Jun-2015,2909276-13874,"2,585.42",STANLEY TRAVEL (NORTH EAST) LTD.
Regeneration & Economic Development,Economic Development and Housing,Supplies and Services,384700,Miscellaneous Expenses,04-Jun-2015,2909304-RED-06-2015-034,"1,000.00",REDACTED - PAYMENT TO INDIVIDUAL
Regeneration & Economic Development,Economic Development and Housing,Cap Exp on Grants & Other Financial Assistance (REFCUS),918004,Contributions to other bodies,04-Jun-2015,2909308-RED-06-2015-035,"40,000.00",THE WITHAM.
Regeneration & Economic Development,Spatial Policy Planning Assets & Environment,Supplies and Services,377015,County Durham Development,04-Jun-2015,2909309-132,550.00,THOMAS CRAGGS.
Regeneration & Economic Development,Economic Development and Housing,Cap Exp on Grants & Other Financial Assistance (REFCUS),918401,Capital grants,04-Jun-2015,2909311-RED-02-2015-028,"3,975.00",THYSSENKRUPP ENCASA A DIVISION OF THYSSENKRUPP ACCESS LTD.
Regeneration & Economic Development,Economic Development and Housing,Cap Exp on Grants & Other Financial Assistance (REFCUS),918401,Capital grants,04-Jun-2015,2909311-RED-06-2015-033,"4,310.00",THYSSENKRUPP ENCASA A DIVISION OF THYSSENKRUPP ACCESS LTD.
Regeneration & Economic Development,Economic Development and Housing,Supplies and Services,384437,Miscellaneous Expenses,04-Jun-2015,2909337-OrderNo1435217,"9,945.43",WESTERN UNION BUSINESS SOLUTIONS.
Regeneration & Economic Development,Economic Development and Housing,Supplies and Services,338066,Services,04-Jun-2015,2909337-OrderNo1435220,"3,093.67",WESTERN UNION BUSINESS SOLUTIONS.
Regeneration & Economic Development,Transport and Contracted Services,Acquisition Of Land And Buildings,905009,Acquisition of land and buildings,04-Jun-2015,2909345-RED-06-2015-023,"3,603.20",YOUNGS RPS LLP.
Resources,Human Resources,Fees,901002,Professional fees,04-Jun-2015,2909022-C/PE132027,"20,287.50",CIVICA UK LTD.
Resources,I.C.T. Services,Supplies and Services,342051,Computers and Communications,04-Jun-2015,2909065-ES-04277,809.76,EUROSOFT UK LTD.
Resources,I.C.T. Services,Supplies and Services,342051,Computers and Communications,04-Jun-2015,2909247-S9245,"154,740.40",SCISYS UK LTD.
Resources,Financial Services,Supplies and Services,342051,Computers and Communications,04-Jun-2015,2909293-101050,"30,000.00",TEAM NETSOL LTD.
Assistant Chief Executive,Partnerships & Community Engagement Div.,Transfer Payments,525030,Other,05-Jun-2015,2909489-VOUCHER14AB-MDUR005,"15,000.00",DURHAM AGENCY AGAINST CRIME LTD (DAAC).
Children and Adult Services,Education,Transport,230008,Contract Hire,05-Jun-2015,2909348-51502,"1,304.00",24/7 TAXI SERVICES LTD.
Children and Adult Services,Education,Transport,230008,Contract Hire,05-Jun-2015,2909355-AA1065,"1,320.00",AA MINIBUS HIRE.
Children and Adult Services,Education,Transport,230008,Contract Hire,05-Jun-2015,2909355-AA1066,"1,125.00",AA MINIBUS HIRE.
Children and Adult Services,Education,Transport,230008,Contract Hire,05-Jun-2015,2909355-AA1067,"1,138.50",AA MINIBUS HIRE.
Children and Adult Services,Education,Transport,230008,Contract Hire,05-Jun-2015,2909356-0247,798.00,ABC & OUSTON CABS.
Children and Adult Services,Education,Transport,230008,Contract Hire,05-Jun-2015,2909356-0250,"1,380.00",ABC & OUSTON CABS.
Children and Adult Services,Education,Transport,230008,Contract Hire,05-Jun-2015,2909356-0251,"2,370.00",ABC & OUSTON CABS.
Children and Adult Services,Head of Adults,Third Party Payments,478151,Purchase of Care,05-Jun-2015,2909357-CAS/HOUSE2/MARCH15,"7,020.32",ACCEPT CARE LTD.
Children and Adult Services,Education,Transport,230008,Contract Hire,05-Jun-2015,2909362-21/15,728.00,ADVANCE TRAVEL.
Children and Adult Services,Education,Transport,230007,Contract Hire,05-Jun-2015,2909370-TX1480,"7,513.20",ALSTON ROAD GARAGE.
Children and Adult Services,Education,Transport,230007,Contract Hire,05-Jun-2015,2909370-TX1481,"4,571.10",ALSTON ROAD GARAGE.
Children and Adult Services,Education,Transport,230008,Contract Hire,05-Jun-2015,2909390-DCC10MAY15,"1,200.00",ATLAS TAXIS BISHOP AUCKLAND.
Children and Adult Services,Education,Transport,230008,Contract Hire,05-Jun-2015,2909390-DCC2MAY15,"1,947.90",ATLAS TAXIS BISHOP AUCKLAND.
Children and Adult Services,Education,Transport,230008,Contract Hire,05-Jun-2015,2909390-DCC4MAY15,"1,575.00",ATLAS TAXIS BISHOP AUCKLAND.
Children and Adult Services,Education,Transport,230008,Contract Hire,05-Jun-2015,2909390-DCC7MAY15,"1,325.00",ATLAS TAXIS BISHOP AUCKLAND.
Children and Adult Services,Education,Transport,230008,Contract Hire,05-Jun-2015,2909395-474,"1,164.00",BEELINE MINI BUSES.
Children and Adult Services,Education,Transport,230008,Contract Hire,05-Jun-2015,2909395-475,"1,125.00",BEELINE MINI BUSES.
Children and Adult Services,Education,Transport,230008,Contract Hire,05-Jun-2015,2909402-114,"1,116.00",BG TAXIS.
Dedicated Schools Grant,Dedicated Schools Grant,Transport,230010,Contract Hire,05-Jun-2015,2909403-05/2015/0002,964.00,BILL SCOTT (BILL SCOTT TAXIS).
Children and Adult Services,Childrens Services,Supplies and Services,338094,Services,05-Jun-2015,2909406-837,608.00,BLACKHALL COMMUNITY ASSOCIATION.
Children and Adult Services,Education,Transport,230008,Contract Hire,05-Jun-2015,2909415-PS0103,948.00,BURNDALE PRIVATE HIRE.
Children and Adult Services,Childrens Services,Supplies and Services,384491,Miscellaneous Expenses,05-Jun-2015,2909416-4100493390,"1,062.50",BUTTERFLIES DAY CARE.
Children and Adult Services,Education,Transport,230008,Contract Hire,05-Jun-2015,2909420-A02002,"1,200.00",C & R TAXIS.
Children and Adult Services,Education,Transport,230008,Contract Hire,05-Jun-2015,2909420-W01109,686.00,C & R TAXIS.
Children and Adult Services,Education,Transport,230008,Contract Hire,05-Jun-2015,2909432-93,"1,125.00",CASTLE CARS.
Children and Adult Services,Childrens Services,Supplies and Services,384871,Miscellaneous Expenses,05-Jun-2015,2909438-200,567.30,CHEVRON TAXIS LTD.
Children and Adult Services,Education,Transport,230008,Contract Hire,05-Jun-2015,2909439-KJ029-MAY,"1,209.00",CHIPPERS TAXIS.
Children and Adult Services,Education,Transport,230008,Contract Hire,05-Jun-2015,2909442-25/2015,"1,350.00",CHRIS`S TAXI.
Dedicated Schools Grant,Dedicated Schools Grant,Transport,230008,Contract Hire,05-Jun-2015,2909451-15-SC08,684.00,CLUBMAN CABS.
Children and Adult Services,Education,Transport,230008,Contract Hire,05-Jun-2015,2909451-15-SC09,840.00,CLUBMAN CABS.
Children and Adult Services,Education,Transport,230008,Contract Hire,05-Jun-2015,2909452-M021-MAY,825.00,CM TAXIS.
Children and Adult Services,Education,Transport,230007,Contract Hire,05-Jun-2015,2909454-C/8638,"4,438.00",COCHRANES T/A KELVIN TRAVEL.
Children and Adult Services,Education,Transport,230007,Contract Hire,05-Jun-2015,2909454-C/8639,"1,799.00",COCHRANES T/A KELVIN TRAVEL.
Children and Adult Services,Education,Transport,230007,Contract Hire,05-Jun-2015,2909454-C/8640,"1,939.00",COCHRANES T/A KELVIN TRAVEL.
Children and Adult Services,Education,Transport,230007,Contract Hire,05-Jun-2015,2909454-C/8641,"3,720.00",COCHRANES T/A KELVIN TRAVEL.
Children and Adult Services,Education,Transport,230007,Contract Hire,05-Jun-2015,2909455-0001490,750.00,COLORS TAXIS LTD.
Dedicated Schools Grant,Dedicated Schools Grant,Transport,230010,Contract Hire,05-Jun-2015,2909455-0001491,675.00,COLORS TAXIS LTD.
Children and Adult Services,Education,Transport,230008,Contract Hire,05-Jun-2015,2909458-584,"1,208.00",CONNORS MINI BUSES.
Children and Adult Services,Education,Transport,230008,Contract Hire,05-Jun-2015,2909458-585,"1,036.00",CONNORS MINI BUSES.
Children and Adult Services,Education,Transport,230007,Contract Hire,05-Jun-2015,2909462-DCC/4029/MAY15,"1,485.00",COUNTY COACHES.
Children and Adult Services,Education,Transport,230006,Contract Hire,05-Jun-2015,2909466-5355,742.50,CROFT BUSINESS SERVICES (UK) LTD T/A CROFT TAXIS.
Children and Adult Services,Education,Transport,230006,Contract Hire,05-Jun-2015,2909466-5356,708.90,CROFT BUSINESS SERVICES (UK) LTD T/A CROFT TAXIS.
Children and Adult Services,Education,Transport,230006,Contract Hire,05-Jun-2015,2909466-5357,739.20,CROFT BUSINESS SERVICES (UK) LTD T/A CROFT TAXIS.
Children and Adult Services,Education,Transport,230008,Contract Hire,05-Jun-2015,2909466-5361,"1,311.45",CROFT BUSINESS SERVICES (UK) LTD T/A CROFT TAXIS.
Children and Adult Services,Education,Transport,230008,Contract Hire,05-Jun-2015,2909466-5362,546.00,CROFT BUSINESS SERVICES (UK) LTD T/A CROFT TAXIS.
Children and Adult Services,Education,Transport,230008,Contract Hire,05-Jun-2015,2909466-5366,"1,311.00",CROFT BUSINESS SERVICES (UK) LTD T/A CROFT TAXIS.
Children and Adult Services,Education,Transport,230008,Contract Hire,05-Jun-2015,2909468-58,900.00,D CROOK T/A CK TAXIS.
Children and Adult Services,Education,Transport,230008,Contract Hire,05-Jun-2015,2909472-1400,900.00,DA TAXIS.
Children and Adult Services,Education,Transport,230008,Contract Hire,05-Jun-2015,2909472-1401,755.20,DA TAXIS.
Children and Adult Services,Education,Transport,230008,Contract Hire,05-Jun-2015,2909472-1402,"1,245.00",DA TAXIS.
Children and Adult Services,Education,Transport,230008,Contract Hire,05-Jun-2015,2909472-1403,895.00,DA TAXIS.
Children and Adult Services,Education,Transport,230008,Contract Hire,05-Jun-2015,2909472-1404,720.00,DA TAXIS.
Children and Adult Services,Education,Transport,230008,Contract Hire,05-Jun-2015,2909473-125,945.00,DA TRAVEL.
Children and Adult Services,Education,Transport,230008,Contract Hire,05-Jun-2015,2909473-126,825.00,DA TRAVEL.
Children and Adult Services,Education,Transport,230008,Contract Hire,05-Jun-2015,2909473-127,"1,275.00",DA TRAVEL.
Children and Adult Services,Education,Transport,230008,Contract Hire,05-Jun-2015,2909473-128,962.00,DA TRAVEL.
Children and Adult Services,Education,Transport,230008,Contract Hire,05-Jun-2015,2909473-129,"1,005.00",DA TRAVEL.
Children and Adult Services,Education,Transport,230006,Contract Hire,05-Jun-2015,2909473-130,748.00,DA TRAVEL.
Children and Adult Services,Education,Transport,230008,Contract Hire,05-Jun-2015,2909479-2508,"1,190.00",DAVES MINIBUSES.
Children and Adult Services,Education,Transport,230008,Contract Hire,05-Jun-2015,2909479-2510,"1,064.00",DAVES MINIBUSES.
Children and Adult Services,Education,Transport,230008,Contract Hire,05-Jun-2015,2909479-2512,"1,050.00",DAVES MINIBUSES.
Children and Adult Services,Education,Transport,230008,Contract Hire,05-Jun-2015,2909479-2513,"1,400.00",DAVES MINIBUSES.
Children and Adult Services,Education,Transport,230008,Contract Hire,05-Jun-2015,2909479-2514,640.00,DAVES MINIBUSES.
Children and Adult Services,Education,Transport,230008,Contract Hire,05-Jun-2015,2909480-0515/001,980.00,DCM TAXIS.
Children and Adult Services,Education,Transport,230007,Contract Hire,05-Jun-2015,2909490-20959,"1,942.50",DURHAM CITY COACHES.
Children and Adult Services,Education,Transfer Payments,510026,School Children,05-Jun-2015,2909498-3092,"1,170.00",EASTLEA COMMUNITY ASSOCIATION.
Children and Adult Services,Childrens Services,Supplies and Services,384491,Miscellaneous Expenses,05-Jun-2015,2909502-15C/WL/240NURTURMG,"1,344.00",EMERALD NURSERY.
Children and Adult Services,Childrens Services,Third Party Payments,425040,Rendered by Voluntary Organisations,05-Jun-2015,2909513-13156,"1,180.00",FOSTER CARES LTD.
Children and Adult Services,Childrens Services,Third Party Payments,425040,Rendered by Voluntary Organisations,05-Jun-2015,2909513-13161,820.00,FOSTER CARES LTD.
Children and Adult Services,Childrens Services,Third Party Payments,425040,Rendered by Voluntary Organisations,05-Jun-2015,2909513-13162,760.00,FOSTER CARES LTD.
Children and Adult Services,Childrens Services,Third Party Payments,425040,Rendered by Voluntary Organisations,05-Jun-2015,2909513-13163,730.00,FOSTER CARES LTD.
Children and Adult Services,Childrens Services,Third Party Payments,425040,Rendered by Voluntary Organisations,05-Jun-2015,2909513-13173,730.00,FOSTER CARES LTD.
Children and Adult Services,Childrens Services,Third Party Payments,425040,Rendered by Voluntary Organisations,05-Jun-2015,2909513-13176,730.00,FOSTER CARES LTD.
Children and Adult Services,Childrens Services,Third Party Payments,425040,Rendered by Voluntary Organisations,05-Jun-2015,2909513-13181,730.00,FOSTER CARES LTD.
Children and Adult Services,Childrens Services,Third Party Payments,425040,Rendered by Voluntary Organisations,05-Jun-2015,2909513-13182,730.00,FOSTER CARES LTD.
Children and Adult Services,Education,Transport,230005,Contract Hire,05-Jun-2015,2909517-1825,945.00,GEM TRAVEL.
Children and Adult Services,Education,Transport,230008,Contract Hire,05-Jun-2015,2909520-W084/031,"1,200.00",GMC TAXIS NORTH EAST.
Children and Adult Services,Education,Transport,230008,Contract Hire,05-Jun-2015,2909523-021A,978.00,GS PEARSON.
Children and Adult Services,Education,Transport,230007,Contract Hire,05-Jun-2015,2909529-HT171,"1,450.00",HARRY`S TAXI`S.
Children and Adult Services,Education,Transport,230008,Contract Hire,05-Jun-2015,2909529-HT172,"1,800.00",HARRY`S TAXI`S.
Children and Adult Services,Education,Transport,230007,Contract Hire,05-Jun-2015,2909529-HT173,600.00,HARRY`S TAXI`S.
Children and Adult Services,Education,Transport,230008,Contract Hire,05-Jun-2015,2909529-HT174,"1,452.00",HARRY`S TAXI`S.
Children and Adult Services,Education,Transport,230007,Contract Hire,05-Jun-2015,2909537-012532,650.00,HODGSONS COACH OPERATORS LTD.
Children and Adult Services,Education,Transport,230008,Contract Hire,05-Jun-2015,2909541-INV75,"1,275.00",HORNDALE TAXIS LTD.
Children and Adult Services,Education,Transport,230007,Contract Hire,05-Jun-2015,2909541-INV77,900.00,HORNDALE TAXIS LTD.
Children and Adult Services,Education,Transport,230007,Contract Hire,05-Jun-2015,2909542-F1304,"1,198.50",HUNTER BROTHERS (TANTOBIE) LTD.
Dedicated Schools Grant,Dedicated Schools Grant,Supplies and Services,304259,Equipment and Materials,05-Jun-2015,2909554-00120722,"1,848.00",JENX LTD.
Children and Adult Services,Education,Transport,230008,Contract Hire,05-Jun-2015,2909557-22/05/15,980.00,JL EBDON.
Children and Adult Services,Education,Transport,230008,Contract Hire,05-Jun-2015,2909557-22/05/15A,"1,400.00",JL EBDON.
Children and Adult Services,Education,Transport,230008,Contract Hire,05-Jun-2015,2909557-22/05/15B,"1,120.00",JL EBDON.
Children and Adult Services,Education,Transport,230008,Contract Hire,05-Jun-2015,2909557-22/05/15C,840.00,JL EBDON.
Children and Adult Services,Education,Transport,230008,Contract Hire,05-Jun-2015,2909557-22/05/15E,"1,190.00",JL EBDON.
Children and Adult Services,Education,Transport,230008,Contract Hire,05-Jun-2015,2909557-22/05/15F,"1,092.00",JL EBDON.
Children and Adult Services,Education,Transport,230008,Contract Hire,05-Jun-2015,2909571-010515,"1,110.00",KEVIN EDMUNDSON.
Children and Adult Services,Central Charges (CYPS),Creditors,952132,D.A.S.H.,05-Jun-2015,2909575-1000401,"1,475.60",KING JAMES I ACADEMY.
Children and Adult Services,Childrens Services,Supplies and Services,364301,Grants to Voluntary Organisations,05-Jun-2015,2909583-CAS-06-2015-016,"2,715.00",REDACTED - PAYMENT TO INDIVIDUAL
Children and Adult Services,Education,Transport,230008,Contract Hire,05-Jun-2015,2909593-9,"1,050.00",MALCOLM CARR T/A CARLY CABS.
Children and Adult Services,Public Health,Supplies and Services,338005,Services,05-Jun-2015,2909610-501556,950.00,MICHELMORES LLP.
Children and Adult Services,Education,Transport,230007,Contract Hire,05-Jun-2015,2909617-9,600.00,MR BW YOUNG T/A ESH TAXIS.
Children and Adult Services,Education,Transport,230006,Contract Hire,05-Jun-2015,2909618-CMX05-15,"1,130.00",MR CT WALKER T/A COLIN`S TAXIS.
Children and Adult Services,Education,Transport,230008,Contract Hire,05-Jun-2015,2909619-3813,"1,360.00",MR G FREELAND T/A HUNWICK CARS.
Children and Adult Services,Education,Transport,230008,Contract Hire,05-Jun-2015,2909619-38A,"1,537.50",MR G FREELAND T/A HUNWICK CARS.
Children and Adult Services,Education,Transport,230008,Contract Hire,05-Jun-2015,2909620-2858A,"1,140.00",MR S BOWERS.
Children and Adult Services,Education,Transport,230008,Contract Hire,05-Jun-2015,2909620-2859,750.00,MR S BOWERS.
Children and Adult Services,Education,Transport,230008,Contract Hire,05-Jun-2015,2909650-711,"2,415.00",PG TRIPS.
Children and Adult Services,Education,Transport,230008,Contract Hire,05-Jun-2015,2909673-2185,"1,392.00",RICHIES TAXIS.
Children and Adult Services,Childrens Services,Supplies and Services,364352,Grants to Voluntary Organisations,05-Jun-2015,2909721-87803-121,973.92,STONHAM HOUSING ASSOCIATION LTD.
Children and Adult Services,Childrens Services,Supplies and Services,364352,Grants to Voluntary Organisations,05-Jun-2015,2909722-D1IN/00018518,902.00,STONHAM HOUSING ASSOCIATION LTD.
Neighbourhood Services,Technical Services,Supplies and Services,304221,Equipment and Materials,05-Jun-2015,2909364-21429928,931.48,AGGREGATE INDUSTRIES UK LTD.
Neighbourhood Services,Technical Services,Supplies and Services,304221,Equipment and Materials,05-Jun-2015,2909364-21429932,"1,255.25",AGGREGATE INDUSTRIES UK LTD.
Neighbourhood Services,Technical Services,Supplies and Services,304221,Equipment and Materials,05-Jun-2015,2909364-21429934,"1,297.80",AGGREGATE INDUSTRIES UK LTD.
Neighbourhood Services,Direct Services,Premises,108099,Service Repairs and Maintenance,05-Jun-2015,2909383-24617,"8,000.00",AQUAJET DRAIN CLEANING LTD.
Neighbourhood Services,Projects and Business services,Third Party Payments,430103,Rendered by Private Contractors,05-Jun-2015,2909411,593.23,BRITISH HEART FOUNDATION.
Neighbourhood Services,Culture & Sport,Supplies and Services,304259,Equipment and Materials,05-Jun-2015,2909426-90020,600.00,CARDEA SOLUTIONS (UK) LTD.
Neighbourhood Services,Culture & Sport,Supplies and Services,324001,Provisions,05-Jun-2015,2909428-841473590,"1,457.45",CARLSBERG UK LTD.
Neighbourhood Services,Direct Services,Supplies and Services,304259,Equipment and Materials,05-Jun-2015,2909429-459214,540.00,CARRS BILLINGTON AGRICULTURE.
Neighbourhood Services,Direct Services,Premises,106080,Centrally Controlled Rep and Maint,05-Jun-2015,2909448-901,500.00,CLEARPOWER LTD.
Neighbourhood Services,Direct Services,Premises,106080,Centrally Controlled Rep and Maint,05-Jun-2015,2909448-980,"1,000.00",CLEARPOWER LTD.
Neighbourhood Services,Culture & Sport,Supplies and Services,338099,Services,05-Jun-2015,2909491-2015,500.00,DURHAM CITY SHOPMOBILITY.
Neighbourhood Services,Culture & Sport,Supplies and Services,338047,Services,05-Jun-2015,2909492,"10,000.00",DURHAM MUSICAL THEATRE CO.
Neighbourhood Services,Culture & Sport,Supplies and Services,384199,Miscellaneous Expenses,05-Jun-2015,2909500-1510,"1,183.75",ELAINE LEES.
Neighbourhood Services,Culture & Sport,Premises,106082,Centrally Controlled Rep and Maint,05-Jun-2015,2909505-15500095,847.50,ENER-G COMBINED POWER LTD.
Neighbourhood Services,Culture & Sport,Premises,106082,Centrally Controlled Rep and Maint,05-Jun-2015,2909505-15500096,683.16,ENER-G COMBINED POWER LTD.
Neighbourhood Services,Culture & Sport,Premises,106082,Centrally Controlled Rep and Maint,05-Jun-2015,2909505-15500311A,683.16,ENER-G COMBINED POWER LTD.
Neighbourhood Services,Culture & Sport,Premises,106082,Centrally Controlled Rep and Maint,05-Jun-2015,2909505-15500326A,847.50,ENER-G COMBINED POWER LTD.
Neighbourhood Services,Technical Services,Supplies and Services,338027,Services,05-Jun-2015,2909530-0040158614,"5,918.00",HARTLEPOOL BOROUGH COUNCIL.
Neighbourhood Services,Direct Services,Transport,215022,Running Costs of Vehicles,05-Jun-2015,2909531-535890,661.59,HARVEST ENERGY LTD.
Neighbourhood Services,Technical Services,Stock,926900,Stock in hand-Inventory system,05-Jun-2015,2909543-488350,"2,640.96",INSTARMAC GROUP PLC.
Neighbourhood Services,Direct Services,Supplies and Services,304259,Equipment and Materials,05-Jun-2015,2909574-SI02-0064932,"1,750.09",KILLGERM CHEMICALS LTD.
Neighbourhood Services,EnvironmentHealth & Consumer Protection,Third Party Payments,430100,Rendered by Private Contractors,05-Jun-2015,2909597-313043/INVM578,500.00,MARK STYLES.
Neighbourhood Services,Culture & Sport,Supplies and Services,338099,Services,05-Jun-2015,2909634-013,"1,980.00",NORTH EXHIBITION SERVICES LTD.
Neighbourhood Services,Direct Services,Supplies and Services,304221,Equipment and Materials,05-Jun-2015,2909642-BR522224,854.51,PARK ELECTRICAL DISTRIBUTORS LTD.
Neighbourhood Services,Direct Services,Third Party Payments,430100,Rendered by Private Contractors,05-Jun-2015,2909643-INV528,"24,948.00",PASSFM LTD.
Neighbourhood Services,Direct Services,Third Party Payments,430100,Rendered by Private Contractors,05-Jun-2015,2909643-INV542,"15,000.00",PASSFM LTD.
Neighbourhood Services,Direct Services,Supplies and Services,304357,Equipment and Materials,05-Jun-2015,2909660-134022,"2,520.00",PREMIER TRAFFIC MANAGEMENT LTD.
Neighbourhood Services,Technical Services,Third Party Payments,430100,Rendered by Private Contractors,05-Jun-2015,2909660-134029,"5,306.65",PREMIER TRAFFIC MANAGEMENT LTD.
Neighbourhood Services,Direct Services,Premises,108251,Service Repairs and Maintenance,05-Jun-2015,2909664-4905,"2,742.07",QW SECURITY LTD.
Neighbourhood Services,EnvironmentHealth & Consumer Protection,Supplies and Services,372009,Subscriptions,05-Jun-2015,2909669-440081901,"5,925.50",REDCAR & CLEVELAND BOROUGH COUNCIL.
Neighbourhood Services,Technical Services,Supplies and Services,304221,Equipment and Materials,05-Jun-2015,2909698-170541,872.60,SHERBURN STONE CO LTD.
Neighbourhood Services,Technical Services,Supplies and Services,304221,Equipment and Materials,05-Jun-2015,2909698-170542,"1,259.63",SHERBURN STONE CO LTD.
Neighbourhood Services,Technical Services,Supplies and Services,304221,Equipment and Materials,05-Jun-2015,2909698-586992,501.38,SHERBURN STONE CO LTD.
Neighbourhood Services,Technical Services,Supplies and Services,304221,Equipment and Materials,05-Jun-2015,2909700-67948,"1,246.72",SIMMONSIGNS LTD.
Neighbourhood Services,Culture & Sport,Premises,145023,Cleaning and Domestic Supplies,05-Jun-2015,2909704-271330,"1,027.10",SIS CHEMICALS.
Neighbourhood Services,Culture & Sport,Income,715699,Sales,05-Jun-2015,2909707-0072466,"1,043.40",SOCIETY OF LONDON THEATRE.
Neighbourhood Services,Technical Services,Supplies and Services,304221,Equipment and Materials,05-Jun-2015,2909719-072112,"2,001.40",STONEGRAVE AGGREGATES LTD.
Neighbourhood Services,Technical Services,Stock,926900,Stock in hand-Inventory system,05-Jun-2015,2909762-22614653,650.00,WOLSELEY UK LTD.
RED HRA,Housing Revenue Account,Supplies and Services,344033,Telephones,05-Jun-2015,2909421-13628577,"1,143.78",CABLE & WIRELESS UK.
RED HRA,HRA Centrally Managed,Creditors,952184,Creditor-tenants contents insurance,05-Jun-2015,2909598-6508301,"2,349.49",MARSH LTD UK.
Regeneration & Economic Development,Spatial Policy Planning Assets & Environment,Supplies and Services,304259,Equipment and Materials,05-Jun-2015,2909423-1122493031,"1,993.75",CANFORD AUDIO PLC.
Regeneration & Economic Development,Economic Development and Housing,Supplies and Services,304999,Equipment and Materials,05-Jun-2015,2909482-K17669,575.90,DELTA ELECTRICAL & MECHANICAL SERVICES.
Regeneration & Economic Development,Spatial Policy Planning Assets & Environment,Supplies and Services,384159,Miscellaneous Expenses,05-Jun-2015,2909497-136,"7,207.20",EAGLE SECURITY BISHOP AUCKLAND LTD.
Regeneration & Economic Development,Economic Development and Housing,Supplies and Services,384700,Miscellaneous Expenses,05-Jun-2015,2909538-RED-06-2015-042,"2,000.00",HOME ON THE RANGE LTD.
Regeneration & Economic Development,Transport and Contracted Services,Construction Work,908105,Construction work,05-Jun-2015,2909549-11155,869.94,JACK COUPE & SONS LTD T/A COUPE LINE.
Regeneration & Economic Development,Spatial Policy Planning Assets & Environment,Third Party Payments,440999,Other Third Party Payments,05-Jun-2015,2909612-3815,"3,097.54",MICROCOPY SYSTEMS LTD.
Regeneration & Economic Development,Spatial Policy Planning Assets & Environment,Third Party Payments,440999,Other Third Party Payments,05-Jun-2015,2909612-3816,"3,524.58",MICROCOPY SYSTEMS LTD.
Regeneration & Economic Development,Economic Development and Housing,Construction Work,908113,Capital - Landscaping,05-Jun-2015,2909635-B-009979-B,"2,741.72",NORTHERN BEAR BUILDING SERVICES LTD.
Regeneration & Economic Development,Economic Development and Housing,Premises,135005,Water Services,05-Jun-2015,2909636-210359890013105,"1,015.49",NORTHUMBRIAN WATER LTD.
Regeneration & Economic Development,Economic Development and Housing,Supplies and Services,384437,Miscellaneous Expenses,05-Jun-2015,2909714-13565,"1,200.00",STANLEY TRAVEL (NORTH EAST) LTD.
Regeneration & Economic Development,Spatial Policy Planning Assets & Environment,Supplies and Services,384899,Miscellaneous Expenses,05-Jun-2015,2909741-RED-06-2015-043,640.00,TILHILL FORESTRY LTD.
Regeneration & Economic Development,Economic Development and Housing,Supplies and Services,384871,Miscellaneous Expenses,05-Jun-2015,2909746-150513,690.00,TRAINING SUPPORT FOR INDUSTRY LTD.
Regeneration & Economic Development,Economic Development and Housing,Supplies and Services,384871,Miscellaneous Expenses,05-Jun-2015,2909747-0000001,650.00,TREVOR MAYCHELL.
Resources,Legal & Democratic Services,Supplies and Services,338042,Services,05-Jun-2015,2909483-311765/INVNC108,"2,220.00",DERE STREET BARRISTERS.
Resources,Legal & Democratic Services,Supplies and Services,338042,Services,05-Jun-2015,2909483-313976/INVSEB183,540.00,DERE STREET BARRISTERS.
Resources,Legal & Democratic Services,Supplies and Services,338042,Services,05-Jun-2015,2909614-311077/INVPM160,900.00,MISS PAULINE MOULDER.
Resources,Legal & Democratic Services,Supplies and Services,338057,Services,05-Jun-2015,2909677-0000020000,"2,560.00",ROAR FORENSICS LTD.
Resources,Financial Services,Supplies and Services,384199,Miscellaneous Expenses,05-Jun-2015,2909718-90468434,"2,047.20",STOCKPORT MBC.
Resources,Financial Services,Supplies and Services,384199,Miscellaneous Expenses,05-Jun-2015,2909718-90468435,"1,706.00",STOCKPORT MBC.
Resources,Financial Services,Supplies and Services,384199,Miscellaneous Expenses,05-Jun-2015,2909718-90468436,"1,706.00",STOCKPORT MBC.
Resources,Financial Services,Supplies and Services,384199,Miscellaneous Expenses,05-Jun-2015,2909718-90468437,"2,047.20",STOCKPORT MBC.
Resources,I.C.T. Services,Supplies and Services,304259,Equipment and Materials,05-Jun-2015,2909764-96924283,"2,852.35",XEROX FINANCE LTD.
Resources,I.C.T. Services,Stock,926900,Stock in hand-Inventory system,05-Jun-2015,2909765-Y100433,"2,366.00",XMA LTD.
Assistant Chief Executive,Partnerships & Community Engagement Div.,Supplies and Services,384086,Miscellaneous Expenses,08-Jun-2015,2909891-VOUCHER15NB-EDUR004,"9,832.00",DAWDON YOUTH & COMMUNITY CENTRE.
Assistant Chief Executive,Partnerships & Community Engagement Div.,Supplies and Services,384085,Miscellaneous Expenses,08-Jun-2015,2909922-CRAP01-15LINJ01-15,"1,000.00",FERRYHILL TOWN COUNCIL.
Assistant Chief Executive,Partnerships & Community Engagement Div.,Supplies and Services,384085,Miscellaneous Expenses,08-Jun-2015,2909931-CLAJ02-15STRP01-15,500.00,FRIENDS OF COTSFORD JUNIOR SCHOOL.
Assistant Chief Executive,Partnerships & Community Engagement Div.,Supplies and Services,384086,Miscellaneous Expenses,08-Jun-2015,2910062-VOUCHER14NB-DVLY016,"10,000.00",MOORSIDE COMMUNITY ASSOCIATION.
Assistant Chief Executive,Partnerships & Community Engagement Div.,Supplies and Services,384085,Miscellaneous Expenses,08-Jun-2015,2910163-WILC02-15,600.00,SELBY CLOSE SOCIAL CLUB.
Assistant Chief Executive,Partnerships & Community Engagement Div.,Supplies and Services,384085,Miscellaneous Expenses,08-Jun-2015,2910194-MILO01-15,"1,000.00",TANFIELD LEA PARTNERSHIP.
Children and Adult Services,Head of Adults,Supplies and Services,338366,Services,08-Jun-2015,2909848-24665,690.24,CARE ABILITY.
Children and Adult Services,Head of Adults,Supplies and Services,338366,Services,08-Jun-2015,2909848-24667,818.45,CARE ABILITY.
Children and Adult Services,Education,Construction Work,908200,Capital - Public Utilities - Gas Services,08-Jun-2015,2909878-10075905,887.88,CORONA ENERGY RETAIL 2 LTD.
Children and Adult Services,Education,Construction Work,908200,Capital - Public Utilities - Gas Services,08-Jun-2015,2909878-10083375,861.56,CORONA ENERGY RETAIL 2 LTD.
Children and Adult Services,Education,Construction Work,908200,Capital - Public Utilities - Gas Services,08-Jun-2015,2909878-10088401,"2,260.12",CORONA ENERGY RETAIL 2 LTD.
Children and Adult Services,Head of Adults,Third Party Payments,478151,Purchase of Care,08-Jun-2015,2909884-0000100398,"5,016.16",CREATIVE SUPPORT LTD.
Children and Adult Services,Head of Adults,Third Party Payments,478151,Purchase of Care,08-Jun-2015,2909884-0000180399,"5,016.16",CREATIVE SUPPORT LTD.
Children and Adult Services,Head of Adults,Third Party Payments,478151,Purchase of Care,08-Jun-2015,2909884-0000180400,"5,016.16",CREATIVE SUPPORT LTD.
Children and Adult Services,Head of Adults,Third Party Payments,478151,Purchase of Care,08-Jun-2015,2909884-0000180401,"5,016.16",CREATIVE SUPPORT LTD.
Children and Adult Services,Education,Transport,230007,Contract Hire,08-Jun-2015,2909899-7344,"20,536.40",DURHAM CITY COACHES.
Children and Adult Services,Childrens Services,Third Party Payments,425040,Rendered by Voluntary Organisations,08-Jun-2015,2909928-13151,730.00,FOSTER CARES LTD.
Children and Adult Services,Childrens Services,Supplies and Services,364340,Grants to Voluntary Organisations,08-Jun-2015,2909942-CAS-06-2015-017,766.00,REDACTED - PAYMENT TO INDIVIDUAL
Children and Adult Services,Education,Supplies and Services,338027,Services,08-Jun-2015,2909964-INV000094,"4,000.00",HERMITAGE ACADEMY.
Children and Adult Services,Childrens Services,Supplies and Services,364352,Grants to Voluntary Organisations,08-Jun-2015,2909972-D1IN/00017223,"2,334.82",HOME GROUP LTD.
Children and Adult Services,Childrens Services,Supplies and Services,338026,Services,08-Jun-2015,2909980-0922014,"3,547.04",INVESTING IN CHILDREN CIC.
Children and Adult Services,Education,Transport,230007,Contract Hire,08-Jun-2015,2910023-255,"11,818.40",LEE`S COACHES LTD.
Children and Adult Services,Childrens Services,Third Party Payments,440999,Other Third Party Payments,08-Jun-2015,2910049-CAS-06-2015-019,886.70,REDACTED - PAYMENT TO INDIVIDUAL
Children and Adult Services,Education,Transfer Payments,510026,School Children,08-Jun-2015,2910137-DOB29/02/2012,"1,170.00",RAINBOW NURSERY LTD (MIDDLESTONE MOOR).
Children and Adult Services,Childrens Services,Third Party Payments,425017,Rendered by Voluntary Organisations,08-Jun-2015,2910183-1160226,"1,932.00",ST CUTHBERTS CARE.
Children and Adult Services,Childrens Services,Third Party Payments,425017,Rendered by Voluntary Organisations,08-Jun-2015,2910183-1160227,"1,987.00",ST CUTHBERTS CARE.
Children and Adult Services,Education,Supplies and Services,338027,Services,08-Jun-2015,2910184-0000000591,"1,200.00",ST JOHN`S SCHOOL & SIXTH FORM COLLEGE A CATHOLIC ACADEMY.
Children and Adult Services,Childrens Services,Supplies and Services,364352,Grants to Voluntary Organisations,08-Jun-2015,2910188-D1IN/00017221,"2,334.82",STONHAM HOUSING ASSOCIATION LTD.
Children and Adult Services,Childrens Services,Supplies and Services,364352,Grants to Voluntary Organisations,08-Jun-2015,2910188-D1IN/00017224,"2,334.82",STONHAM HOUSING ASSOCIATION LTD.
Children and Adult Services,Childrens Services,Supplies and Services,364352,Grants to Voluntary Organisations,08-Jun-2015,2910188-D1IN/00017225,"2,334.82",STONHAM HOUSING ASSOCIATION LTD.
Children and Adult Services,Education,Supplies and Services,344033,Telephones,08-Jun-2015,2910193-05217408,"1,504.86",TALKTALK BUSINESS.
Children and Adult Services,Childrens Services,Third Party Payments,425040,Rendered by Voluntary Organisations,08-Jun-2015,2910200-24975,"1,225.71",TEAM FOSTERING.
Children and Adult Services,Childrens Services,Employees,080025,Agency Staff,08-Jun-2015,2910203-4810005035,"6,592.00",TEES ESK & WEAR VALLEYS NHS FOUNDATION TRUST.
Children and Adult Services,Childrens Services,Third Party Payments,440999,Other Third Party Payments,08-Jun-2015,2910203-4810005036,"3,500.00",TEES ESK & WEAR VALLEYS NHS FOUNDATION TRUST.
Children and Adult Services,Education,Employees,040001,Recruitment Instruction and Training,08-Jun-2015,2910206-TARINV/15377990,710.10,TES GLOBAL LTD.
Children and Adult Services,Education,Employees,040001,Recruitment Instruction and Training,08-Jun-2015,2910206-TARINV/15378709,710.10,TES GLOBAL LTD.
Children and Adult Services,Childrens Services,Third Party Payments,486042,Service Level Agreements,08-Jun-2015,2910209-RINVE/00002024,"2,050.00",THE FOSTERING NETWORK.
Children and Adult Services,Childrens Services,Employees,080025,Agency Staff,08-Jun-2015,2910235-159538,570.00,VISION FOR EDUCATION LTD.
Children and Adult Services,Childrens Services,Employees,080025,Agency Staff,08-Jun-2015,2910235-159539,950.00,VISION FOR EDUCATION LTD.
Children and Adult Services,Education,Third Party Payments,440999,Other Third Party Payments,08-Jun-2015,2910252-DCC-LC1/1,"1,497.60",YMS TRAINING LTD.
Neighbourhood Services,Technical Services,Supplies and Services,304221,Equipment and Materials,08-Jun-2015,2909785-21422977,"1,238.94",AGGREGATE INDUSTRIES UK LTD.
Neighbourhood Services,Technical Services,Supplies and Services,304221,Equipment and Materials,08-Jun-2015,2909785-21436548,"1,087.22",AGGREGATE INDUSTRIES UK LTD.
Neighbourhood Services,Technical Services,Supplies and Services,304221,Equipment and Materials,08-Jun-2015,2909785-21436549,"1,257.76",AGGREGATE INDUSTRIES UK LTD.
Neighbourhood Services,Technical Services,Supplies and Services,304221,Equipment and Materials,08-Jun-2015,2909785-21436550,749.89,AGGREGATE INDUSTRIES UK LTD.
Neighbourhood Services,Technical Services,Supplies and Services,304221,Equipment and Materials,08-Jun-2015,2909785-21443870,660.54,AGGREGATE INDUSTRIES UK LTD.
Neighbourhood Services,Technical Services,Supplies and Services,304221,Equipment and Materials,08-Jun-2015,2909785-21443973,"10,559.07",AGGREGATE INDUSTRIES UK LTD.
Neighbourhood Services,Technical Services,Supplies and Services,304221,Equipment and Materials,08-Jun-2015,2909785-21443974,"1,399.69",AGGREGATE INDUSTRIES UK LTD.
Neighbourhood Services,Technical Services,Supplies and Services,304221,Equipment and Materials,08-Jun-2015,2909785-21443975,789.28,AGGREGATE INDUSTRIES UK LTD.
Neighbourhood Services,Technical Services,Supplies and Services,304221,Equipment and Materials,08-Jun-2015,2909785-21443976,675.35,AGGREGATE INDUSTRIES UK LTD.
Neighbourhood Services,Technical Services,Supplies and Services,304221,Equipment and Materials,08-Jun-2015,2909785-21443977,"1,226.41",AGGREGATE INDUSTRIES UK LTD.
Neighbourhood Services,Technical Services,Supplies and Services,304221,Equipment and Materials,08-Jun-2015,2909785-21443978,833.66,AGGREGATE INDUSTRIES UK LTD.
Neighbourhood Services,Direct Services,Supplies and Services,304221,Equipment and Materials,08-Jun-2015,2909792-576A,"4,200.00",ALL SEASONS ARBORISTS.
Neighbourhood Services,Direct Services,Third Party Payments,430100,Rendered by Private Contractors,08-Jun-2015,2909793-15118,"1,017.50",AMBIC LTD.
Neighbourhood Services,Technical Services,Stock,926900,Stock in hand-Inventory system,08-Jun-2015,2909795-924668510,"1,062.51",ARCO LTD.
Neighbourhood Services,Direct Services,Third Party Payments,430100,Rendered by Private Contractors,08-Jun-2015,2909805-5064,"4,425.00",ATLAS WASHROOM SYSTEMS LTD.
Neighbourhood Services,Direct Services,Supplies and Services,304259,Equipment and Materials,08-Jun-2015,2909809-95872202,585.00,BALL COLEGRAVE LTD.
Neighbourhood Services,Direct Services,Transport,210057,Repair and Maintenance of Vehicles,08-Jun-2015,2909815-25156428,574.00,BELL TRUCK SALES LTD.
Neighbourhood Services,Direct Services,Third Party Payments,430100,Rendered by Private Contractors,08-Jun-2015,2909815-46039892,525.45,BELL TRUCK SALES LTD.
Neighbourhood Services,Technical Services,Supplies and Services,304221,Equipment and Materials,08-Jun-2015,2909816-47678943,684.95,BENTLEY SYSTEMS INTERNATIONAL LTD.
Neighbourhood Services,Technical Services,Stock,926900,Stock in hand-Inventory system,08-Jun-2015,2909824-8358409,"1,050.00",BOLD NU TEC INSULATION PRODUCTS & SERVICES LTD.
Neighbourhood Services,Culture & Sport,Supplies and Services,312013,Newspapers Books and Periodicals,08-Jun-2015,2909825-12774,"1,158.55",BOLINDA DIGITAL LTD.
Neighbourhood Services,Culture & Sport,Supplies and Services,324117,Provisions,08-Jun-2015,2909850-841483220,528.36,CARLSBERG UK LTD.
Neighbourhood Services,Direct Services,Third Party Payments,430100,Rendered by Private Contractors,08-Jun-2015,2909851-459573,"1,281.06",CARRS BILLINGTON AGRICULTURE.
Neighbourhood Services,Direct Services,Transport,210057,Repair and Maintenance of Vehicles,08-Jun-2015,2909858-314431,586.43,CHATFIELDS.
Neighbourhood Services,Technical Services,Premises,150015,Apportioned Exps of Operational Blds,08-Jun-2015,2909866-19576,821.40,CLEE HILL PLANT LTD.
Neighbourhood Services,Technical Services,Premises,150015,Apportioned Exps of Operational Blds,08-Jun-2015,2909866-19577,821.40,CLEE HILL PLANT LTD.
Neighbourhood Services,Technical Services,Stock,926004,Stock,08-Jun-2015,2909867-90135842,"20,431.33",CLEVELAND POTASH LTD.
Neighbourhood Services,Projects and Business services,Supplies and Services,352001,Conference Expenses,08-Jun-2015,2909916-WEB10979,717.00,ENVIRONMENTAL MEDIA GROUP.
Neighbourhood Services,Direct Services,Supplies and Services,304221,Equipment and Materials,08-Jun-2015,2909929-6/451986,572.18,FRED WILLIAMSON & SONS LTD.
Neighbourhood Services,Technical Services,Third Party Payments,430100,Rendered by Private Contractors,08-Jun-2015,2909936-108443644,"18,955.76",GATESHEAD COUNCIL.
Neighbourhood Services,Direct Services,Supplies and Services,304259,Equipment and Materials,08-Jun-2015,2909940-368098,"6,891.88",GEMCO EQUIPMENT LTD.
Neighbourhood Services,Technical Services,Supplies and Services,304221,Equipment and Materials,08-Jun-2015,2909946-29329,750.00,GRAB & DELIVER LTD.
Neighbourhood Services,Technical Services,Supplies and Services,304221,Equipment and Materials,08-Jun-2015,2909946-29332,"1,805.00",GRAB & DELIVER LTD.
Neighbourhood Services,Technical Services,Supplies and Services,304221,Equipment and Materials,08-Jun-2015,2909946-29333,"2,400.00",GRAB & DELIVER LTD.
Neighbourhood Services,Technical Services,Stock,926900,Stock in hand-Inventory system,08-Jun-2015,2909951-06/556423,"1,116.20",GREENHAM TRADING LTD.
Neighbourhood Services,Technical Services,Stock,926900,Stock in hand-Inventory system,08-Jun-2015,2909951-06/556741,"1,526.10",GREENHAM TRADING LTD.
Neighbourhood Services,Direct Services,Stock,926004,Stock,08-Jun-2015,2909952-122171,658.48,GREENLAY (GRASS MACHINERY) LTD.
Neighbourhood Services,Direct Services,Supplies and Services,304221,Equipment and Materials,08-Jun-2015,2909953-J4931,"1,514.41",GROVE REED.
Neighbourhood Services,Direct Services,Supplies and Services,304221,Equipment and Materials,08-Jun-2015,2909953-J4932,522.00,GROVE REED.
Neighbourhood Services,Culture & Sport,Supplies and Services,384199,Miscellaneous Expenses,08-Jun-2015,2909955-11281A,"8,372.50",HAMILTON DESIGN LTD.
Neighbourhood Services,Direct Services,Stock,926004,Stock,08-Jun-2015,2909957-535894,"11,347.89",HARVEST ENERGY LTD.
Neighbourhood Services,Direct Services,Third Party Payments,430100,Rendered by Private Contractors,08-Jun-2015,2909961-207320,555.00,HEDLEY HYDRAULICS LTD.
Neighbourhood Services,Culture & Sport,Supplies and Services,384199,Miscellaneous Expenses,08-Jun-2015,2909967-HBBATH42,700.00,HILARITY BITES COMEDY CLUB.
Neighbourhood Services,Direct Services,Third Party Payments,430100,Rendered by Private Contractors,08-Jun-2015,2909971-58916,927.00,HOGARTH COACHWORKS LTD.
Neighbourhood Services,Direct Services,Third Party Payments,430100,Rendered by Private Contractors,08-Jun-2015,2909971-58995,530.00,HOGARTH COACHWORKS LTD.
Neighbourhood Services,Direct Services,Third Party Payments,430100,Rendered by Private Contractors,08-Jun-2015,2909971-59196,"1,908.40",HOGARTH COACHWORKS LTD.
Neighbourhood Services,Technical Services,Construction Work,908105,Construction work,08-Jun-2015,2909985-11244,"1,439.50",JACK COUPE & SONS LTD T/A COUPE LINE.
Neighbourhood Services,Technical Services,Supplies and Services,338027,Services,08-Jun-2015,2909986-B225H002,"5,540.39",JACOBS UK LTD.
Neighbourhood Services,Technical Services,Employees,080025,Agency Staff,08-Jun-2015,2909986-B225H002-072,"3,801.23",JACOBS UK LTD.
Neighbourhood Services,Technical Services,Employees,080025,Agency Staff,08-Jun-2015,2909986-B225H002-073,682.38,JACOBS UK LTD.
Neighbourhood Services,Technical Services,Employees,080025,Agency Staff,08-Jun-2015,2909986-B225H002-075,"7,079.90",JACOBS UK LTD.
Neighbourhood Services,Technical Services,Employees,080025,Agency Staff,08-Jun-2015,2909986-B225H003-017,"2,560.59",JACOBS UK LTD.
Neighbourhood Services,Technical Services,Employees,080025,Agency Staff,08-Jun-2015,2909986-B225H003-018,"1,812.81",JACOBS UK LTD.
Neighbourhood Services,Technical Services,Employees,080025,Agency Staff,08-Jun-2015,2909986-B225H003-019,"3,953.14",JACOBS UK LTD.
Neighbourhood Services,Direct Services,Third Party Payments,430100,Rendered by Private Contractors,08-Jun-2015,2909987-2859,"1,488.63",JAMES INGLEFORD SCAFFOLDING LTD.
Neighbourhood Services,Direct Services,Third Party Payments,430100,Rendered by Private Contractors,08-Jun-2015,2909990-146354,"5,341.24",JG PAXTON & SONS LTD.
Neighbourhood Services,Technical Services,Stock,926900,Stock in hand-Inventory system,08-Jun-2015,2909991-7201,511.00,JG UNIFORMS.
Neighbourhood Services,Technical Services,Stock,926900,Stock in hand-Inventory system,08-Jun-2015,2909996-NI027894,"14,749.92",JOHN MACLEAN & SONS ELECTRICAL (DINGWALL) LTD.
Neighbourhood Services,Technical Services,Supplies and Services,304221,Equipment and Materials,08-Jun-2015,2910005-CNI22115/D,"1,534.08",JT DOVE LTD.
Neighbourhood Services,Projects and Business services,Third Party Payments,430121,Rendered by Private Contractors,08-Jun-2015,2910006-P4163,872.70,JUMO INSTRUMENT CO LTD.
Neighbourhood Services,Technical Services,Supplies and Services,304221,Equipment and Materials,08-Jun-2015,2910010-6595,"2,702.70",KEN THOMAS (SITE CLEARANCE LTD).
Neighbourhood Services,Technical Services,Supplies and Services,304221,Equipment and Materials,08-Jun-2015,2910010-6596,827.32,KEN THOMAS (SITE CLEARANCE LTD).
Neighbourhood Services,Technical Services,Supplies and Services,304221,Equipment and Materials,08-Jun-2015,2910016-9032645342,"1,349.60",LAFARGE TARMAC TRADING LTD.
Neighbourhood Services,Technical Services,Supplies and Services,304221,Equipment and Materials,08-Jun-2015,2910016-9032654127,632.63,LAFARGE TARMAC TRADING LTD.
Neighbourhood Services,Technical Services,Supplies and Services,304221,Equipment and Materials,08-Jun-2015,2910016-9032655700,975.00,LAFARGE TARMAC TRADING LTD.
Neighbourhood Services,Technical Services,Supplies and Services,304221,Equipment and Materials,08-Jun-2015,2910016-9032659269,"2,489.65",LAFARGE TARMAC TRADING LTD.
Neighbourhood Services,Technical Services,Supplies and Services,304221,Equipment and Materials,08-Jun-2015,2910016-9032664141,674.80,LAFARGE TARMAC TRADING LTD.
Neighbourhood Services,Technical Services,Supplies and Services,304221,Equipment and Materials,08-Jun-2015,2910016-9032671509,"1,091.48",LAFARGE TARMAC TRADING LTD.
Neighbourhood Services,Technical Services,Supplies and Services,304221,Equipment and Materials,08-Jun-2015,2910016-9032675666,637.20,LAFARGE TARMAC TRADING LTD.
Neighbourhood Services,Technical Services,Supplies and Services,304221,Equipment and Materials,08-Jun-2015,2910016-9032677568,"1,138.73",LAFARGE TARMAC TRADING LTD.
Neighbourhood Services,Technical Services,Supplies and Services,372009,Subscriptions,08-Jun-2015,2910029-6709,"1,580.00",LIGHTING REALITY LTD.
Neighbourhood Services,Direct Services,Third Party Payments,430100,Rendered by Private Contractors,08-Jun-2015,2910031-SI1940901,700.00,LINDEN FLUID POWER LTD.
Neighbourhood Services,Technical Services,Supplies and Services,304221,Equipment and Materials,08-Jun-2015,2910044-125951,671.00,MACDONALD AIR PRODUCTS LTD.
Neighbourhood Services,Direct Services,Supplies and Services,304221,Equipment and Materials,08-Jun-2015,2910045-827/038810,593.25,MAGNET LTD.
Neighbourhood Services,Direct Services,Third Party Payments,430100,Rendered by Private Contractors,08-Jun-2015,2910091-5551,535.30,N1 JETTING SYSTEMS LTD.
Neighbourhood Services,Direct Services,Third Party Payments,430100,Rendered by Private Contractors,08-Jun-2015,2910091-5552,787.03,N1 JETTING SYSTEMS LTD.
Neighbourhood Services,Direct Services,Third Party Payments,430105,Rendered by Private Contractors,08-Jun-2015,2910093-268,"1,517.16",NE GREEN WASTE RECYCLING LTD.
Neighbourhood Services,Direct Services,Third Party Payments,430105,Rendered by Private Contractors,08-Jun-2015,2910093-276,604.76,NE GREEN WASTE RECYCLING LTD.
Neighbourhood Services,Direct Services,Third Party Payments,430100,Rendered by Private Contractors,08-Jun-2015,2910094-INVDUR00312108,"1,095.00",NE TRUCK SPARES LTD.
Neighbourhood Services,Technical Services,Construction Work,908108,Capital - Surface Dressing,08-Jun-2015,2910098-11112038,724.41,NEWSQUEST (YORKSHIRE & NORTH EAST) LTD.
Neighbourhood Services,Technical Services,Other Expenses,914002,Capital - Advertisments,08-Jun-2015,2910098-11112059,882.44,NEWSQUEST (YORKSHIRE & NORTH EAST) LTD.
Neighbourhood Services,Direct Services,Third Party Payments,430100,Rendered by Private Contractors,08-Jun-2015,2910103-1372015,"1,688.15",NORTH EAST TRUCK & VAN LTD.
Neighbourhood Services,Direct Services,Supplies and Services,304259,Equipment and Materials,08-Jun-2015,2910107-1588164,567.00,NORTHERN TOOLS & ACCESSORIES.
Neighbourhood Services,Technical Services,Stock,926900,Stock in hand-Inventory system,08-Jun-2015,2910107-1593202,600.00,NORTHERN TOOLS & ACCESSORIES.
Neighbourhood Services,Projects and Business services,Third Party Payments,430100,Rendered by Private Contractors,08-Jun-2015,2910113-CN19004268,528.40,OCS GROUP UK LTD T/A CANNON HYGIENE.
Neighbourhood Services,Direct Services,Supplies and Services,304221,Equipment and Materials,08-Jun-2015,2910118-XL141474,770.50,PARK ELECTRICAL DISTRIBUTORS LTD.
Neighbourhood Services,Direct Services,Supplies and Services,304221,Equipment and Materials,08-Jun-2015,2910118-XL143032,"1,028.85",PARK ELECTRICAL DISTRIBUTORS LTD.
Neighbourhood Services,Technical Services,Stock,926900,Stock in hand-Inventory system,08-Jun-2015,2910118-XL143036,"1,856.00",PARK ELECTRICAL DISTRIBUTORS LTD.
Neighbourhood Services,Technical Services,Stock,926900,Stock in hand-Inventory system,08-Jun-2015,2910118-XL143038,"1,108.80",PARK ELECTRICAL DISTRIBUTORS LTD.
Neighbourhood Services,Technical Services,Stock,926900,Stock in hand-Inventory system,08-Jun-2015,2910118-XL143135,610.00,PARK ELECTRICAL DISTRIBUTORS LTD.
Neighbourhood Services,Technical Services,Stock,926900,Stock in hand-Inventory system,08-Jun-2015,2910118-XL143175,798.00,PARK ELECTRICAL DISTRIBUTORS LTD.
Neighbourhood Services,Technical Services,Stock,926900,Stock in hand-Inventory system,08-Jun-2015,2910118-XL143241,"2,231.90",PARK ELECTRICAL DISTRIBUTORS LTD.
Neighbourhood Services,Culture & Sport,Supplies and Services,384956,Miscellaneous Expenses,08-Jun-2015,2910122-4536047,"1,481.45",PERFORMING RIGHT SOCIETY LTD T/A PRS FOR MUSIC.
Neighbourhood Services,Culture & Sport,Supplies and Services,304221,Equipment and Materials,08-Jun-2015,2910134-CIP-000000098,"1,649.10",PROSPEC LTD.
Neighbourhood Services,Culture & Sport,Supplies and Services,324117,Provisions,08-Jun-2015,2910138-000002502,"2,252.00",RAMSIDE ESTATES LTD T/A RAMSIDE HALL HOTEL.
Neighbourhood Services,Culture & Sport,Supplies and Services,384199,Miscellaneous Expenses,08-Jun-2015,2910149-01,"2,000.00",ROBERT BOWMAN.
Neighbourhood Services,Technical Services,Stock,926900,Stock in hand-Inventory system,08-Jun-2015,2910172-288567/120259,"19,400.00",SIGNATURE LTD T/A POST & COLUMN CO LTD.
Neighbourhood Services,Culture & Sport,Fees,901002,Professional fees,08-Jun-2015,2910178-732/PJ1471/09,"2,787.00",SOUTHERN GREEN LTD.
Neighbourhood Services,Technical Services,Supplies and Services,304221,Equipment and Materials,08-Jun-2015,2910187-072159,"1,034.80",STONEGRAVE AGGREGATES LTD.
Neighbourhood Services,Direct Services,Supplies and Services,304221,Equipment and Materials,08-Jun-2015,2910192-1593966,543.50,T CROSSLING & CO LTD.
Neighbourhood Services,Direct Services,Stock,926004,Stock,08-Jun-2015,2910204-4042519,"1,020.00",TENNANTS DISTRIBUTION LTD.
Neighbourhood Services,Technical Services,Creditors,952029,Creditor-returnable bonds,08-Jun-2015,2910214,"4,203.63",THEAKSTON ESTATES LTD.
Neighbourhood Services,Direct Services,Supplies and Services,304221,Equipment and Materials,08-Jun-2015,2910220-103119,571.78,TOMMY WARDLE.
Neighbourhood Services,Direct Services,Supplies and Services,304221,Equipment and Materials,08-Jun-2015,2910220-103122,659.99,TOMMY WARDLE.
Neighbourhood Services,Direct Services,Supplies and Services,304221,Equipment and Materials,08-Jun-2015,2910228-51374,783.90,TURF CARE SPECIALISTS LTD.
Neighbourhood Services,Direct Services,Supplies and Services,304221,Equipment and Materials,08-Jun-2015,2910228-51375,763.62,TURF CARE SPECIALISTS LTD.
Neighbourhood Services,Direct Services,Third Party Payments,430100,Rendered by Private Contractors,08-Jun-2015,2910231-2809,"6,299.25",UPNORTH FOODSERVICE EQUIPMENT LTD.
Neighbourhood Services,Technical Services,Supplies and Services,304221,Equipment and Materials,08-Jun-2015,2910238-18109,959.40,WARD TIMBER LTD.
Neighbourhood Services,Technical Services,Premises,150015,Apportioned Exps of Operational Blds,08-Jun-2015,2910241-416069,598.29,WERNICK HIRE LTD.
Neighbourhood Services,Technical Services,Premises,150015,Apportioned Exps of Operational Blds,08-Jun-2015,2910241-416073,598.29,WERNICK HIRE LTD.
Neighbourhood Services,Direct Services,Premises,150015,Apportioned Exps of Operational Blds,08-Jun-2015,2910241-416201,775.00,WERNICK HIRE LTD.
Neighbourhood Services,Direct Services,Premises,150015,Apportioned Exps of Operational Blds,08-Jun-2015,2910241-416218,664.95,WERNICK HIRE LTD.
Neighbourhood Services,Direct Services,Premises,150015,Apportioned Exps of Operational Blds,08-Jun-2015,2910241-416219,664.95,WERNICK HIRE LTD.
Neighbourhood Services,Direct Services,Premises,150015,Apportioned Exps of Operational Blds,08-Jun-2015,2910241-416221,511.90,WERNICK HIRE LTD.
Neighbourhood Services,Direct Services,Premises,150015,Apportioned Exps of Operational Blds,08-Jun-2015,2910241-416224,777.21,WERNICK HIRE LTD.
Neighbourhood Services,Technical Services,Supplies and Services,304221,Equipment and Materials,08-Jun-2015,2910244-7181,"1,300.00",WILF HUSBAND PLANT HIRE.
Neighbourhood Services,Technical Services,Supplies and Services,304221,Equipment and Materials,08-Jun-2015,2910244-7183,"1,250.00",WILF HUSBAND PLANT HIRE.
Neighbourhood Services,Direct Services,Transport,210057,Repair and Maintenance of Vehicles,08-Jun-2015,2910255-SI69495,559.41,ZOELLER WASTE SYSTEMS LTD.
Regeneration & Economic Development,Transport and Contracted Services,Third Party Payments,430100,Rendered by Private Contractors,08-Jun-2015,2909797-CONCFARE-JUN15,"722,610.00",ARRIVA DURHAM COUNTY LTD.
Regeneration & Economic Development,Economic Development and Housing,Cap Exp on Grants & Other Financial Assistance (REFCUS),918401,Capital grants,08-Jun-2015,2909853-RED-06-2015-045,"11,364.00",CASTLEDENE PROPERTY MANAGEMENT LTD.
Regeneration & Economic Development,Economic Development and Housing,Cap Exp on Grants & Other Financial Assistance (REFCUS),918401,Capital grants,08-Jun-2015,2909853-RED-06-2015-046,"6,237.00",CASTLEDENE PROPERTY MANAGEMENT LTD.
Regeneration & Economic Development,Economic Development and Housing,Premises,120021,Energy Costs,08-Jun-2015,2909878-10159086,809.74,CORONA ENERGY RETAIL 2 LTD.
Regeneration & Economic Development,Economic Development and Housing,Premises,120021,Energy Costs,08-Jun-2015,2909878-10159204,544.26,CORONA ENERGY RETAIL 2 LTD.
Regeneration & Economic Development,Economic Development and Housing,Premises,120021,Energy Costs,08-Jun-2015,2909878-10159213,"1,288.06",CORONA ENERGY RETAIL 2 LTD.
Regeneration & Economic Development,Economic Development and Housing,Premises,120021,Energy Costs,08-Jun-2015,2909878-10159246,527.19,CORONA ENERGY RETAIL 2 LTD.
Regeneration & Economic Development,Transport and Contracted Services,Supplies and Services,384960,Miscellaneous Expenses,08-Jun-2015,2909919-985488,"1,833.65",ESP SYSTEX LTD.
Regeneration & Economic Development,Economic Development and Housing,Cap Exp on Grants & Other Financial Assistance (REFCUS),918004,Contributions to other bodies,08-Jun-2015,2909944-1,"1,785.00",GLEDHILL & WHITE.
Regeneration & Economic Development,Transport and Contracted Services,Third Party Payments,430100,Rendered by Private Contractors,08-Jun-2015,2909945-CONCFARE-JUN15,"766,473.00",GO NORTH EAST LTD.
Regeneration & Economic Development,Transport and Contracted Services,Third Party Payments,430100,Rendered by Private Contractors,08-Jun-2015,2909945-CONCFARE-JUN15B,"3,791.10",GO NORTH EAST LTD.
Regeneration & Economic Development,Transport and Contracted Services,Third Party Payments,430100,Rendered by Private Contractors,08-Jun-2015,2909948-CONCFARE-JUN15,565.47,GRAHAMS MOTOR SERVICES.
Regeneration & Economic Development,Transport and Contracted Services,Third Party Payments,430100,Rendered by Private Contractors,08-Jun-2015,2909970-CONCFARE-JUN15,556.75,HODGSONS COACH OPERATORS LTD.
Regeneration & Economic Development,Transport and Contracted Services,Third Party Payments,430100,Rendered by Private Contractors,08-Jun-2015,2909974-CONCFARE-JUN15,"11,100.35",HUNTER BROTHERS (TANTOBIE) LTD.
Regeneration & Economic Development,Transport and Contracted Services,Third Party Payments,430100,Rendered by Private Contractors,08-Jun-2015,2909995-CONCFARE-JUN15,"2,742.17",JOHN JAMES BRUNSKILL.
Regeneration & Economic Development,Transport and Contracted Services,Supplies and Services,384199,Miscellaneous Expenses,08-Jun-2015,2910034-3393,"208,126.00",LIVING STREETS.
Regeneration & Economic Development,Transport and Contracted Services,Third Party Payments,430106,Rendered by Private Contractors,08-Jun-2015,2910051-26/4/15-23/5/15,"1,248.00",MAURICE & SONS.
Regeneration & Economic Development,Economic Development and Housing,Cap Exp on Grants & Other Financial Assistance (REFCUS),918401,Capital grants,08-Jun-2015,2910068-RED-06-2015-044,"1,913.71",REDACTED - PAYMENT TO INDIVIDUAL
Regeneration & Economic Development,Spatial Policy Planning Assets & Environment,Supplies and Services,336005,Advertising,08-Jun-2015,2910098-11112052,724.41,NEWSQUEST (YORKSHIRE & NORTH EAST) LTD.
Regeneration & Economic Development,Transport and Contracted Services,Third Party Payments,430100,Rendered by Private Contractors,08-Jun-2015,2910106-CONCFARE-JUN15,"3,965.27",NORTHERN RAIL LTD.
Regeneration & Economic Development,Transport and Contracted Services,Premises,120009,Energy Costs,08-Jun-2015,2910110-NNO7PMJN,"3,117.53",NPOWER.
Regeneration & Economic Development,Transport and Contracted Services,Third Party Payments,430100,Rendered by Private Contractors,08-Jun-2015,2910111-031697,"24,539.17",NSL LTD.
Regeneration & Economic Development,Transport and Contracted Services,Third Party Payments,430100,Rendered by Private Contractors,08-Jun-2015,2910111-031702,"1,132.64",NSL LTD.
Regeneration & Economic Development,Transport and Contracted Services,Third Party Payments,430100,Rendered by Private Contractors,08-Jun-2015,2910111-031703,"44,210.52",NSL LTD.
Regeneration & Economic Development,Transport and Contracted Services,Third Party Payments,430100,Rendered by Private Contractors,08-Jun-2015,2910111-031704,"2,762.19",NSL LTD.
Regeneration & Economic Development,Transport and Contracted Services,Third Party Payments,430100,Rendered by Private Contractors,08-Jun-2015,2910111-031705,"5,399.46",NSL LTD.
Regeneration & Economic Development,Transport and Contracted Services,Third Party Payments,430100,Rendered by Private Contractors,08-Jun-2015,2910111-031706,"14,836.94",NSL LTD.
Regeneration & Economic Development,Transport and Contracted Services,Third Party Payments,430100,Rendered by Private Contractors,08-Jun-2015,2910111-031843,"6,853.86",NSL LTD.
Regeneration & Economic Development,Transport and Contracted Services,Third Party Payments,430100,Rendered by Private Contractors,08-Jun-2015,2910157,"9,898.57",SB TRAVEL.
Regeneration & Economic Development,Transport and Contracted Services,Third Party Payments,430106,Rendered by Private Contractors,08-Jun-2015,2910158-1970,"129,422.65",SCARLET BAND BUS & COACH LTD.
Regeneration & Economic Development,Transport and Contracted Services,Third Party Payments,430100,Rendered by Private Contractors,08-Jun-2015,2910158-CONCFARE-JUN15,"18,721.81",SCARLET BAND BUS & COACH LTD.
Regeneration & Economic Development,Economic Development and Housing,Cap Exp on Grants & Other Financial Assistance (REFCUS),918401,Capital grants,08-Jun-2015,2910174-RED-06-2015-047,"2,100.00",SJ WOODS PLUMIBING & HEATING LTD.
Regeneration & Economic Development,Transport and Contracted Services,Supplies and Services,304245,Equipment and Materials,08-Jun-2015,2910227-3IN/10261529,"2,180.00",TUNSTALL HEALTHCARE (UK) LTD.
Regeneration & Economic Development,Transport and Contracted Services,Third Party Payments,430100,Rendered by Private Contractors,08-Jun-2015,2910239-JUN15,"19,319.04",WEARDALE MOTOR SERVICES LTD.
Regeneration & Economic Development,Transport and Contracted Services,Third Party Payments,430100,Rendered by Private Contractors,08-Jun-2015,2910239-JUN15X21,"1,205.98",WEARDALE MOTOR SERVICES LTD.
Resources,I.C.T. Services,Supplies and Services,332029,Printing Stationery and Gen Off Exps,08-Jun-2015,2909786-208536,"6,197.00",AGNE LTD T/A ALPHAGRAPHICS.
Resources,I.C.T. Services,Debtors,930167,Debtor-Telephone Holding Account,08-Jun-2015,2909806-272789,"6,902.12",AZZURRI COMMUNICATIONS LTD.
Resources,Legal & Democratic Services,Supplies and Services,338025,Services,08-Jun-2015,2909871-S44995-01040,600.00,CO-OPERATIVE FUNERAL CARE.
Resources,Financial Services,Supplies and Services,384197,Miscellaneous Expenses,08-Jun-2015,2909978-8902,768.00,INGRAMS REMOVERS & STORERS.
Resources,Legal & Democratic Services,Supplies and Services,338045,Services,08-Jun-2015,2910036-40142252,"1,713.24",LOCAL GOVERNMENT ASSOCIATION.
Resources,I.C.T. Services,Supplies and Services,304303,Equipment and Materials,08-Jun-2015,2910054-0000086104,"11,913.08",MILLENNIUM BUSINESS SYSTEMS LTD.
Resources,Legal & Democratic Services,Supplies and Services,338042,Services,08-Jun-2015,2910076-INVJB199,900.00,MR JAMES BROWN.
Resources,Legal & Democratic Services,Supplies and Services,338057,Services,08-Jun-2015,2910148-0000020041,"2,955.00",ROAR FORENSICS LTD.
Assistant Chief Executive,Partnerships & Community Engagement Div.,Supplies and Services,384085,Miscellaneous Expenses,09-Jun-2015,2910891-KAYC01-15,530.00,BINCHESTER COMMUNITY ASSOCIATION.
Children and Adult Services,Childrens Services,Third Party Payments,440001,Other Third Party Payments,09-Jun-2015,240095-1031479,"2,152.92",REDACTED - PAYMENT TO INDIVIDUAL
Children and Adult Services,Childrens Services,Third Party Payments,440031,Other Third Party Payments,09-Jun-2015,2910393-1031447,604.50,REDACTED - PAYMENT TO INDIVIDUAL
Children and Adult Services,Childrens Services,Third Party Payments,440015,Other Third Party Payments,09-Jun-2015,2910475-1031166,758.70,REDACTED - PAYMENT TO INDIVIDUAL
Children and Adult Services,Childrens Services,Third Party Payments,440016,Other Third Party Payments,09-Jun-2015,2910801-1031277,501.28,REDACTED - PAYMENT TO INDIVIDUAL
Children and Adult Services,Childrens Services,Third Party Payments,440031,Other Third Party Payments,09-Jun-2015,2910831-1031436,"1,065.07",REDACTED - PAYMENT TO INDIVIDUAL
Children and Adult Services,Childrens Services,Third Party Payments,440027,Other Third Party Payments,09-Jun-2015,2910861-1030317,706.23,REDACTED - PAYMENT TO INDIVIDUAL
Children and Adult Services,Education,Transport,230006,Contract Hire,09-Jun-2015,2910871-9,800.00,A HJ JOBLING T/A CASTLE TAXIS.
Children and Adult Services,Education,Transport,230008,Contract Hire,09-Jun-2015,2910872-E35/SH,930.00,AABAT TAXIS.
Children and Adult Services,Education,Transport,230007,Contract Hire,09-Jun-2015,2910872-E36/SK,"1,590.00",AABAT TAXIS.
Children and Adult Services,Education,Transport,230007,Contract Hire,09-Jun-2015,2910872-E38/SM,525.00,AABAT TAXIS.
Children and Adult Services,Education,Transport,230008,Contract Hire,09-Jun-2015,2910872-E44/AC,585.90,AABAT TAXIS.
Children and Adult Services,Head of Adults,Transport,230005,Contract Hire,09-Jun-2015,2910873-0248,"1,110.00",ABC & OUSTON CABS.
Dedicated Schools Grant,Dedicated Schools Grant,Third Party Payments,425005,Rendered by Voluntary Organisations,09-Jun-2015,2910900-INV000204,"11,602.00",CAMBIAN CHILDCARE LTD.
Children and Adult Services,Childrens Services,Employees,080025,Agency Staff,09-Jun-2015,2910907-2308368,"1,187.50",CELSIAN.
Children and Adult Services,Childrens Services,Third Party Payments,486044,Service Level Agreements,09-Jun-2015,2910917-3980011594,"2,456.00",CO DURHAM & DARLINGTON NHS FOUNDATION TRUST.
Children and Adult Services,Education,Transport,230008,Contract Hire,09-Jun-2015,2910918-OE42615,"1,742.50",COLIN FRANKS T/A FRANKS COACHES.
Children and Adult Services,Education,Transport,230007,Contract Hire,09-Jun-2015,2910919-0001489,"1,050.00",COLORS TAXIS LTD.
Children and Adult Services,Education,Transport,230006,Contract Hire,09-Jun-2015,2910919-0001492,842.00,COLORS TAXIS LTD.
Children and Adult Services,Education,Construction Work,908200,Capital - Public Utilities - Gas Services,09-Jun-2015,2910921-10075528,983.01,CORONA ENERGY RETAIL 2 LTD.
Children and Adult Services,Education,Construction Work,908200,Capital - Public Utilities - Gas Services,09-Jun-2015,2910921-10081960,953.87,CORONA ENERGY RETAIL 2 LTD.
Children and Adult Services,Head of Adults,Transport,230005,Contract Hire,09-Jun-2015,2910924-5349,709.92,CROFT BUSINESS SERVICES (UK) LTD T/A CROFT TAXIS.
Children and Adult Services,Education,Transport,230008,Contract Hire,09-Jun-2015,2910929-2509,510.00,DAVES MINIBUSES.
Dedicated Schools Grant,Dedicated Schools Grant,Third Party Payments,425005,Rendered by Voluntary Organisations,09-Jun-2015,2910941-1580,"4,404.97",DURHAM SCHOOL.
Children and Adult Services,Education,Transport,230008,Contract Hire,09-Jun-2015,2910947-E052/0515,829.40,ELLIOTTS OF TRIMDON.
Children and Adult Services,Education,Transfer Payments,510028,School Children,09-Jun-2015,2910965-CAS-06-2015-024,"30,000.00",GIANT STEPS LTD.
Children and Adult Services,Education,Transport,230008,Contract Hire,09-Jun-2015,2910983-IR1505008,"2,100.00",I & R EXECUTIVE TRAVEL.
Children and Adult Services,Education,Transport,230008,Contract Hire,09-Jun-2015,2910983-IR1505009,"1,200.00",I & R EXECUTIVE TRAVEL.
Children and Adult Services,Head of Adults,Supplies and Services,338045,Services,09-Jun-2015,2910985-147,"1,703.78",INDEPENDENT PSYCHIATRIC REPORTS LTD.
Children and Adult Services,Education,Transport,230008,Contract Hire,09-Jun-2015,2910986-963,780.00,J YOUNG T/A VIP TAXIS.
Children and Adult Services,Education,Transport,230009,Contract Hire,09-Jun-2015,2910986-969,990.00,J YOUNG T/A VIP TAXIS.
Children and Adult Services,Education,Transport,230008,Contract Hire,09-Jun-2015,2910987-93,750.00,JACK`S TAXIS.
Children and Adult Services,Head of Adults,Transport,230005,Contract Hire,09-Jun-2015,2910991-722,"1,015.55",JDS PRIVATE HIRE DURHAM.
Children and Adult Services,Head of Adults,Transport,230005,Contract Hire,09-Jun-2015,2910991-723,"1,558.00",JDS PRIVATE HIRE DURHAM.
Children and Adult Services,Education,Transport,230008,Contract Hire,09-Jun-2015,2910991-724,"1,200.00",JDS PRIVATE HIRE DURHAM.
Children and Adult Services,Education,Transport,230008,Contract Hire,09-Jun-2015,2910991-725,"1,140.00",JDS PRIVATE HIRE DURHAM.
Children and Adult Services,Education,Transport,230008,Contract Hire,09-Jun-2015,2910991-726,960.00,JDS PRIVATE HIRE DURHAM.
Children and Adult Services,Education,Transport,230008,Contract Hire,09-Jun-2015,2910991-727,"1,071.00",JDS PRIVATE HIRE DURHAM.
Children and Adult Services,Education,Transport,230008,Contract Hire,09-Jun-2015,2910991-728,780.00,JDS PRIVATE HIRE DURHAM.
Children and Adult Services,Education,Transport,230008,Contract Hire,09-Jun-2015,2910991-730,"1,950.00",JDS PRIVATE HIRE DURHAM.
Children and Adult Services,Education,Transport,230009,Contract Hire,09-Jun-2015,2910991-731,840.00,JDS PRIVATE HIRE DURHAM.
Children and Adult Services,Education,Transport,230008,Contract Hire,09-Jun-2015,2910991-732,945.00,JDS PRIVATE HIRE DURHAM.
Children and Adult Services,Education,Transport,230008,Contract Hire,09-Jun-2015,2910991-733,"1,875.00",JDS PRIVATE HIRE DURHAM.
Children and Adult Services,Education,Transport,230008,Contract Hire,09-Jun-2015,2910991-734,750.00,JDS PRIVATE HIRE DURHAM.
Children and Adult Services,Education,Transport,230008,Contract Hire,09-Jun-2015,2910991-735,"1,010.00",JDS PRIVATE HIRE DURHAM.
Children and Adult Services,Education,Transport,230007,Contract Hire,09-Jun-2015,2910991-737,750.00,JDS PRIVATE HIRE DURHAM.
Children and Adult Services,Education,Transport,230008,Contract Hire,09-Jun-2015,2910994-JK190,"1,200.00",JK TAXIS.
Children and Adult Services,Head of Adults,Transport,230005,Contract Hire,09-Jun-2015,2911016-590515,975.00,MARK MUSGROVE T/A MARKS TAXIS.
Children and Adult Services,Education,Transport,230008,Contract Hire,09-Jun-2015,2911030-547,"1,350.00",MOLLYS TAXIS.
Children and Adult Services,Education,Transport,230008,Contract Hire,09-Jun-2015,2911030-549,"1,260.00",MOLLYS TAXIS.
Children and Adult Services,Education,Transport,230008,Contract Hire,09-Jun-2015,2911030-550,"1,800.00",MOLLYS TAXIS.
Children and Adult Services,Education,Transport,230008,Contract Hire,09-Jun-2015,2911030-551,"1,925.00",MOLLYS TAXIS.
Children and Adult Services,Head of Adults,Transport,230005,Contract Hire,09-Jun-2015,2911030-552,"1,558.00",MOLLYS TAXIS.
Children and Adult Services,Education,Transport,230008,Contract Hire,09-Jun-2015,2911030-554,"1,515.00",MOLLYS TAXIS.
Children and Adult Services,Education,Transport,230007,Contract Hire,09-Jun-2015,2911031-CEWAPRIL1529,510.00,MOOR PRIVATE HIRE.
Children and Adult Services,Head of Adults,Transport,230005,Contract Hire,09-Jun-2015,2911035-EDB05-15,855.00,MR CT WALKER T/A COLIN`S TAXIS.
Children and Adult Services,Education,Transport,230008,Contract Hire,09-Jun-2015,2911035-WAL105-15,"1,748.25",MR CT WALKER T/A COLIN`S TAXIS.
Children and Adult Services,Education,Transport,230008,Contract Hire,09-Jun-2015,2911035-WAL305-15,"1,710.00",MR CT WALKER T/A COLIN`S TAXIS.
Children and Adult Services,Education,Transport,230008,Contract Hire,09-Jun-2015,2911035-WINDS05-15,"2,252.95",MR CT WALKER T/A COLIN`S TAXIS.
Children and Adult Services,Education,Transport,230006,Contract Hire,09-Jun-2015,2911037-0515,570.00,MR DEREK HENDERSON.
Children and Adult Services,Education,Supplies and Services,352001,Conference Expenses,09-Jun-2015,2911073-EPS507/965197,698.00,OPTIMUS EDUCATION.
Children and Adult Services,Childrens Services,Supplies and Services,324117,Provisions,09-Jun-2015,2911082-6205,503.00,PETERLEE TOWN COUNCIL.
Children and Adult Services,Head of Adults,Transport,230005,Contract Hire,09-Jun-2015,2911083-0376,836.00,PETER`S PRIVATE HIRE/PETER BEST.
Children and Adult Services,Head of Adults,Transport,230005,Contract Hire,09-Jun-2015,2911083-0377,782.00,PETER`S PRIVATE HIRE/PETER BEST.
Children and Adult Services,Education,Transport,230008,Contract Hire,09-Jun-2015,2911084-01283,"1,050.00",PHILLIPS TAXI GROUP LTD.
Children and Adult Services,Head of Adults,Transport,230005,Contract Hire,09-Jun-2015,2911089-150504,585.00,PRATTS TAXIS.
Children and Adult Services,Education,Transport,230008,Contract Hire,09-Jun-2015,2911090-G62,690.00,PRESTYS HACKNEY & PRIVATE HIRE TAXIS.
Children and Adult Services,Education,Transfer Payments,510026,School Children,09-Jun-2015,2911097-DCATCHFUNDING-LS,"1,170.00",RAINBOW NURSERY LTD (MIDDLESTONE MOOR).
Children and Adult Services,Education,Transport,230007,Contract Hire,09-Jun-2015,2911098-31A,960.00,RAYNERS COACHES.
Children and Adult Services,Education,Transport,230008,Contract Hire,09-Jun-2015,2911100-082,910.00,REDZ PRIVATE HIRE.
Children and Adult Services,Childrens Services,Third Party Payments,425017,Rendered by Voluntary Organisations,09-Jun-2015,2911114-1160237,966.00,ST CUTHBERTS CARE.
Children and Adult Services,Planning & Service Strategy,Supplies and Services,338026,Services,09-Jun-2015,2911122,"1,303.75",SWIPHT SOCIAL WORK CONSULTANCY.
Children and Adult Services,Head of Adults,Transport,230005,Contract Hire,09-Jun-2015,2911124-B732,"1,372.18",TALBOTS TRAVEL LTD.
Children and Adult Services,Education,Transport,230008,Contract Hire,09-Jun-2015,2911125-1-26/5/15,922.80,TALLA`S TAXIS.
Children and Adult Services,Education,Transport,230007,Contract Hire,09-Jun-2015,2911126-01527,"1,081.20",TALLENTIRES LTD.
Children and Adult Services,Education,Transport,230007,Contract Hire,09-Jun-2015,2911129-MAY2015,"2,660.00",TED WILFORD COACHES.
Children and Adult Services,Education,Transport,230007,Contract Hire,09-Jun-2015,2911135-2653,"1,652.00",TM TRAVEL.
Children and Adult Services,Education,Transport,230007,Contract Hire,09-Jun-2015,2911135-2654,"1,652.00",TM TRAVEL.
Children and Adult Services,Education,Transport,230007,Contract Hire,09-Jun-2015,2911135-2655,"5,852.00",TM TRAVEL.
Children and Adult Services,Education,Transport,230007,Contract Hire,09-Jun-2015,2911135-2656,"1,400.00",TM TRAVEL.
Children and Adult Services,Education,Transport,230007,Contract Hire,09-Jun-2015,2911135-2657,966.00,TM TRAVEL.
Children and Adult Services,Education,Transport,230007,Contract Hire,09-Jun-2015,2911135-2658,"1,330.00",TM TRAVEL.
Children and Adult Services,Head of Adults,Transport,230005,Contract Hire,09-Jun-2015,2911140-5914-30/5/15,834.00,TRANSPORT.ADVENTURE.XI.
Dedicated Schools Grant,Dedicated Schools Grant,Transport,230010,Contract Hire,09-Jun-2015,2911141-14009,750.00,TRAVEL 6.
Dedicated Schools Grant,Dedicated Schools Grant,Transport,230010,Contract Hire,09-Jun-2015,2911141-15009,825.00,TRAVEL 6.
Children and Adult Services,Education,Transport,230007,Contract Hire,09-Jun-2015,2911151-44-22/5/15,"1,200.00",WALTONS TAXIS.
Children and Adult Services,Education,Transport,230007,Contract Hire,09-Jun-2015,2911154-CONS/MAY/151,"2,523.00",WEARDALE MOTOR SERVICES LTD.
Children and Adult Services,Education,Transport,230007,Contract Hire,09-Jun-2015,2911154-CONS/MAY/152,"2,535.00",WEARDALE MOTOR SERVICES LTD.
Children and Adult Services,Education,Transport,230007,Contract Hire,09-Jun-2015,2911154-CONS/MAY/153,"4,410.00",WEARDALE MOTOR SERVICES LTD.
Children and Adult Services,Education,Transport,230008,Contract Hire,09-Jun-2015,2911154-PH/MAY/15,"3,745.50",WEARDALE MOTOR SERVICES LTD.
Children and Adult Services,Education,Transport,230007,Contract Hire,09-Jun-2015,2911155-22515,700.00,WIL TRAVEL.
Children and Adult Services,Education,Transport,230008,Contract Hire,09-Jun-2015,2911155-22515-E058,630.00,WIL TRAVEL.
Neighbourhood Services,Technical Services,Supplies and Services,304221,Equipment and Materials,09-Jun-2015,2910876-21450703,"1,276.55",AGGREGATE INDUSTRIES UK LTD.
Neighbourhood Services,Culture & Sport,Supplies and Services,338099,Services,09-Jun-2015,2910877-005A,"1,834.64",ANDREW SHUTT.
Neighbourhood Services,Direct Services,Transport,230005,Contract Hire,09-Jun-2015,2910899-NEW8120354,"1,097.65",BURNT TREE GROUP LTD.
Neighbourhood Services,Direct Services,Transport,230005,Contract Hire,09-Jun-2015,2910899-NEW8120357,600.71,BURNT TREE GROUP LTD.
Neighbourhood Services,Direct Services,Transport,230005,Contract Hire,09-Jun-2015,2910899-NEW8120367,946.25,BURNT TREE GROUP LTD.
Neighbourhood Services,Direct Services,Supplies and Services,338066,Services,09-Jun-2015,2910971-4100493805,900.00,GT WORTHY FUNERAL SERVICE.
Neighbourhood Services,Culture & Sport,Supplies and Services,338099,Services,09-Jun-2015,2910992-S5175,"6,186.00",JEFF DOBSON MARQUEE HIRE.
Neighbourhood Services,Culture & Sport,Supplies and Services,384302,Miscellaneous Expenses,09-Jun-2015,2911000-06,"7,600.00",JR MILGATE ORCHESTRA PROMOTIONS.
Neighbourhood Services,Technical Services,Supplies and Services,304221,Equipment and Materials,09-Jun-2015,2911001-BAI240929,504.02,JT DOVE LTD.
Neighbourhood Services,Culture & Sport,Third Party Payments,430100,Rendered by Private Contractors,09-Jun-2015,2911009-SI-2693A,"338,387.00",LEISUREWORKS.
Neighbourhood Services,Technical Services,Supplies and Services,304221,Equipment and Materials,09-Jun-2015,2911060-NC7/C366/BW,"12,828.72",NEDCO CONTRACTS (NE) LTD.
Neighbourhood Services,Direct Services,Supplies and Services,384194,Miscellaneous Expenses,09-Jun-2015,2911063-25298,"2,125.00",NIRAMAX GROUP LTD.
Neighbourhood Services,Direct Services,Third Party Payments,430100,Rendered by Private Contractors,09-Jun-2015,2911075-INV573,"16,466.00",PASSFM LTD.
Neighbourhood Services,Direct Services,Supplies and Services,304259,Equipment and Materials,09-Jun-2015,2911085-10184,"3,261.00",PLANTSCAPE.
Neighbourhood Services,Direct Services,Supplies and Services,304221,Equipment and Materials,09-Jun-2015,2911086-4120180490,"1,474.42",PLUMBING TRADE SUPPLIES LTD.
Neighbourhood Services,Direct Services,Supplies and Services,304221,Equipment and Materials,09-Jun-2015,2911087-4120180759,"1,860.96",PLUMBING TRADE SUPPLIES LTD.
Neighbourhood Services,Technical Services,Supplies and Services,304221,Equipment and Materials,09-Jun-2015,2911120-072200,"2,073.20",STONEGRAVE AGGREGATES LTD.
Neighbourhood Services,Technical Services,Stock,926900,Stock in hand-Inventory system,09-Jun-2015,2911121-46/944800,736.20,SUPPLY UK.
Neighbourhood Services,Technical Services,Supplies and Services,304221,Equipment and Materials,09-Jun-2015,2911127-INV-9305,"2,760.00",TANKS DIRECT LTD.
Neighbourhood Services,Technical Services,Supplies and Services,304221,Equipment and Materials,09-Jun-2015,2911145-146601,928.96,TYNEDALE ROADSTONE LTD.
Neighbourhood Services,Technical Services,Supplies and Services,304221,Equipment and Materials,09-Jun-2015,2911145-146603,952.72,TYNEDALE ROADSTONE LTD.
RED HRA,Housing Revenue Account,Third Party Payments,430100,Rendered by Private Contractors,09-Jun-2015,2911152-91014,"432,300.67",WATES CONSTRUCTION LTD.
Regeneration & Economic Development,Economic Development and Housing,Cap Exp on Grants & Other Financial Assistance (REFCUS),918401,Capital grants,09-Jun-2015,2910912-RED-06-2015-061,"15,000.00",CHROME PROPERTY MAINTENANCE LTD.
Regeneration & Economic Development,Spatial Policy Planning Assets & Environment,Supplies and Services,384899,Miscellaneous Expenses,09-Jun-2015,2911008-RED-06-2015-063,"2,000.00",LAURA HARRINGTON.
Regeneration & Economic Development,Economic Development and Housing,Cap Exp on Grants & Other Financial Assistance (REFCUS),918401,Capital grants,09-Jun-2015,2911036-RED-05-2015-061,"5,256.58",REDACTED - PAYMENT TO INDIVIDUAL
Regeneration & Economic Development,Economic Development and Housing,Premises,135005,Water Services,09-Jun-2015,2911069-309921230048013,999.94,NORTHUMBRIAN WATER LTD.
Regeneration & Economic Development,Economic Development and Housing,Supplies and Services,384700,Miscellaneous Expenses,09-Jun-2015,2911106-RED-06-2015-060,"3,000.00",SEAHAM TOWN COUNCIL.
Regeneration & Economic Development,Econ Dev and Regen Financing,Creditors,952146,Creditor-Section 106 agreement,09-Jun-2015,2911106-RED-06-2015-065,"31,500.00",SEAHAM TOWN COUNCIL.
Regeneration & Economic Development,Transport and Contracted Services,Supplies and Services,336005,Advertising,09-Jun-2015,2911117-274924,"1,000.00",STAR RADIO.
Resources,Financial Services,Supplies and Services,344135,Telephones,09-Jun-2015,2910886-11498709,"15,620.50",AZZURRI COMMUNICATIONS LTD.
Resources,Financial Services,Supplies and Services,384199,Miscellaneous Expenses,09-Jun-2015,2910901-6003076357,"9,468.00",CAPITA BUSINESS SERVICES LTD.
Resources,I.C.T. Services,Supplies and Services,342033,Computers and Communications,09-Jun-2015,2910932-7402183701,"3,849.60",DELL COMPUTER CORPORATION LTD.
Resources,I.C.T. Services,Supplies and Services,342033,Computers and Communications,09-Jun-2015,2910932-7402183717,"1,283.20",DELL COMPUTER CORPORATION LTD.
Resources,I.C.T. Services,Stock,926900,Stock in hand-Inventory system,09-Jun-2015,2910932-7402192280,"3,857.00",DELL COMPUTER CORPORATION LTD.
Resources,I.C.T. Services,Stock,926900,Stock in hand-Inventory system,09-Jun-2015,2910932-7402199103,"3,576.96",DELL COMPUTER CORPORATION LTD.
Resources,I.C.T. Services,Stock,926900,Stock in hand-Inventory system,09-Jun-2015,2910932-7402209192,"3,576.96",DELL COMPUTER CORPORATION LTD.
Resources,I.C.T. Services,Stock,926900,Stock in hand-Inventory system,09-Jun-2015,2910932-7402209261,"2,045.44",DELL COMPUTER CORPORATION LTD.
Resources,I.C.T. Services,Supplies and Services,342033,Computers and Communications,09-Jun-2015,2910932-7402209813,"5,014.00",DELL COMPUTER CORPORATION LTD.
Resources,I.C.T. Services,Stock,926900,Stock in hand-Inventory system,09-Jun-2015,2910932-7402209819,994.77,DELL COMPUTER CORPORATION LTD.
Resources,I.C.T. Services,Supplies and Services,342033,Computers and Communications,09-Jun-2015,2910932-7402209832,"9,959.76",DELL COMPUTER CORPORATION LTD.
Resources,I.C.T. Services,Stock,926900,Stock in hand-Inventory system,09-Jun-2015,2910932-7402209938,970.24,DELL COMPUTER CORPORATION LTD.
Resources,I.C.T. Services,Supplies and Services,342033,Computers and Communications,09-Jun-2015,2910932-7402209959,"2,703.78",DELL COMPUTER CORPORATION LTD.
Resources,Human Resources,Supplies and Services,338221,Services,09-Jun-2015,2910955-6058020245,913.33,FIRSTASSIST SERVICES LTD.
Resources,I.C.T. Services,Supplies and Services,304303,Equipment and Materials,09-Jun-2015,2911004-37098,"3,697.00",KBR IT & NETWORKING SOLUTIONS.
Resources,I.C.T. Services,Supplies and Services,304303,Equipment and Materials,09-Jun-2015,2911004-37099,"2,057.00",KBR IT & NETWORKING SOLUTIONS.
Assistant Chief Executive,Partnerships & Community Engagement Div.,Cap Exp on Grants & Other Financial Assistance (REFCUS),918004,Contributions to other bodies,10-Jun-2015,240158-VOUCHER14NB-EDUR050,"2,197.69",LAFARGE TARMAC TRADING LTD.
Assistant Chief Executive,Partnerships & Community Engagement Div.,Cap Exp on Grants & Other Financial Assistance (REFCUS),918004,Contributions to other bodies,10-Jun-2015,2911235-VOUCHER14NB-MDUR013,"10,000.00",BURNHOPE PARISH COUNCIL.
Assistant Chief Executive,Partnerships & Community Engagement Div.,Transfer Payments,525030,Other,10-Jun-2015,2911288-VOUCHEROURPLACE6,"4,000.00",DENESIDE ACTION GROUP.
Assistant Chief Executive,Partnerships & Community Engagement Div.,Cap Exp on Grants & Other Financial Assistance (REFCUS),918004,Contributions to other bodies,10-Jun-2015,2911307-VOUCHER14NB-EDUR050,"17,802.31",EASINGTON COLLIERY PARISH COUNCIL.
Assistant Chief Executive,Partnerships & Community Engagement Div.,Cap Exp on Grants & Other Financial Assistance (REFCUS),918004,Contributions to other bodies,10-Jun-2015,2911323-VOUCHER14NB-MDUR012,"9,000.00",ESH WINNING CRICKET CLUB.
Assistant Chief Executive,Partnerships & Community Engagement Div.,Transfer Payments,525030,Other,10-Jun-2015,2911327-VOUCHER14AB-4TOG008,"15,680.00",FERRYHILL LADDER CENTRE LTD.
Assistant Chief Executive,Partnerships & Community Engagement Div.,Supplies and Services,384086,Miscellaneous Expenses,10-Jun-2015,2911607-VOUCHER14NB-STAN023,"2,000.00",THE SOUTH MOOR HOMING SOCIETY.
Assistant Chief Executive,Partnerships & Community Engagement Div.,Transfer Payments,525030,Other,10-Jun-2015,2911608-VOUCHER14AB-TEES009,"5,195.00",THE TEES RIVER TRUST
Children and Adult Services,Head of Adults,Premises,108037,Service Repairs and Maintenance,10-Jun-2015,240100-CAS-05-2015-106,574.00,REDACTED - PAYMENT TO INDIVIDUAL
Children and Adult Services,Head of Adults,Premises,108037,Service Repairs and Maintenance,10-Jun-2015,240103-CAS-05-2015-108,860.00,REDACTED - PAYMENT TO INDIVIDUAL
Children and Adult Services,Head of Adults,Premises,108037,Service Repairs and Maintenance,10-Jun-2015,240105-CAS-05-2015-117,851.50,REDACTED - PAYMENT TO INDIVIDUAL
Children and Adult Services,Head of Adults,Premises,108037,Service Repairs and Maintenance,10-Jun-2015,240107-CAS-05-2015-102,550.00,REDACTED - PAYMENT TO INDIVIDUAL
Children and Adult Services,Head of Adults,Premises,108037,Service Repairs and Maintenance,10-Jun-2015,240108-CAS-05-2015-109,604.00,REDACTED - PAYMENT TO INDIVIDUAL
Children and Adult Services,Head of Adults,Premises,108037,Service Repairs and Maintenance,10-Jun-2015,240109-CAS-05-2015-110,696.60,REDACTED - PAYMENT TO INDIVIDUAL
Children and Adult Services,Head of Adults,Premises,108037,Service Repairs and Maintenance,10-Jun-2015,240110-CAS-05-2015-111,511.00,REDACTED - PAYMENT TO INDIVIDUAL
Children and Adult Services,Head of Adults,Premises,108037,Service Repairs and Maintenance,10-Jun-2015,240111-CAS-05-2015-112,"1,543.00",REDACTED - PAYMENT TO INDIVIDUAL
Children and Adult Services,Head of Adults,Premises,108037,Service Repairs and Maintenance,10-Jun-2015,240113-CAS-05-2015-114,505.00,REDACTED - PAYMENT TO INDIVIDUAL
Children and Adult Services,Head of Adults,Transport,230005,Contract Hire,10-Jun-2015,240121-DM149-1/4/15,750.00,BENNETTS TAXIS.
Children and Adult Services,Head of Adults,Transport,230005,Contract Hire,10-Jun-2015,240121-DM149-1/5/15,600.00,BENNETTS TAXIS.
Children and Adult Services,Education,Transport,230008,Contract Hire,10-Jun-2015,240123-M047/20,675.00,C STEWART.
Children and Adult Services,Education,Transport,230008,Contract Hire,10-Jun-2015,240128-AA004,"1,395.00",COUNDON TAXIS.
Children and Adult Services,Head of Adults,Supplies and Services,338045,Services,10-Jun-2015,240138-SM130415,731.05,DR S S
Children and Adult Services,Head of Adults,Premises,108037,Service Repairs and Maintenance,10-Jun-2015,240142-CAS-05-2015-115,550.50,REDACTED - PAYMENT TO INDIVIDUAL
Children and Adult Services,Education,Supplies and Services,384199,Miscellaneous Expenses,10-Jun-2015,240201-9-10-11MARCH,900.00,PETER WATKINSON.
Children and Adult Services,Head of Adults,Premises,108037,Service Repairs and Maintenance,10-Jun-2015,240209-CAS-05-2015-104,510.00,REDACTED - PAYMENT TO INDIVIDUAL
Children and Adult Services,Education,Transfer Payments,510028,School Children,10-Jun-2015,240225-OCT-JAN2015,769.00,USHAW MOOR CHILDRENS CENTRE.
Children and Adult Services,Planning & Service Strategy,Supplies and Services,338026,Services,10-Jun-2015,240226-1,"2,178.75",REDACTED - PAYMENT TO INDIVIDUAL
Children and Adult Services,Head of Adults,Transport,230005,Contract Hire,10-Jun-2015,2911170-EA220765,"1,520.00",A MURRAY TRAVEL.
Children and Adult Services,Head of Adults,Transport,230005,Contract Hire,10-Jun-2015,2911171-F3/LC,621.00,AABAT TAXIS.
Children and Adult Services,Childrens Services,Third Party Payments,425040,Rendered by Voluntary Organisations,10-Jun-2015,2911173-15/1736,"3,100.00",ACORN HOUSE (FOSTERING SERVICES) LTD.
Children and Adult Services,Public Health,Third Party Payments,460803,Contract Payments,10-Jun-2015,2911185-FJAV/00000008,"1,285.39",AR MCCONNELL LTD T/A THE VILLAGE PHARMACY.
Children and Adult Services,Public Health,Third Party Payments,460803,Contract Payments,10-Jun-2015,2911193-DTPB/00000011,620.26,ASDA PHARMACY.
Children and Adult Services,Public Health,Third Party Payments,460803,Contract Payments,10-Jun-2015,2911195-FPKW/00000014,"1,332.83",ASDA PHARMACY.
Children and Adult Services,Public Health,Third Party Payments,460803,Contract Payments,10-Jun-2015,2911197-LJHY/00000010,567.43,ASHCHEM LTD.
Children and Adult Services,Public Health,Third Party Payments,460803,Contract Payments,10-Jun-2015,2911207-DXGC/00000007,815.81,BEWICK PHARMACY.
Children and Adult Services,Commissioning inc Supporting People,Third Party Payments,442002,Supporting People,10-Jun-2015,2911208-1962567,"16,448.04",BID SERVICES WITH DEAF PEOPLE.
Children and Adult Services,Public Health,Third Party Payments,460803,Contract Payments,10-Jun-2015,2911215-FPPB/00000008,"1,917.51",BOOTS THE CHEMISTS LTD.
Children and Adult Services,Public Health,Third Party Payments,460803,Contract Payments,10-Jun-2015,2911216-DRJY/00000007,553.48,BOOTS THE CHEMISTS LTD.
Children and Adult Services,Public Health,Third Party Payments,460803,Contract Payments,10-Jun-2015,2911218-FCPT/00000005,"1,850.86",BOOTS THE CHEMISTS LTD.
Children and Adult Services,Public Health,Third Party Payments,460803,Contract Payments,10-Jun-2015,2911224-DZJM/00000008,"1,105.22",BOOTS THE CHEMISTS LTD.
Children and Adult Services,Public Health,Third Party Payments,460803,Contract Payments,10-Jun-2015,2911226-DPWT/00000010,"1,272.65",BOOTS THE CHEMISTS LTD.
Children and Adult Services,Public Health,Third Party Payments,460803,Contract Payments,10-Jun-2015,2911227-FGMG/00000003,970.97,BOOTS THE CHEMISTS LTD.
Children and Adult Services,Education,Supplies and Services,324117,Provisions,10-Jun-2015,2911229-52730315,524.09,BRAKE BROS FOODSERVICE LTD.
Children and Adult Services,Public Health,Third Party Payments,460803,Contract Payments,10-Jun-2015,2911232-DXNF/00000006,"2,237.47",BRITTON & ROBSON LTD.
Children and Adult Services,Head of Adults,Supplies and Services,338366,Services,10-Jun-2015,2911240-24707,"3,662.60",CARE ABILITY.
Children and Adult Services,Public Health,Third Party Payments,460803,Contract Payments,10-Jun-2015,2911247-DVQC/00000001,"2,269.17",CENTRECHEM DISPENSING CHEMIST.
Children and Adult Services,Public Health,Third Party Payments,460803,Contract Payments,10-Jun-2015,2911250-FDDM/00000006,716.02,CHEAPSIDE PHARMACY.
Children and Adult Services,Commissioning inc Supporting People,Third Party Payments,442002,Supporting People,10-Jun-2015,2911253-1962662,"3,452.04",CHILDREN NORTH EAST.
Children and Adult Services,Public Health,Third Party Payments,460803,Contract Payments,10-Jun-2015,2911260-3980010504,"929,817.00",CO DURHAM & DARLINGTON NHS FOUNDATION TRUST.
Children and Adult Services,Public Health,Third Party Payments,460803,Contract Payments,10-Jun-2015,2911260-3980011266,"929,817.00",CO DURHAM & DARLINGTON NHS FOUNDATION TRUST.
Children and Adult Services,Head of Adults,Transport,230005,Contract Hire,10-Jun-2015,2911265-599,616.00,CONNORS MINI BUSES.
Children and Adult Services,Head of Adults,Transport,230005,Contract Hire,10-Jun-2015,2911265-600,950.00,CONNORS MINI BUSES.
Children and Adult Services,Childrens Services,Supplies and Services,304259,Equipment and Materials,10-Jun-2015,2911270-80282,666.20,CORPORATE COMPUTER SUPPLIES LTD.
Children and Adult Services,Commissioning inc Supporting People,Third Party Payments,442002,Supporting People,10-Jun-2015,2911276-1962561,"19,868.48",CREATIVE SUPPORT LTD.
Children and Adult Services,Public Health,Third Party Payments,460803,Contract Payments,10-Jun-2015,2911292-FHAX/00000008,714.15,DIPTON PHARMACY.
Children and Adult Services,Commissioning inc Supporting People,Third Party Payments,442002,Supporting People,10-Jun-2015,2911293-1962560,"5,668.48",DISC LTD.
Children and Adult Services,Commissioning inc Supporting People,Third Party Payments,442002,Supporting People,10-Jun-2015,2911293-1962590,"27,885.68",DISC LTD.
Children and Adult Services,Commissioning inc Supporting People,Third Party Payments,441001,Supporting People,10-Jun-2015,2911298-1962591,"20,819.76",DURHAM ACTION ON SINGLE HOUSING.
Children and Adult Services,Commissioning inc Supporting People,Third Party Payments,443001,Supporting People,10-Jun-2015,2911298-1962592,"2,951.84",DURHAM ACTION ON SINGLE HOUSING.
Children and Adult Services,Commissioning inc Supporting People,Third Party Payments,443001,Supporting People,10-Jun-2015,2911298-1962596,"1,475.92",DURHAM ACTION ON SINGLE HOUSING.
Children and Adult Services,Education,Supplies and Services,384302,Miscellaneous Expenses,10-Jun-2015,2911305-MHAC001-1156,635.00,DURHAM SCOUT COUNTY.
Children and Adult Services,Commissioning inc Supporting People,Third Party Payments,441001,Supporting People,10-Jun-2015,2911310-1962600,"5,483.40",EAST DURHAM COMMUNITY INITIATIVES LTD.
Children and Adult Services,Commissioning inc Supporting People,Third Party Payments,442002,Supporting People,10-Jun-2015,2911331-1962562,"30,071.20",FOUNDATION.
Children and Adult Services,Public Health,Third Party Payments,460803,Contract Payments,10-Jun-2015,2911335-FNCW/00000010,717.24,G WHITFIELD LTD.
Children and Adult Services,Childrens Services,Supplies and Services,384638,Miscellaneous Expenses,10-Jun-2015,2911337-2015-05-003,"9,700.00",GATEWAY NORTH EAST.
Children and Adult Services,Public Health,Third Party Payments,460803,Contract Payments,10-Jun-2015,2911341-FBFN/00000004,630.36,GILL & SCHOFIELD PHARMACEUTICAL CHEMISTS LTD.
Children and Adult Services,Head of Adults,Premises,108037,Service Repairs and Maintenance,10-Jun-2015,2911350-CAS-05-2015-103,685.00,REDACTED - PAYMENT TO INDIVIDUAL
Children and Adult Services,Head of Adults,Transport,230005,Contract Hire,10-Jun-2015,2911354-021,524.00,GS PEARSON.
Children and Adult Services,Public Health,Third Party Payments,460803,Contract Payments,10-Jun-2015,2911356-FFFR/00000014,616.52,HANCOCK & AINSLEY CHEMIST LTD.
Children and Adult Services,Commissioning inc Supporting People,Third Party Payments,442002,Supporting People,10-Jun-2015,2911358-1962601,"5,995.44",HANOVER HOUSING ASSOCIATION.
Children and Adult Services,Commissioning inc Supporting People,Third Party Payments,441001,Supporting People,10-Jun-2015,2911359-1962563,"18,082.80",HARBOUR SUPPORT SERVICES.
Dedicated Schools Grant,Dedicated Schools Grant,Creditors,952011,Creditors-Government grants,10-Jun-2015,2911367-CAS-06-2015-027,"4,207.50",HERMITAGE ACADEMY.
Children and Adult Services,Central/Other,Debtors,930133,Debtor IC+ Out of Hours - Home Care,10-Jun-2015,2911373-D0014,"8,333.33",HOMECARE SUPPORT LTD T/A THE HUMAN SUPPORT GROUP.
Children and Adult Services,Education,Transport,230008,Contract Hire,10-Jun-2015,2911376-0156,540.00,I CLYDESDALE T/A BURNOPFIELD TAXIS.
Children and Adult Services,Public Health,Third Party Payments,460803,Contract Payments,10-Jun-2015,2911379-VF063,"40,149.99",IF U CARE SHARE.
Children and Adult Services,Public Health,Supplies and Services,384199,Miscellaneous Expenses,10-Jun-2015,2911381-8837,"3,166.45",INGRAMS REMOVERS & STORERS.
Children and Adult Services,Education,Construction Work,908105,Construction work,10-Jun-2015,2911382-DURH/0627,"110,669.33",INSPIREDSPACES DURHAM LTD.
Children and Adult Services,Education,Construction Work,908105,Construction work,10-Jun-2015,2911382-DURH/0630,"360,411.00",INSPIREDSPACES DURHAM LTD.
Children and Adult Services,Public Health,Third Party Payments,460803,Contract Payments,10-Jun-2015,2911385-DYBQ/00000008,658.59,INTRAHEALTH LTD.
Children and Adult Services,Public Health,Third Party Payments,460803,Contract Payments,10-Jun-2015,2911386-DQPW/00000009,735.42,INTRAHEALTH LTD.
Children and Adult Services,Head of Adults,Transport,230005,Contract Hire,10-Jun-2015,2911395-729,800.00,JDS PRIVATE HIRE DURHAM.
Children and Adult Services,Childrens Services,Supplies and Services,364305,Grants to Voluntary Organisations,10-Jun-2015,2911401-CAS-06-2015-025,512.01,REDACTED - PAYMENT TO INDIVIDUAL
Children and Adult Services,Head of Adults,Transport,230005,Contract Hire,10-Jun-2015,2911412-020515,"1,425.00",KEVIN EDMUNDSON.
Children and Adult Services,Head of Adults,Transport,230005,Contract Hire,10-Jun-2015,2911414-KW407,630.00,KWIK CABS.
Children and Adult Services,Commissioning inc Supporting People,Third Party Payments,473111,Purchase of Care,10-Jun-2015,2911419-RLNVTP/00356410,"3,994.97",LEONARD CHESHIRE DISABILITY.
Children and Adult Services,Public Health,Third Party Payments,460803,Contract Payments,10-Jun-2015,2911435-FPZD/00000015,988.51,LYDON PHARMACY GROUP LTD.
Children and Adult Services,Head of Adults,Transport,230005,Contract Hire,10-Jun-2015,2911438-81,690.00,M BUTCHER T/A KIDDI CABS.
Children and Adult Services,Head of Adults,Third Party Payments,478111,Purchase of Care,10-Jun-2015,2911446-2136325,"1,501.20",MENCAP.
Children and Adult Services,Commissioning inc Supporting People,Third Party Payments,442002,Supporting People,10-Jun-2015,2911447-1962564,"5,469.72",MENTAL HEALTH MATTERS.
Children and Adult Services,Head of Adults,Transport,230005,Contract Hire,10-Jun-2015,2911449-00757,"2,584.00",MICHAELS TRAVEL.
Children and Adult Services,Head of Adults,Transport,230005,Contract Hire,10-Jun-2015,2911457-553,"1,650.00",MOLLYS TAXIS.
Children and Adult Services,Commissioning inc Supporting People,Third Party Payments,442002,Supporting People,10-Jun-2015,2911459-1962565,"5,240.36",MOVING ON.
Children and Adult Services,Head of Adults,Transport,230005,Contract Hire,10-Jun-2015,2911460-2014-97,"1,881.00",MR D KEMP T/A ACE EXECUTIVE.
Children and Adult Services,Head of Adults,Transport,230005,Contract Hire,10-Jun-2015,2911461-66160,"1,136.20",MR GN ROBBINS T/A GNR MINIBUS HIRE.
Children and Adult Services,Head of Adults,Transport,230005,Contract Hire,10-Jun-2015,2911461-66161,"1,558.00",MR GN ROBBINS T/A GNR MINIBUS HIRE.
Children and Adult Services,Head of Adults,Transport,230005,Contract Hire,10-Jun-2015,2911464-201515,600.00,MR JR FORT.
Children and Adult Services,Head of Adults,Transport,230005,Contract Hire,10-Jun-2015,2911465-0515,540.00,MR MA HINCHCLIFFE T/A PITSTOP TAXIS.
Children and Adult Services,Education,Third Party Payments,430100,Rendered by Private Contractors,10-Jun-2015,2911467-4,602.00,MR PHILLIP TAIT.
Children and Adult Services,Public Health,Supplies and Services,384155,Miscellaneous Expenses,10-Jun-2015,2911480-1000044559,"59,892.62",NHS BUSINESS SERVICES AUTHORITY.
Children and Adult Services,Education,Third Party Payments,450001,Environment Related,10-Jun-2015,2911481-7010100259,"83,435.50",NHS DDES CCG.
Children and Adult Services,Head of Adults,Transport,230005,Contract Hire,10-Jun-2015,2911483-3777,"1,029.00",NIGHTINGALE COACHES.
Children and Adult Services,Head of Adults,Transport,230005,Contract Hire,10-Jun-2015,2911483-3778,532.00,NIGHTINGALE COACHES.
Children and Adult Services,Head of Adults,Transport,230005,Contract Hire,10-Jun-2015,2911483-3779,912.00,NIGHTINGALE COACHES.
Children and Adult Services,Head of Adults,Transport,230005,Contract Hire,10-Jun-2015,2911483-3780,798.00,NIGHTINGALE COACHES.
Children and Adult Services,Head of Adults,Transport,230005,Contract Hire,10-Jun-2015,2911483-3781,684.00,NIGHTINGALE COACHES.
Children and Adult Services,Head of Adults,Transport,230005,Contract Hire,10-Jun-2015,2911483-3782,"1,121.00",NIGHTINGALE COACHES.
Children and Adult Services,Head of Adults,Transport,230005,Contract Hire,10-Jun-2015,2911483-3783,741.00,NIGHTINGALE COACHES.
Dedicated Schools Grant,Dedicated Schools Grant,Creditors,952011,Creditors-Government grants,10-Jun-2015,2911485-CAS-06-2015-029,"18,933.75",NORTH DURHAM ACADEMY.
Children and Adult Services,Childrens Services,Third Party Payments,425020,Rendered by Voluntary Organisations,10-Jun-2015,2911486-0000021242,"1,231.61",NORTH EAST AUTISM SOCIETY.
Children and Adult Services,Childrens Services,Third Party Payments,425020,Rendered by Voluntary Organisations,10-Jun-2015,2911486-0000021245,"1,180.98",NORTH EAST AUTISM SOCIETY.
Dedicated Schools Grant,Dedicated Schools Grant,Creditors,952011,Creditors-Government grants,10-Jun-2015,2911504-CAS-06-2015-028,"6,311.25",PARK VIEW ACADEMY.
Children and Adult Services,Education,Transport,230007,Contract Hire,10-Jun-2015,2911534-31B,"1,620.00",RAYNERS COACHES.
Children and Adult Services,Commissioning inc Supporting People,Third Party Payments,442002,Supporting People,10-Jun-2015,2911538-1962575,"7,356.72",RICHMOND FELLOWSHIP.
Children and Adult Services,Commissioning inc Supporting People,Third Party Payments,444002,Supporting People,10-Jun-2015,2911538-1962576,"4,068.24",RICHMOND FELLOWSHIP.
Children and Adult Services,Commissioning inc Supporting People,Third Party Payments,441001,Supporting People,10-Jun-2015,2911538-1962588,"9,423.88",RICHMOND FELLOWSHIP.
Children and Adult Services,Public Health,Third Party Payments,460803,Contract Payments,10-Jun-2015,2911543-FCTK/00000007,"2,008.80",ROBERTS & ROBERTS LTD T/A HIGGINBOTTOM PHARMACY.
Children and Adult Services,Commissioning inc Supporting People,Third Party Payments,442002,Supporting People,10-Jun-2015,2911559-1962566,"9,044.36",SHAID.
Children and Adult Services,Childrens Services,Third Party Payments,440999,Other Third Party Payments,10-Jun-2015,2911561-CAS-06-2015-026,848.00,REDACTED - PAYMENT TO INDIVIDUAL
